{"text_format":"1","workbook":"xlsx","n_sheets":37,"sheets":["Инструкция","Выбор субъекта РФ","Титульный","ТС характеристики","ТС инвестиции","ТС показатели","ТС показатели (2)","Ссылки на публикации","Титульный (2)","ВО характеристики","ВО показатели","ВО показатели (2)","Ссылки на публикации (2)","Титульный (3)","ХВС характеристики","ХВС показатели","ХВС показатели (2)","Ссылки на публикации (3)","AllSheetsInThisWorkbook","et_union","TEHSHEET","REESTR_ORG","REESTR_FILTERED","REESTR_MO","modHyp","modChange","modfrmReestr","modPROV","modCommandButton","modTitleSheetHeaders","modServiceModule","modClassifierValidate","modWindowClipboard","modInfo","modfrmDateChoose","modReestr","Паспорт"],"not_rendered":{"charts":0,"images":10,"macros":1,"external_links":2,"defined_names":539,"comments":0,"pivot_tables":0},"unopened":[],"bounds":{"document_bytes":16777216,"sheet_cells":100000,"rows_first":2000,"rows_last":500,"rows_between":2000,"halvings":0,"cell_chars":16384,"cell_head_chars":4096},"cells_cut":0,"cells_raw":0,"read":"whole","date_system":"1900"}

{"sheet":"Инструкция","index":0,"n_rows":37,"n_cols":10,"rows_kept":37,"cut":false,"hidden":false,"merged":[[23,2,23,3],[23,4,23,7],[24,2,24,3],[24,4,24,7],[25,2,25,3],[25,4,25,7],[32,2,32,3],[32,4,32,7],[26,2,26,3],[26,4,26,7],[27,2,27,3],[27,4,27,7],[3,1,3,9],[20,2,20,7],[21,2,21,7],[22,2,22,4],[6,2,6,7],[7,2,7,7],[8,2,8,7],[9,2,9,7],[36,2,36,3],[36,4,36,7],[17,2,17,7],[18,2,18,7],[19,2,19,7],[34,2,34,3],[34,4,34,7],[35,2,35,3],[35,4,35,7],[31,2,31,4],[33,2,33,3],[33,4,33,7],[28,2,28,3],[28,4,28,7],[29,2,29,3],[29,4,29,7]]}
[]
[null,null,null,null,null,null,null,null,null,"Код шаблона: JKH.OPEN.INFO.BALANCE.WARM"]
[null,null,null,null,null,null,null,null,null,{"$f":"\"Версия \" & GetVersion()","v":{"$error":"#NAME?"}}]
[null,"Инструкция по заполнению шаблона"]
[]
[]
[null,null,"Технические требования:\n\n• макросы во время работы должны быть включены \n\n"]
[null,null,"• на рабочем месте должен быть установлен MS Office 2003, 2007, 2010 x86 с полной версией MS Excel"]
[null,null,"• макросы во время работы должны быть включены "]
[null,null,"• для корректной работы шаблона требуется выбрать низкий уровень безопасности\n(В меню MS Excel 2003: Сервис ¦ Макрос ¦ Безопасность ¦ выбрать нижний пункт «Низкая безопасность» ¦ «OK»)\n(В MS Excel 2007 после открытия файла шаблона нажать на кнопку «Параметры…» в строке «Предупреждение системы безопасности», далее выбрать «Включить это содержимое» ¦ «OK»)"]
[]
[null,null,null,"●","голубой – ячейки, обязательные для заполнения;"]
[null,null,null,"●","жёлтый – ячейки, предназначенные для заполнения;"]
[null,null,null,"●","зелёный – ячейки с формулами и константами. "]
[]
[null,null,null,null,"Пояснение к заполнению (необходимо нажать один раз)."]
[]
[null,null,"Шаблон может быть сохранен на любом этапе заполнения!"]
[null,null,"• При сохранении шаблона осуществляется проверка на наличие и корректность (например, КПП – 9 цифр) обязательных параметров на листах. "]
[null,null,"• Если какая-то ячейка не удовлетворяет условию проверки, на лист «Проверка» добавляется гиперссылка на данную ячейку и причина, по которой шаблон не будет загружен в хранилище данных. "]
[null,null,"• В колонке «Статус ошибки» для каждого сообщения возможны 2 значения: ошибка и предупреждение. "]
[null,null,"• При наличии сообщений со статусом «Ошибка» шаблон будет отклонён системой, сообщения со статусом «Предупреждение» носят информационный характер, и такой шаблон будет принят системой."]
[null,null,"Организационно-технические консультации:"]
[null,null,"ФИО:"]
[null,null,"телефон:"]
[null,null,"e-mail:"]
[null,null,"WEB-сайт:"]
[null,null,"Комментарий"]
[null,null,"Дистрибутивы:",null,"Для устранения проблем с MS Excel (например, \"Compile error in hidden module\") воспользуйтесь пакетами библиотек: "]
[null,null,"Дистрибутивы (ссылка):",null,"http://eias.ru/?page=show_distrs"]
[]
[null,null,"Консультации по методологии заполнения форм:"]
[null,null,"ФИО:"]
[null,null,"телефон:"]
[null,null,"e-mail:"]
[null,null,"WEB-сайт:",null,"http://eias.ru/"]
[null,null,"Комментарий"]

{"sheet":"Выбор субъекта РФ","index":1,"n_rows":3,"n_cols":6,"rows_kept":3,"cut":false,"hidden":true,"merged":[[2,5,2,8],[2,3,2,4]]}
[]
[null,null,null,null,null,0]
[null,null,null,"Субъект РФ",null,"Челябинская область"]

{"sheet":"Титульный","index":2,"n_rows":62,"n_cols":8,"rows_kept":62,"cut":false,"hidden":false,"merged":[[61,4,61,5],[57,4,57,6],[46,4,46,5],[47,4,47,5],[50,4,50,5],[51,4,51,5],[54,4,54,5],[55,4,55,5],[53,4,53,6],[59,4,59,5],[60,4,60,5],[45,4,45,6],[49,4,49,6],[58,4,58,5],[38,4,38,6],[28,4,28,5],[2,6,2,7],[6,4,6,5],[3,3,3,7],[32,4,32,5],[24,4,24,5],[26,4,26,5],[30,4,30,5],[9,4,9,5],[13,4,13,5],[15,4,15,5],[18,4,18,6],[41,2,43,2],[8,4,8,6],[34,4,35,4],[39,5,39,6],[41,4,42,4],[19,4,19,5],[23,4,23,5],[21,4,21,5],[11,4,11,5]]}
[{"$f":"region_name","v":"Челябинская область"},{"$f":"IF(god=\"\",\"Не определено\",god)","v":2011},{"$f":"org&\"_INN:\"&inn&\"_KPP:\"&kpp","v":"ММПКХ_INN:7422000570_KPP:742201001"}]
[{"$f":"IF(org=\"\",\"Не определено\",org)","v":"ММПКХ"},{"$f":"IF(inn=\"\",\"Не определено\",inn)","v":"7422000570"},null,null,null,null,null,{"$f":"codeTemplate","v":"Код шаблона: JKH.OPEN.INFO.BALANCE.WARM"}]
[null,null,null,null,null,null,{"$f":"version","v":{"$error":"#NAME?"}}]
[{"$f":"IF(fil=\"\",\"Не определено\",fil)","v":"Не определено"},{"$f":"IF(kpp=\"\",\"Не определено\",kpp)","v":"742201001"},null,"Показатели подлежащие раскрытию в сфере теплоснабжения и сфере оказания услуг по передаче тепловой энергии (4)"]
[]
[]
[null,null,null,null,"Субъект РФ",null,"Челябинская область"]
[]
[null,null,null,null,"Внимание! В зависимости от выбранного значения в поле \"Публикация\" изменяется содержание и количество листов!"]
[null,null,null,null,"Публикация",null,"На сайте регулирующего органа"]
[]
[null,null,null,null,"Происходило ли изменение тарифа в текущем году",null,"нет"]
[]
[null,null,null,null,"Отчетный период (факт)",null,2011]
[]
["L0","Признак филиала",null,null,"Является ли данное юридическое лицо подразделением (филиалом) другой организации",null,"нет"]
[]
[]
[66,null,null,null,"Дата последнего обновления реестра организаций: 28.03.2012 11:25:22"]
[null,null,null,null,"Наименование организации",null,"ММПКХ"]
[]
[null,null,null,null,"Наименование ПОДРАЗДЕЛЕНИЯ"]
[]
[null,null,null,null,"ИНН организации",null,"7422000570"]
[null,null,null,null,"КПП организации",null,"742201001"]
[]
[null,null,null,null,"Вид деятельности",null,"производство (некомбинированная выработка)+передача+сбыт"]
[]
[null,null,null,null,"Превышает ли выручка от регулируемой деятельности 80% совокупной выручки за отчетный год",null,"нет"]
[]
[null,null,null,null,"НДС",null,"отчетность представлена без НДС"]
[]
[null,null,null,null,"Организация выполняет инвестиционную программу",null,"нет"]
[]
[null,null,null,null,"Система коммунальной инфраструктуры","Условный порядковый номер",3]
[null,null,null,null,null,"Описание","Город Озерск (ЗАТО)"]
[]
[]
[null,null,null,null,"Дата последнего обновления реестра МР/МО: 28.03.2012 11:31:21"]
[null,null,null,null,"Муниципальный район, на территории которого размещена система коммунальной инфраструктуры","Муниципальное образование, на территории которого размещена система коммунальной инфраструктуры"]
[null,null,null,null,"Наименование МР","Наименование МО","ОКТМО"]
[null,null,null,null,"Город Озерск (ЗАТО)","Город Озерск (ЗАТО)","75743000"]
[null,null,null,null,null,"Добавить МО"]
[null,null,null,null,"Добавить МР"]
[]
[null,null,null,null,"Адрес организации"]
[null,null,null,null,"Юридический адрес:",null,"456785, г.Озерск, Челябинская обл., ул.Матросова 44"]
[null,null,null,null,"Почтовый адрес:",null,"456785, г.Озерск, Челябинская обл., ул.Матросова 44"]
[]
[null,null,null,null,"Руководитель"]
[null,null,null,null,"Фамилия, имя, отчество:",null,"Новиков Константин Иванович"]
[null,null,null,null,"(код) номер телефона:",null,"8(35130)43405, приемная 8(35130)46774"]
[]
[null,null,null,null,"Главный бухгалтер"]
[null,null,null,null,"Фамилия, имя, отчество:",null,"Кудрявцева Ольга Вениаминовна"]
[null,null,null,null,"(код) номер телефона:",null,"8(35130)45390"]
[]
[null,null,null,null,"Должностное лицо, ответственное за составление формы"]
[null,null,null,null,"Фамилия, имя, отчество:",null,"Лаврентьева Ольга Андреевна"]
[null,null,null,null,"Должность:",null,"экономист ПЭО"]
[null,null,null,null,"(код) номер телефона:",null,"8(35130)46705"]
[null,null,null,null,"e-mail:",null,"economist.olga@mail.ru"]

{"sheet":"ТС характеристики","index":3,"n_rows":21,"n_cols":7,"rows_kept":21,"cut":false,"hidden":false,"merged":[[7,3,7,7],[8,3,8,7],[6,3,6,7]]}
[]
[]
[]
[]
[]
[null,null,null,{"$f":"codeTemplate","v":"Код шаблона: JKH.OPEN.INFO.BALANCE.WARM"}]
[null,null,null,"Список листов"]
[null,null,null,"Информация об основных потребительских характеристиках регулируемых товаров и услуг регулируемых организаций и их соответствии государственным и иным утвержденным стандартам качества *"]
[null,null,null,{"$f":"IF(org=\"\",\"\",IF(fil=\"\",org,org & \" (\" & fil & \")\"))","v":"ММПКХ"}]
[]
[]
[null,null,null,null,"№ п/п","Наименование показателя","Значение"]
[null,null,null,null,"1","2","3"]
[null,null,null,null,1,"Количество аварий на системах теплоснабжения (единиц на км) **",0]
[null,null,null,null,2,"Количество часов (суммарно за календарный год), превышающих допустимую продолжительность перерыва подачи тепловой энергии в отопительный период",0]
[null,null,null,null,"2.1","Количество потребителей, затронутых ограничениями подачи тепловой энергии ",0]
[null,null,null,null,3,"Количество часов (суммарно за календарный год) отклонения от нормативной температуры воздуха по вине регулируемой организации в жилых и нежилых отапливаемых помещениях",0]
[null,null,null,null,"4","Комментарии","нет"]
[]
[null,null,null,null,"*","Раскрывается не позднее 30 дней со дня сдачи годового бухгалтерского баланса в налоговые органы."]
[null,null,null,null,"**","Учитывать любое нарушение системы."]

{"sheet":"ТС инвестиции","index":4,"n_rows":90,"n_cols":9,"rows_kept":90,"cut":false,"hidden":true,"merged":[[57,4,58,4],[57,5,58,5],[59,4,60,4],[61,4,62,4],[61,5,62,5],[59,5,60,5],[21,5,21,6],[35,4,36,4],[25,5,25,6],[26,5,26,6],[27,5,27,6],[23,5,23,6],[37,5,38,5],[22,5,22,6],[24,5,24,6],[30,5,30,6],[41,4,42,4],[41,5,42,5],[28,5,28,6],[32,5,32,6],[39,4,40,4],[39,5,40,5],[37,4,38,4],[35,5,36,5],[31,5,31,6],[34,5,34,6],[1,5,1,6],[3,4,4,4],[3,5,4,5],[20,5,20,6],[16,3,16,10],[17,3,17,10],[20,8,20,9],[6,4,13,4],[6,5,13,5],[43,4,44,4],[43,5,44,5],[47,4,48,4],[49,4,50,4],[49,5,50,5],[45,5,46,5],[45,4,46,4],[51,4,52,4],[51,5,52,5],[78,4,85,4],[78,5,85,5],[47,5,48,5],[68,4,76,4],[69,5,76,5],[68,5,68,6],[53,4,54,4],[53,5,54,5],[63,4,64,4],[63,5,64,5],[65,4,66,4],[65,5,66,5],[55,4,56,4],[55,5,56,5]]}
[]
[null,null,null,null,"5.1"]
[]
[null,null,null,null,"7.9",null,"Прогноз на отчетный период"]
[null,null,null,null,null,null,"Факт на отчетный период"]
[]
[null,null,null,null,"8.1",null,"I квартал, профинансировано"]
[null,null,null,null,null,null,"II квартал, профинансировано"]
[null,null,null,null,null,null,"III квартал, профинансировано"]
[null,null,null,null,null,null,"IV квартал, профинансировано"]
[null,null,null,null,null,null,"I квартал, освоено"]
[null,null,null,null,null,null,"II квартал, освоено"]
[null,null,null,null,null,null,"III квартал, освоено"]
[null,null,null,null,null,null,"IV квартал, освоено"]
[null,null,null,{"$f":"codeTemplate","v":"Код шаблона: JKH.OPEN.INFO.BALANCE.WARM"}]
[null,null,null,"Список листов"]
[null,null,null,"Информация об инвестиционных программах и отчетах об их реализации *"]
[null,null,null,{"$f":"IF(org=\"\",\"\",IF(fil=\"\",org,org & \" (\" & fil & \")\"))","v":"ММПКХ"}]
[]
[]
[null,"Мероприятие 1",null,null,"№ п/п","Наименование показателя",null,"Значение","Добавить мероприятие"]
[null,4,null,null,1,{"$f":"E22+1","v":2},null,"3"]
[null,null,null,null,1,"Наименование инвестиционной программы (мероприятия)"]
[null,"х",null,null,2,"Цель инвестиционной программы","Цель инвестиционной программы"]
[null,null,null,null,3,"Срок начала реализации инвестиционной программы"]
[null,null,null,null,4,"Срок окончания реализации инвестиционной программы"]
[null,{"$f":"SUM(B28:B30)","v":0},null,null,"5","Потребность в финансовых средствах, необходимых для реализации инвестиционной программы за весь период реализации (тыс.руб.), в том числе по источникам финансирования",null,{"$f":"SUM(H28:H30)","v":0}]
[null,null,null,null,"5.0"]
[null,null,null,null,"5.1"]
[null,null,null,null,null,"Добавить источники финансирования"]
[null,{"$f":"SUM(B32:B34)","v":0},null,null,"6","Потребность в финансовых средствах, необходимых для реализации инвестиционной программы за отчетный период (тыс.руб.), в том числе по источникам финансирования",null,{"$f":"SUM(H32:H34)","v":0}]
[null,null,null,null,"6.0"]
[null,null,null,null,"6.1"]
[null,null,null,null,null,"Добавить источники финансирования"]
[null,"х",null,null,"7","Эффективность реализации инвестиционной программы (включая изменения технико-экономических показателей организации):",null,"х"]
[null,"х",null,null,"7.1","Срок окупаемости, лет","Прогноз на отчетный период"]
[null,"х",null,null,null,null,"Факт на отчетный период"]
[null,null,null,null,"7.2","Перебои в снабжении потребителей (часов на потребителя)","Прогноз на отчетный период"]
[null,null,null,null,null,null,"Факт на отчетный период"]
[null,null,null,null,"7.3","Продолжительность (бесперебойность) поставки товаров и услуг (час/день)","Прогноз на отчетный период"]
[null,null,null,null,null,null,"Факт на отчетный период"]
[null,null,null,null,"7.4","Уровень потерь и неучтенного потребления (%)","Прогноз на отчетный период"]
[null,null,null,null,null,null,"Факт на отчетный период"]
[null,null,null,null,"7.5","Коэффициент потерь (Гкал/км)","Прогноз на отчетный период"]
[null,null,null,null,null,null,"Факт на отчетный период"]
[null,null,null,null,"7.6","Износ систем коммунальной инфраструктуры (%), в том числе:","Прогноз на отчетный период"]
[null,null,null,null,null,null,"Факт на отчетный период"]
[null,null,null,null,"7.7","износ оборудования производства (котлы)","Прогноз на отчетный период"]
[null,null,null,null,null,null,"Факт на отчетный период"]
[null,null,null,null,"7.8","износ оборудования передачи тепловой энергии (сети)","Прогноз на отчетный период"]
[null,null,null,null,null,null,"Факт на отчетный период"]
[null,null,null,null,"7.9","Удельный вес сетей, нуждающихся в замене (%)","Прогноз на отчетный период"]
[null,null,null,null,null,null,"Факт на отчетный период"]
[null,null,null,null,"7.10","Обеспеченность потребления товаров и услуг приборами учета (%)","Прогноз на отчетный период"]
[null,null,null,null,null,null,"Факт на отчетный период"]
[null,null,null,null,"7.11","Расход топлива на 1 Гкал, т.у.т./Гкал","Прогноз на отчетный период"]
[null,null,null,null,null,null,"Факт на отчетный период"]
[null,null,null,null,"7.12","Расход электроэнергии на выработку 1 Гкал, кВт∙ч/Гкал","Прогноз на отчетный период"]
[null,null,null,null,null,null,"Факт на отчетный период"]
[null,null,null,null,"7.13","Расход электроэнергии на передачу 1 Гкал, кВт.ч/Гкал","Прогноз на отчетный период"]
[null,null,null,null,null,null,"Факт на отчетный период"]
[null,null,null,null,"7.14","Количество аварий (с учетом котельных), ед","Прогноз на отчетный период"]
[null,null,null,null,null,null,"Факт на отчетный период"]
[null,null,null,null,"7.15","Количество аварий на 1 км тепловых сетей, ед.","Прогноз на отчетный период"]
[null,null,null,null,null,null,"Факт на отчетный период"]
[null,null,null,null,"7.16","Производительность труда на 1 человека, тыс. руб./чел.","Прогноз на отчетный период"]
[null,null,null,null,null,null,"Факт на отчетный период"]
[null,null,null,null,null,"Добавить показатель"]
[null,"х",null,null,"8","Использование инвестиционных средств за отчетный год (тыс.руб.)",null,"х"]
[null,{"$f":"SUMIF($G$78:$G$87,$G70,B$78:B$87)","v":0},null,null,null,"Всего, в том числе по источникам финансирования:","I квартал, профинансировано",{"$f":"SUMIF($G$78:$G$87,$G70,H$78:H$87)","v":0}]
[null,0,null,null,null,null,"II квартал, профинансировано",0]
[null,0,null,null,null,null,"III квартал, профинансировано",0]
[null,0,null,null,null,null,"IV квартал, профинансировано",0]
[null,0,null,null,null,null,"I квартал, освоено",0]
[null,0,null,null,null,null,"II квартал, освоено",0]
[null,0,null,null,null,null,"III квартал, освоено",0]
[null,0,null,null,null,null,"IV квартал, освоено",0]
[]
[null,null,null,null,"8.1",null,"I квартал, профинансировано"]
[null,null,null,null,null,null,"II квартал, профинансировано"]
[null,null,null,null,null,null,"III квартал, профинансировано"]
[null,null,null,null,null,null,"IV квартал, профинансировано"]
[null,null,null,null,null,null,"I квартал, освоено"]
[null,null,null,null,null,null,"II квартал, освоено"]
[null,null,null,null,null,null,"III квартал, освоено"]
[null,null,null,null,null,null,"IV квартал, освоено"]
[null,null,null,null,null,"Добавить источники финансирования"]
[null,"Удалить мероприятие"]
[]
[null,null,null,null,"* Раскрывается не позднее 30 дней со дня сдачи годового бухгалтерского баланса в налоговые органы"]

{"sheet":"ТС показатели","index":5,"n_rows":72,"n_cols":9,"rows_kept":72,"cut":false,"hidden":false,"merged":[[7,3,7,9],[8,3,8,9],[68,5,68,6],[63,5,63,6],[56,5,56,6],[57,5,57,6],[58,5,58,6],[59,5,59,6],[52,5,52,6],[53,5,53,6],[44,5,44,6],[45,5,45,6],[46,5,46,6],[47,5,47,6],[48,5,48,6],[36,5,36,6],[41,5,41,6],[69,5,69,6],[71,4,71,8],[49,5,49,6],[64,5,64,6],[65,5,65,6],[66,5,66,6],[67,5,67,6],[60,5,60,6],[61,5,61,6],[62,5,62,6],[55,5,55,6],[50,5,50,6],[51,5,51,6],[54,5,54,6],[18,4,21,4],[18,5,21,5],[23,5,23,6],[24,5,24,6],[43,5,43,6],[32,5,32,6],[33,5,33,6],[34,5,34,6],[35,5,35,6],[30,5,30,6],[31,5,31,6],[29,5,29,6],[37,5,37,6],[38,5,38,6],[39,5,39,6],[40,5,40,6],[17,5,17,6],[25,5,25,6],[26,5,26,6],[27,5,27,6],[28,5,28,6],[16,5,16,6],[13,5,13,6],[14,5,14,6],[15,5,15,6],[11,5,11,6],[12,5,12,6]]}
[]
[]
[]
[]
[]
[null,null,null,{"$f":"codeTemplate","v":"Код шаблона: JKH.OPEN.INFO.BALANCE.WARM"}]
[null,null,null,"Список листов"]
[null,null,null,"Информация об основных показателях финансово-хозяйственной деятельности регулируемых организаций, включая структуру основных производственных затрат\n(в части регулируемой деятельности) *"]
[null,null,null,{"$f":"IF(org=\"\",\"\",IF(fil=\"\",org,org & \" (\" & fil & \")\"))","v":"ММПКХ"}]
[]
[]
[null,null,null,null,"№ п/п","Наименование показателя",null,"Единица измерения","Значение"]
[null,null,null,null,1,{"$f":"E13+1","v":2},null,{"$f":"F13+1","v":3},{"$f":"H13+1","v":4}]
[null,null,null,null,"1","Вид регулируемой деятельности (производство, передача и сбыт тепловой энергии) ",null,"x",{"$f":"IF(activity = \"\",\"\",activity)","v":"производство (некомбинированная выработка)+передача+сбыт"}]
[null,null,null,null,2,"Выручка от регулируемой деятельности ",null,"тыс.руб.",{"$f":"671161.2+41727.8","v":712889}]
[null,null,null,null,3,"Себестоимость производимых товаров (оказываемых услуг) по регулируемому виду деятельности, в том числе: ",null,"тыс.руб.",{"$f":"SUM(I17:I18,I24,I27:I33,I36,I39,I42:I43)","v":764028.8958099999}]
[null,null,null,null,"3.1","Расходы на покупаемую тепловую энергию (мощность)",null,"тыс.руб.",{"$f":"542315.93+88940348.64/1000","v":631256.27864000003}]
[null,null,null,null,"3.2","Расходы на топливо",null,"тыс.руб.",{"$f":"SUMIF(G19:G23,G19,I19:I23)","v":27990.922190000001}]
[null,null,null,null,"3.2.1","газ природный по регулируемой цене","Стоимость","тыс.руб.",{"$f":"27990922.19/1000","v":27990.922190000001}]
[null,null,null,null,null,null,"Объем","тыс. м3",{"$f":"8958.512","v":8958.5120000000006}]
[null,null,null,null,null,null,"Стоимость 1й единицы объема с учетом доставки (транспортировки)","тыс.руб.",{"$f":"nerr(I19/I20)","v":{"$error":"#NAME?"}}]
[null,null,null,null,null,null,"Способ приобретения","x","прямые договора без торгов"]
[null,null,null,null,null,"Добавить вид топлива"]
[null,null,null,null,"3.3","Расходы на покупаемую электрическую энергию (мощность), потребляемую оборудованием, используемым в технологическом процессе:",null,"тыс.руб.",{"$f":"316851.98/1000+2509409.22/1000+211756.25/1000","v":3038.0174499999998}]
[null,null,null,null,"3.3.1","Средневзвешенная стоимость 1 кВт*ч (с учетом мощности)",null,"руб.",{"$f":"nerr(I24/I26)","v":{"$error":"#NAME?"}}]
[null,null,null,null,"3.3.2","Объем приобретенной электрической энергии",null,"тыс. кВт*ч",{"$f":"118087/1000+769668/1000+74090/1000","v":961.84500000000003}]
[null,null,null,null,"3.4","Расходы на приобретение холодной воды, используемой в технологическом процессе",null,"тыс.руб.",{"$f":"2953026*14.46/1000","v":42700.755960000002}]
[null,null,null,null,"3.5","Расходы на химреагенты, используемые в технологическом процессе",null,"тыс.руб.",{"$f":"(557.86+365.81-923.67)/1000+(552209.48)/1000","v":552.20947999999999}]
[null,null,null,null,"3.6","   Расходы на оплату труда основного производственного персонала",null,"тыс.руб.",{"$f":"(5025392.41+26501.54+84476.26+507.43+122913.73+572.79+923883.27+3134.7+3237356.77+1323.76+1103859.24)/1000+(3237356.77+1323.76)/1000","v":13768.602430000001}]
[null,null,null,null,"3.7","   Отчисления на социальные нужды основного производственного персонала",null,"тыс.руб.",{"$f":"(9985.12+1696631.79+167.81+28511.67+244.43+41523.8+1842.94+313150.92+6417.52+1093884.7+2189.85+372279.74)/1000+(6417.52+1093884.7)/1000","v":4667.1325099999995}]
[null,null,null,null,"3.8","Расходы на амортизацию основных производственных средств, используемых в технологическом процессе",null,"тыс.руб.",{"$f":"(4109672.73+70573.52+97914.94+161962.49+103968.89+1060282.71)/1000+103968.09/1000","v":5708.3433700000005}]
[null,null,null,null,"3.9","Расходы на аренду имущества, используемого в технологическом процессе",null,"тыс.руб.",{"$f":"3000/1000+9000/1000","v":12}]
[null,null,null,null,"3.10","Общепроизводственные (цеховые) расходы, в том числе:",null,"тыс.руб.",13236.62]
[null,null,null,null,"3.10.1","Расходы на оплату труда",null,"тыс.руб.",{"$f":"(1577696.83+4446.1+27653.1+80.5+37164.26+115.99+243152+268177.89+886777.61)/1000+(268177.89)/1000","v":3313.4421700000003}]
[null,null,null,null,"3.10.2","Отчисления на социальные нужды",null,"тыс.руб.",{"$f":"(3155.79+536506.96+55.27+9402+74.58+12635.76+486.31+82671.36+536.39+91180.36+1106.5+188096.5)/1000+(91180.36+536.39)/1000","v":1017.62453}]
[null,null,null,null,"3.11","Общехозяйственные (управленческие) расходы",null,"тыс.руб.",{"$f":"(4767040.95+89439.73+93008.17+546578.29+1946568.94+1029473.32)/1000+2073908.32/1000","v":10546.017720000002}]
[null,null,null,null,"3.11.1","Расходы на оплату труда",null,"тыс.руб.",5136.6899999999996]
[null,null,null,null,"3.11.2","Отчисления на социальные нужды",null,"тыс.руб.",1721.34]
[null,null,null,null,"3.12","Расходы на  ремонт основных производственных средств",null,"тыс.руб.",{"$f":"SUM(I40:I41)","v":8755.8390499999987}]
[null,null,null,null,"3.12.1","Расходы на капитальный ремонт основных производственных средств",null,"тыс.руб.",{"$f":"(1698213.6+31671.78+30070.42+61546.09)/1000","v":1821.5018900000002}]
[null,null,null,null,"3.12.2","Расходы на текущий ремонт основных производственных средств",null,"тыс.руб.",{"$f":"(68142.44+854306.81+1389191.31+1118.26+14748.96+24788.19+1689.37+20536.94+25901.04+94600.26+75434.62+185053.27+884522.27+304881.07+633654.67+3980.34+113366.39+345928.64)/1000+863721.97/1000+347312.5/1000+681457.84/1000","v":6934.3371599999982}]
[null,null,null,null,"3.13","Расходы на услуги производственного характера, выполняемые по договорам с организациями на проведение регламентных работ в рамках технологического процесса",null,"тыс.руб.",{"$f":"(1100305.71+27857.77-22196.97+1114.41+211089.2+381035.45)/1000+96951.44/1000","v":1796.1570099999999}]
[null,null,null,null,null,"Добавить запись"]
[null,null,null,null,"4","Валовая прибыль от продажи товаров и услуг по регулируемому виду деятельности (теплоснабжение и передача тепловой энергии)",null,"тыс.руб.",{"$f":"I15-I16","v":-51139.8958099999}]
[null,null,null,null,"5","Чистая прибыль от регулируемого вида деятельности, в том числе:",null,"тыс.руб.",{"$f":"I44","v":-51139.8958099999}]
[null,null,null,null,"5.1","чистая прибыль на финансирование мероприятий, предусмотренных инвестиционной программой по развитию системы теплоснабжения",null,"тыс.руб.",0]
[null,null,null,null,"6","Изменение стоимости основных фондов:",null,"тыс.руб.",{"$f":"I48+I49-I50","v":69770.709999999992}]
[null,null,null,null,"6.1","стоимость основных фондов на начало отчетного периода",null,"тыс.руб.",81658.92]
[null,null,null,null,"6.2","стоимость введенных в эксплуатацию основных фондов",null,"тыс.руб.",4708.6899999999996]
[null,null,null,null,"6.3","стоимость выведенных из эксплуатации основных фондов",null,"тыс.руб.",16596.900000000001]
[null,null,null,null,"7","Установленная тепловая мощность ",null,"Гкал/ч",{"$f":"60.7+22.44","v":83.14}]
[null,null,null,null,"8","Присоединенная нагрузка ",null,"Гкал/ч",{"$f":"33.3+22.6","v":55.9}]
[null,null,null,null,"9","Объем вырабатываемой регулируемой организацией тепловой энергии ",null,"тыс. Гкал",{"$f":"53040/1000","v":53.04}]
[null,null,null,null,"9.1","Справочно: объем тепловой энергии на технологические нужды производства",null,"тыс. Гкал",2.6356999999999999]
[null,null,null,null,"10","Объем покупаемой регулируемой организацией тепловой энергии",null,"тыс. Гкал",{"$f":"178.783","v":178.78299999999999}]
[null,null,null,null,"11","Объем тепловой энергии, отпускаемой потребителям, в том числе:",null,"тыс. Гкал",{"$f":"SUM(I57:I58)","v":1009.784}]
[null,null,null,null,"11.1","По приборам учета",null,"тыс. Гкал",{"$f":"1.504+44.234+0.08","v":45.817999999999998}]
[null,null,null,null,"11.2","По нормативам потребления",null,"тыс. Гкал",{"$f":"909.79+44.234+34.17+21.59-I57","v":963.96600000000001}]
[null,null,null,null,"12","Технологические потери тепловой энергии при передаче по тепловым сетям",null,"%",17.18]
[null,null,null,null,"13","Справочно: потери тепла через изоляцию труб",null,"тыс.Гкал",{"$f":"190824.802/1000","v":190.82480200000001}]
[null,null,null,null,"14","Протяженность магистральных сетей и тепловых вводов (в однотрубном исчислении)",null,"км",{"$f":"223.3+12.22","v":235.52}]
[null,null,null,null,"15","Протяженность разводящих сетей (в однотрубном исчислении)",null,"км",{"$f":"91.7+5.02","v":96.72}]
[null,null,null,null,"16","Количество теплоэлектростанций",null,"ед.",0]
[null,null,null,null,"17","Количество тепловых станций и котельных",null,"ед.",{"$f":"2+2","v":4}]
[null,null,null,null,"18","Количество тепловых пунктов",null,"ед.",0]
[null,null,null,null,"19","Среднесписочная численность основного производственного персонала",null,"чел.",115]
[null,null,null,null,"20","Удельный расход условного топлива на единицу тепловой энергии, отпускаемой в тепловую сеть",null,"кг у.т./Гкал",139.22]
[null,null,null,null,"21","Удельный расход электрической энергии на единицу тепловой энергии, отпускаемой в тепловую сеть",null,"кВт*ч/Гкал",{"$f":"I26/I56","v":0.95252549059996994}]
[null,null,null,null,"22","Удельный расход холодной воды на единицу тепловой энергии, отпускаемой в тепловую сеть",null,"куб. м/Гкал",{"$f":"I27/I56","v":42.287019758681069}]
[null,null,null,null,"23","Комментарии",null,null,"нет"]
[]
[null,null,null,null,"* Раскрывается не позднее 30 дней со дня сдачи годового бухгалтерского баланса в налоговые органы."]

{"sheet":"ТС показатели (2)","index":6,"n_rows":45,"n_cols":9,"rows_kept":45,"cut":false,"hidden":false,"merged":[[13,5,13,6],[14,4,17,4],[14,5,17,5],[38,5,41,5],[7,3,7,9],[8,3,8,9],[11,5,11,6],[18,4,21,4],[18,5,21,5],[12,5,12,6],[44,4,44,9],[23,5,23,6],[33,5,33,6],[24,4,27,4],[24,5,27,5],[34,4,37,4],[34,5,37,5],[38,4,41,4],[28,4,31,4],[28,5,31,5]]}
[]
[]
[]
[]
[]
[null,null,null,{"$f":"codeTemplate","v":"Код шаблона: JKH.OPEN.INFO.BALANCE.WARM"}]
[null,null,null,"Список листов"]
[null,null,null,"Информация об объемах товаров и услуг, их стоимости и способах приобретения *"]
[null,null,null,{"$f":"IF(org=\"\",\"\",IF(fil=\"\",org,org & \" (\" & fil & \")\"))","v":"ММПКХ"}]
[]
[]
[null,null,null,null,"№ п/п","Наименование товара/услуги",null,"Единица измерения","Значение"]
[null,null,null,null,1,{"$f":"E13+1","v":2},null,{"$f":"F13+1","v":3},{"$f":"H13+1","v":4}]
[null,null,null,null,1,"Расходы на капитальный ремонт основных производственных средств",null,null,{"$f":"SUMIF(G15:G23,G15,I15:I23)","v":1821.5018900000002}]
[null,null,null,null,"1.0",null,"Стоимость"]
[null,null,null,null,null,null,"Кол-во"]
[null,null,null,null,null,null,"Стоимость 1й единицы с учетом доставки (транспортировки)"]
[null,null,null,null,null,null,"Способ приобретения"]
[null,null,null,null,"1.1",null,"Стоимость","тыс.руб.",{"$f":"'ТС показатели'!I40","v":1821.5018900000002}]
[null,null,null,null,null,null,"Кол-во","шт",1]
[null,null,null,null,null,null,"Стоимость 1й единицы с учетом доставки (транспортировки)","тыс.руб.",{"$f":"IF(I20=\"\",0,IF(I20=0,0,I19/I20))","v":1821.5018900000002}]
[null,null,null,null,null,null,"Способ приобретения","x","прочее"]
[null,null,null,null,null,"Добавить запись"]
[null,null,null,null,2,"Расходы на текущий  ремонт основных производственных средств",null,null,{"$f":"SUMIF(G25:G33,G25,I25:I33)","v":6934.3371599999982}]
[null,null,null,null,"2.0",null,"Стоимость"]
[null,null,null,null,null,null,"Кол-во"]
[null,null,null,null,null,null,"Стоимость 1й единицы с учетом доставки (транспортировки)"]
[null,null,null,null,null,null,"Способ приобретения"]
[null,null,null,null,"2.1",null,"Стоимость","тыс.руб.",{"$f":"'ТС показатели'!I41","v":6934.3371599999982}]
[null,null,null,null,null,null,"Кол-во","шт",1]
[null,null,null,null,null,null,"Стоимость 1й единицы с учетом доставки (транспортировки)","тыс.руб.",{"$f":"IF(I30=\"\",0,IF(I30=0,0,I29/I30))","v":6934.3371599999982}]
[null,null,null,null,null,null,"Способ приобретения","x","прочее"]
[null,null,null,null,null,"Добавить запись"]
[null,null,null,null,3,"Расходы на услуги производственного характера, выполняемые по договорам с организациями на проведение регламентных работ в рамках технологического процесса",null,null,{"$f":"SUMIF(G35:G43,G35,I35:I43)","v":1796.1570099999999}]
[null,null,null,null,"3.0",null,"Стоимость"]
[null,null,null,null,null,null,"Кол-во"]
[null,null,null,null,null,null,"Стоимость 1й единицы с учетом доставки (транспортировки)"]
[null,null,null,null,null,null,"Способ приобретения"]
[null,null,null,null,"3.1",null,"Стоимость","тыс.руб.",{"$f":"'ТС показатели'!I42","v":1796.1570099999999}]
[null,null,null,null,null,null,"Кол-во","шт",1]
[null,null,null,null,null,null,"Стоимость 1й единицы с учетом доставки (транспортировки)","тыс.руб.",{"$f":"IF(I40=\"\",0,IF(I40=0,0,I39/I40))","v":1796.1570099999999}]
[null,null,null,null,null,null,"Способ приобретения","x","прямые договора без торгов"]
[null,null,null,null,null,"Добавить запись"]
[]
[null,null,null,null,"* Раскрывается не позднее 30 дней со дня сдачи годового бухгалтерского баланса в налоговые органы"]

{"sheet":"Ссылки на публикации","index":7,"n_rows":23,"n_cols":8,"rows_kept":23,"cut":false,"hidden":false,"merged":[[22,4,22,7],[20,4,20,7],[21,4,21,7],[5,3,5,8],[6,3,6,8],[9,4,9,7]]}
[]
[]
[]
[null,null,null,{"$f":"codeTemplate","v":"Код шаблона: JKH.OPEN.INFO.BALANCE.WARM"}]
[null,null,null,"Список листов"]
[null,null,null,"Ссылки на публикации в других источниках"]
[null,null,null,{"$f":"IF(org=\"\",\"\",IF(fil=\"\",org,org & \" (\" & fil & \")\"))","v":"ММПКХ"}]
[]
[]
[null,null,null,null,"Указание на официальное печатное издание и (или) адрес сайта в сети Интернет, которые используются для размещения раскрываемой информации *"]
[]
[null,null,null,null,"№ п/п","Содержание пункта","Адрес сайта в сети Интернет","Печатное издание"]
[null,null,null,null,1,{"$f":"E13+1","v":2},3,4]
[null,null,null,null,1,"Информация об основных потребительских характеристиках регулируемых товаров и услуг регулируемых организаций и их соответствии государственным и иным утвержденным стандартам качества ","нет","нет"]
[null,null,null,null,2,"Информация об инвестиционных программах и отчетах об их реализации **"]
[null,null,null,null,3,"Информация об основных показателях финансово-хозяйственной деятельности регулируемых организаций, включая структуру основных производственных затрат (в части регулируемой деятельности)","www.ozerskadm.ru","нет"]
[null,null,null,null,4,"Информация о расходах на капитальный и текущий ремонт, услуги производственного характера","нет","нет"]
[null,null,null,null,"5","Сведения об источнике публикации годовой бухгалтерской отчетности, включая бухгалтерский баланс и приложения к нему ***","нет","нет"]
[null,null,null,"end",null,"Добавить запись"]
[]
[null,null,null,null,"* Источники публикации сообщаются в течение 5 рабочих дней со дня опубликования информации в официальных печатных изданиях (размещения на сайте в сети Интернет). Информация раскрывается не позднее 30 дней со дня сдачи годового бухгалтерского баланса в налоговые органы."]
[null,null,null,null,"** Информация подлежит публикованию в официальных печатных изданиях (со ссылкой на адрес сайта в сети Интернет). В случае, если информация публикуется на сайте регулирующего органа, достаточно указать официальное печатное издание. В случае, если информация публикуется на сайте организации, необходимо указать и печатное издание, и адрес сайта в сети Интернет."]
[null,null,null,null,"*** Раскрывается в случае, если выручка от регулируемой деятельности превышает 80% совокупной выручки за отчетный год."]

{"sheet":"Титульный (2)","index":8,"n_rows":62,"n_cols":8,"rows_kept":62,"cut":false,"hidden":false,"merged":[[55,4,55,5],[57,4,57,6],[58,4,58,5],[59,4,59,5],[60,4,60,5],[61,4,61,5],[47,4,47,5],[49,4,49,6],[50,4,50,5],[51,4,51,5],[53,4,53,6],[54,4,54,5],[38,4,38,6],[39,5,39,6],[41,2,43,2],[41,4,42,4],[45,4,45,6],[46,4,46,5],[24,4,24,5],[26,4,26,5],[28,4,28,5],[30,4,30,5],[32,4,32,5],[34,4,35,4],[13,4,13,5],[15,4,15,5],[18,4,18,6],[19,4,19,5],[21,4,21,5],[23,4,23,5],[2,6,2,7],[3,3,3,7],[6,4,6,5],[8,4,8,6],[9,4,9,5],[11,4,11,5]]}
[{"$f":"region_name","v":"Челябинская область"},{"$f":"IF(god=\"\",\"Не определено\",god)","v":2011},{"$f":"org&\"_INN:\"&inn&\"_KPP:\"&kpp","v":"ММПКХ_INN:7422000570_KPP:742201001"}]
[{"$f":"IF(org=\"\",\"Не определено\",org)","v":"ММПКХ"},{"$f":"IF(inn=\"\",\"Не определено\",inn)","v":"7422000570"},null,null,null,null,null,{"$f":"codeTemplates","v":"Код шаблона: JKH.OPEN.INFO.BALANCE.VO"}]
[null,null,null,null,null,null,{"$f":"version","v":"Версия 4.1"}]
[{"$f":"IF(fil=\"\",\"Не определено\",fil)","v":"Не определено"},{"$f":"IF(kpp=\"\",\"Не определено\",kpp)","v":"742201001"},null,"Показатели подлежащие раскрытию в сфере водоотведения и (или) очистки сточных вод (4)"]
[]
[]
[null,null,null,null,"Субъект РФ",null,"Челябинская область"]
[]
[null,null,null,null,"Внимание! В зависимости от выбранного значения в поле \"Публикация\" изменяется содержание и количество листов!"]
[null,null,null,null,"Публикация",null,"На сайте регулирующего органа"]
[]
[null,null,null,null,"Происходило ли изменение тарифа в текущем году",null,"нет"]
[]
[null,null,null,null,"Отчетный период (факт)",null,2011]
[]
["L0","Признак филиала",null,null,"Является ли данное юридическое лицо подразделением (филиалом) другой организации",null,"нет"]
[]
[]
[66,null,null,null,"Дата последнего обновления реестра организаций: 29.03.2012 16:22:16"]
[null,null,null,null,"Наименование организации",null,"ММПКХ"]
[]
[null,null,null,null,"Наименование ПОДРАЗДЕЛЕНИЯ"]
[]
[null,null,null,null,"ИНН организации",null,"7422000570"]
[null,null,null,null,"КПП организации",null,"742201001"]
[]
[null,null,null,null,"Вид деятельности"]
[]
[null,null,null,null,"Превышает ли выручка от регулируемой деятельности 80% совокупной выручки за отчетный год",null,"нет"]
[]
[null,null,null,null,"НДС",null,"отчетность представлена без НДС"]
[]
[null,null,null,null,"Организация выполняет инвестиционную программу",null,"нет"]
[]
[null,null,null,null,"Система коммунальной инфраструктуры","Условный порядковый номер",3]
[null,null,null,null,null,"Описание","Город Озерск (ЗАТО)"]
[]
[]
[null,null,null,null,"Дата последнего обновления реестра МР/МО: 29.03.2012 16:24:41"]
[null,null,null,null,"Муниципальный район, на территории которого размещена система коммунальной инфраструктуры","Муниципальное образование, на территории которого размещена система коммунальной инфраструктуры"]
[null,null,null,null,"Наименование МР","Наименование МО","ОКТМО"]
[null,null,null,null,"Город Озерск (ЗАТО)","Город Озерск (ЗАТО)","75743000"]
[null,null,null,null,null,"Добавить МО"]
[null,null,null,null,"Добавить МР"]
[]
[null,null,null,null,"Адрес организации"]
[null,null,null,null,"Юридический адрес:",null,"456785, г.Озерск, Челябинская обл., ул.Матросова 44"]
[null,null,null,null,"Почтовый адрес:",null,"456785, г.Озерск, Челябинская обл., ул.Матросова 44"]
[]
[null,null,null,null,"Руководитель"]
[null,null,null,null,"Фамилия, имя, отчество:",null,"Новиков Константин Иванович"]
[null,null,null,null,"(код) номер телефона:",null,"8(35130)43405, приемная 8(35130)46774"]
[]
[null,null,null,null,"Главный бухгалтер"]
[null,null,null,null,"Фамилия, имя, отчество:",null,"Кудрявцева Ольга Вениаминовна"]
[null,null,null,null,"(код) номер телефона:",null,"8(35130)45390"]
[]
[null,null,null,null,"Должностное лицо, ответственное за составление формы"]
[null,null,null,null,"Фамилия, имя, отчество:",null,"Лаврентьева Ольга Андреевна"]
[null,null,null,null,"Должность:",null,"экономист ПЭО"]
[null,null,null,null,"(код) номер телефона:",null,"8(35130)46705"]
[null,null,null,null,"e-mail:",null,"economist.olga@mail.ru"]

{"sheet":"ВО характеристики","index":9,"n_rows":35,"n_cols":7,"rows_kept":35,"cut":false,"hidden":false,"merged":[[6,3,6,7],[7,3,7,7],[8,3,8,7]]}
[]
[]
[]
[]
[]
[null,null,null,{"$f":"codeTemplates","v":"Код шаблона: JKH.OPEN.INFO.BALANCE.VO"}]
[null,null,null,"Список листов"]
[null,null,null,"Информация об основных потребительских характеристиках регулируемых товаров и услуг регулируемых организаций и их соответствии государственным и иным утвержденным стандартам качества *"]
[null,null,null,{"$f":"IF(org=\"\",\"\",IF(fil=\"\",org,org & \" (\" & fil & \")\"))","v":"ММПКХ"}]
[]
[]
[null,null,null,null,"№ п/п","Наименование показателя","Значение"]
[null,null,null,null,"1","2","3"]
[null,null,null,null,1,"Количество аварий на 1 км сетей водоотведения, ед. **",0]
[null,null,null,null,"2","Количество засоров на 1 км самотечных сетей, ед.",0]
[null,null,null,null,"3","Общее количество проведенных проб на сбросе очищенных (частично очищенных) сточных вод по следующим показателям:",{"$f":"SUM(G17:G23)","v":2484}]
[null,null,null,null,"3.1","взвешенные вещества",1674]
[null,null,null,null,"3.2","БПК",120]
[null,null,null,null,"3.3","аммоний-ион",198]
[null,null,null,null,"3.4","нитрит-анион",186]
[null,null,null,null,"3.5","фосфаты (по Р)",120]
[null,null,null,null,"3.6","нефтепродукты",186]
[null,null,null,null,"3.7","микробиология",0]
[null,null,null,null,"4","Количество проведенных проб, выявивших несоответствие очищенных (частично очищенных) сточных вод санитарным нормам (предельно допустимой концентрации) на сбросе очищенных (частично очищенных) сточных вод, по следующим показателям:",{"$f":"SUM(G25:G31)","v":0}]
[null,null,null,null,"4.1","взвешенные вещества",0]
[null,null,null,null,"4.2","БПК",0]
[null,null,null,null,"4.3","аммоний-ион",0]
[null,null,null,null,"4.4","нитрит-анион",0]
[null,null,null,null,"4.5","фосфаты (по Р)",0]
[null,null,null,null,"4.6","нефтепродукты",0]
[null,null,null,null,"4.7","микробиология",0]
[null,null,null,null,"5","Комментарии","нет"]
[]
[null,null,null,null,"*","Раскрывается не позднее 30 дней со дня сдачи годового бухгалтерского баланса в налоговые органы."]
[null,null,null,null,"**","Учитывать любое нарушение системы."]

{"sheet":"ВО показатели","index":10,"n_rows":67,"n_cols":8,"rows_kept":67,"cut":false,"hidden":false,"merged":[[7,3,7,8],[8,3,8,8],[66,4,66,7]]}
[]
[]
[]
[]
[]
[null,null,null,{"$f":"codeTemplates","v":"Код шаблона: JKH.OPEN.INFO.BALANCE.VO"}]
[null,null,null,"Список листов"]
[null,null,null,"Информация об основных показателях финансово-хозяйственной деятельности регулируемых организаций, включая структуру основных производственных затрат\n(в части регулируемой деятельности) *"]
[null,null,null,{"$f":"IF(org=\"\",\"\",IF(fil=\"\",org,org & \" (\" & fil & \")\"))","v":"ММПКХ"}]
[]
[]
[null,null,null,null,"№ п/п","Наименование показателя","Единица измерения","Значение"]
[null,null,null,null,1,{"$f":"E13+1","v":2},{"$f":"F13+1","v":3},{"$f":"G13+1","v":4}]
[null,null,null,null,"1","Вид регулируемой деятельности","x",{"$f":"IF(activity = \"\",\"\",activity)","v":""}]
[null,null,null,null,"2","Выручка от регулируемой деятельности","тыс.руб.",92750.8]
[null,null,null,null,"3","Себестоимость производимых товаров (оказываемых услуг) по регулируемому виду деятельности (тыс. рублей), включающей:","тыс.руб.",{"$f":"SUM(H17:H18,H21,H31:H35,H38,H41,H48:H49)","v":99494.804239999998}]
[null,null,null,null,"3.1","Расходы на оплату услуг по перекачке и очистке сточных вод другими организациями","тыс.руб.",{"$f":"1458217.42/1000","v":1458.2174199999999}]
[null,null,null,null,"3.2","Расходы на покупаемую электрическую энергию (мощность), потребляемую оборудованием, используемым в технологическом процессе:","тыс.руб.",{"$f":"15781801.84/1000","v":15781.80184}]
[null,null,null,null,"3.2.1","средневзвешенная стоимость 1 кВт*ч (с учетом мощности)","руб.",{"$f":"nerr(H18/H20)","v":{"$error":"#NAME?"}}]
[null,null,null,null,"3.2.2","объем приобретенной электрической энергии","тыс. кВт*ч",{"$f":"4492067/1000+189580/1000+167911/1000+73971/1000","v":4923.5290000000005}]
[null,null,null,null,"3.3","Реагенты","тыс.руб.",{"$f":"252170.35/1000","v":252.17035000000001}]
[null,null,null,null,"3.3.1","Количество использованного реагента, в том числе:","тонн",{"$f":"SUM(H23:H30)","v":8.2324000000000002}]
[null,null,null,null,"3.3.1.1","хлора (всех видов)","тонн",0]
[null,null,null,null,"3.3.1.2","алюминия сульфата","тонн",0]
[null,null,null,null,"3.3.1.3","гипохлорита натрия","тонн",0]
[null,null,null,null,"3.3.1.4","гипохлорита кальция","тонн",0]
[null,null,null,null,"3.3.1.5","аммиака","тонн",0]
[null,null,null,null,"3.3.1.6","активированного угля","тонн",0]
[null,null,null,null,"3.3.1.7","коагулянтов и флокулянтов","тонн",0]
[null,null,null,null,"3.3.1.8","прочих","тонн",8.2324000000000002]
[null,null,null,null,"3.4","Расходы на оплату труда основного производственного персонала","тыс.руб.",{"$f":"(21996303.35+71576.26)/1000","v":22067.879610000004}]
[null,null,null,null,"3.5","Отчисления на социальные нужды основного производственного персонала","тыс.руб.",{"$f":"(42949.65+7318339.29)/1000","v":7361.2889400000004}]
[null,null,null,null,"3.6","Расходы на амортизацию основных производственных средств","тыс.руб.",{"$f":"8192320.57/1000","v":8192.3205699999999}]
[null,null,null,null,"3.7","Расходы на аренду имущества, используемого в технологическом процессе","тыс.руб.",{"$f":"36000/1000","v":36}]
[null,null,null,null,"3.8","Общепроизводственные (цеховые) расходы","тыс.руб.",23075.599999999999]
[null,null,null,null,"3.8.1","расходы на оплату труда","тыс.руб.",{"$f":"(1198063.81)/1000","v":1198.0638100000001}]
[null,null,null,null,"3.8.2","отчисления на социальные нужды","тыс.руб.",{"$f":"(7759.94+1317012.19)/1000","v":1324.7721299999998}]
[null,null,null,null,"3.9","Общехозяйственные (управленческие) расходы","тыс.руб.",{"$f":"13955903.37/1000","v":13955.90337}]
[null,null,null,null,"3.9.1","расходы на оплату труда","тыс.руб.",6797.55]
[null,null,null,null,"3.9.2","отчисления на социальные нужды","тыс.руб.",2277.9]
[null,null,null,null,"3.10","Ремонт и техническое обслуживание основных производственных средств, в том числе:","тыс.руб.",{"$f":"H42+H43","v":5910.0097599999999}]
[null,null,null,null,"3.10.1","капитальный ремонт основных средств","тыс.руб.",{"$f":"72796.08/1000","v":72.796080000000003}]
[null,null,null,null,"3.10.2","текущий ремонт основных средств","тыс.руб.",{"$f":"(946340.06-1334798.87+1420158.33+4805514.16)/1000","v":5837.2136799999998}]
[null,null,null,null,"3.10.3","заработная плата ремонтного персонала","тыс.руб.",0]
[null,null,null,null,"3.10.4","среднемесячная оплата труда рабочего 1 разряда (в случае отсутствия тарифной сетки - средняя оплата труда рабочих)","тыс.руб.",0]
[null,null,null,null,"3.10.5","численность ремонтного персонала на конец отчетного периода","чел",0]
[null,null,null,null,"3.10.6","отчисления на соц. нужды от заработной платы ремонтного персонала","тыс.руб.",0]
[null,null,null,null,"3.11","Расходы на услуги производственного характера, выполняемые по договорам с организациями на проведение регламентных работ в рамках технологического процесса","тыс.руб.",{"$f":"(1254933.05+148679.33)/1000","v":1403.61238}]
[null,null,null,null,null,"Добавить запись"]
[null,null,null,null,"4","Валовая прибыль от продажи товаров и услуг по регулируемому виду деятельности (водоотведение и (или) очистка сточных вод)","тыс.руб.",{"$f":"H15-H16","v":-6744.0042399999948}]
[null,null,null,null,"5","Чистая прибыль по регулируемому виду деятельности","тыс.руб.",{"$f":"H50","v":-6744.0042399999948}]
[null,null,null,null,"5.1","в том числе чистая прибыль на финансирование мероприятий, предусмотренных инвестиционной программой по развитию системы водоотведения и (или) объектов по очистке сточных вод","тыс.руб.",0]
[null,null,null,null,"6","Изменение стоимости основных фондов","тыс.руб.",{"$f":"H54+H55-H56","v":158583.34}]
[null,null,null,null,"6.1","стоимость основных фондов на начало отчетного периода","тыс.руб.",111608.87]
[null,null,null,null,"6.2","стоимость введенных в эксплуатацию основных фондов","тыс.руб.",47036.99]
[null,null,null,null,"6.3","стоимость выведенных из эксплуатации основных фондов","тыс.руб.",62.52]
[null,null,null,null,"7","Объем сточных вод, принятых от потребителей оказываемых услуг","тыс.куб.м",10788.1]
[null,null,null,null,"8","Объем сточных вод, принятых от других регулируемых организаций в сфере водоотведения и (или) очистки сточных вод","тыс.куб.м",0]
[null,null,null,null,"9","Объем сточных вод, пропущенных через очистные сооружения","тыс.куб.м",10632.2]
[null,null,null,null,"10","Протяженность самотечных канализационных сетей (в однотрубном исчислении)","км",180.02]
[null,null,null,null,"11","Протяженность напорных канализационных сетей (в однотрубном исчислении)","км",{"$f":"(400+3057+38648.54+4375.9)/1000","v":46.481439999999999}]
[null,null,null,null,"12","Количество насосных станций","ед.",27]
[null,null,null,null,"13","Количество очистных сооружений","ед.",1]
[null,null,null,null,"14","Среднесписочная численность основного производственного персонала","чел",168]
[null,null,null,null,"15","Комментарии",null,"нет"]
[]
[null,null,null,null,"* Раскрывается не позднее 30 дней со дня сдачи годового бухгалтерского баланса в налоговые органы"]

{"sheet":"ВО показатели (2)","index":11,"n_rows":45,"n_cols":9,"rows_kept":45,"cut":false,"hidden":false,"merged":[[44,4,44,9],[28,4,31,4],[28,5,31,5],[33,5,33,6],[34,4,37,4],[34,5,37,5],[38,4,41,4],[38,5,41,5],[14,4,17,4],[14,5,17,5],[18,4,21,4],[18,5,21,5],[23,5,23,6],[24,4,27,4],[24,5,27,5],[6,3,6,9],[7,3,7,9],[8,3,8,9],[11,5,11,6],[12,5,12,6],[13,5,13,6]]}
[]
[]
[]
[]
[]
[null,null,null,{"$f":"codeTemplates","v":"Код шаблона: JKH.OPEN.INFO.BALANCE.VO"}]
[null,null,null,"Список листов"]
[null,null,null,"Информация об объемах товаров и услуг, их стоимости и способах приобретения *"]
[null,null,null,{"$f":"IF(org=\"\",\"\",IF(fil=\"\",org,org & \" (\" & fil & \")\"))","v":"ММПКХ"}]
[]
[]
[null,null,null,null,"№ п/п","Наименование товара/услуги",null,"Единица измерения","Значение"]
[null,null,null,null,1,{"$f":"E13+1","v":2},null,{"$f":"F13+1","v":3},{"$f":"H13+1","v":4}]
[null,null,null,null,1,"Расходы на капитальный ремонт основных производственных средств",null,null,{"$f":"SUMIF(G15:G23,G15,I15:I23)","v":72.796080000000003}]
[null,null,null,null,"1.0",null,"Стоимость"]
[null,null,null,null,null,null,"Кол-во"]
[null,null,null,null,null,null,"Стоимость 1й единицы с учетом доставки (транспортировки)"]
[null,null,null,null,null,null,"Способ приобретения"]
[null,null,null,null,"1.1",null,"Стоимость","тыс.руб.",{"$f":"'[1]ВО показатели'!H42","v":72.796080000000003}]
[null,null,null,null,null,null,"Кол-во","шт",1]
[null,null,null,null,null,null,"Стоимость 1й единицы с учетом доставки (транспортировки)","тыс.руб.",{"$f":"IF(I20=\"\",0,IF(I20=0,0,I19/I20))","v":72.796080000000003}]
[null,null,null,null,null,null,"Способ приобретения","x","прочее"]
[null,null,null,null,null,"Добавить запись"]
[null,null,null,null,2,"Расходы на текущий  ремонт основных производственных средств",null,null,{"$f":"SUMIF(G25:G33,G25,I25:I33)","v":5837.2136799999998}]
[null,null,null,null,"2.0",null,"Стоимость"]
[null,null,null,null,null,null,"Кол-во"]
[null,null,null,null,null,null,"Стоимость 1й единицы с учетом доставки (транспортировки)"]
[null,null,null,null,null,null,"Способ приобретения"]
[null,null,null,null,"2.1",null,"Стоимость","тыс.руб.",{"$f":"'[1]ВО показатели'!H43","v":5837.2136799999998}]
[null,null,null,null,null,null,"Кол-во","шт",1]
[null,null,null,null,null,null,"Стоимость 1й единицы с учетом доставки (транспортировки)","тыс.руб.",{"$f":"IF(I30=\"\",0,IF(I30=0,0,I29/I30))","v":5837.2136799999998}]
[null,null,null,null,null,null,"Способ приобретения","x","прочее"]
[null,null,null,null,null,"Добавить запись"]
[null,null,null,null,3,"Расходы на услуги производственного характера, выполняемые по договорам с организациями на проведение регламентных работ в рамках технологического процесса",null,null,{"$f":"SUMIF(G35:G43,G35,I35:I43)","v":1403.61238}]
[null,null,null,null,"3.0",null,"Стоимость"]
[null,null,null,null,null,null,"Кол-во"]
[null,null,null,null,null,null,"Стоимость 1й единицы с учетом доставки (транспортировки)"]
[null,null,null,null,null,null,"Способ приобретения"]
[null,null,null,null,"3.1",null,"Стоимость","тыс.руб.",{"$f":"'[1]ВО показатели'!H48","v":1403.61238}]
[null,null,null,null,null,null,"Кол-во","шт",1]
[null,null,null,null,null,null,"Стоимость 1й единицы с учетом доставки (транспортировки)","тыс.руб.",{"$f":"IF(I40=\"\",0,IF(I40=0,0,I39/I40))","v":1403.61238}]
[null,null,null,null,null,null,"Способ приобретения","x","прямые договора без торгов"]
[null,null,null,null,null,"Добавить запись"]
[]
[null,null,null,null,"* Раскрывается не позднее 30 дней со дня сдачи годового бухгалтерского баланса в налоговые органы"]

{"sheet":"Ссылки на публикации (2)","index":12,"n_rows":23,"n_cols":8,"rows_kept":23,"cut":false,"hidden":false,"merged":[[5,3,5,8],[6,3,6,8],[9,4,9,7],[20,4,20,7],[21,4,21,7],[22,4,22,7]]}
[]
[]
[]
[null,null,null,{"$f":"codeTemplates","v":"Код шаблона: JKH.OPEN.INFO.BALANCE.VO"}]
[null,null,null,"Список листов"]
[null,null,null,"Ссылки на публикации в других источниках"]
[null,null,null,{"$f":"IF(org=\"\",\"\",IF(fil=\"\",org,org & \" (\" & fil & \")\"))","v":"ММПКХ"}]
[]
[]
[null,null,null,null,"Указание на официальное печатное издание и (или) адрес сайта в сети Интернет, которые используются для размещения раскрываемой информации *"]
[]
[null,null,null,null,"№ п/п","Содержание пункта","Адрес сайта в сети Интернет","Печатное издание"]
[null,null,null,null,1,{"$f":"E13+1","v":2},3,4]
[null,null,null,null,1,"Информация об основных потребительских характеристиках регулируемых товаров и услуг регулируемых организаций и их соответствии государственным и иным утвержденным стандартам качества ","нет","нет"]
[null,null,null,null,2,"Информация об инвестиционных программах и отчетах об их реализации **"]
[null,null,null,null,3,"Информация об основных показателях финансово-хозяйственной деятельности регулируемых организаций, включая структуру основных производственных затрат (в части регулируемой деятельности)","www.ozerskadm.ru","нет"]
[null,null,null,null,4,"Информация о расходах на капитальный и текущий ремонт, услуги производственного характера","нет","нет"]
[null,null,null,null,"5","Сведения об источнике публикации годовой бухгалтерской отчетности, включая бухгалтерский баланс и приложения к нему ***","нет","нет"]
[null,null,null,"end",null,"Добавить запись"]
[]
[null,null,null,null,"* Источники публикации сообщаются в течение 5 рабочих дней со дня опубликования информации в официальных печатных изданиях (размещения на сайте в сети Интернет). Информация раскрывается не позднее 30 дней со дня сдачи годового бухгалтерского баланса в налоговые органы."]
[null,null,null,null,"** Информация подлежит публикованию в официальных печатных изданиях (со ссылкой на адрес сайта в сети Интернет). В случае, если информация публикуется на сайте регулирующего органа, достаточно указать официальное печатное издание. В случае, если информация публикуется на сайте организации, необходимо указать и печатное издание, и адрес сайта в сети Интернет."]
[null,null,null,null,"*** Раскрывается в случае, если выручка от регулируемой деятельности превышает 80% совокупной выручки за отчетный год."]

{"sheet":"Титульный (3)","index":13,"n_rows":62,"n_cols":8,"rows_kept":62,"cut":false,"hidden":false,"merged":[[55,4,55,5],[57,4,57,6],[58,4,58,5],[59,4,59,5],[60,4,60,5],[61,4,61,5],[47,4,47,5],[49,4,49,6],[50,4,50,5],[51,4,51,5],[53,4,53,6],[54,4,54,5],[38,4,38,6],[39,5,39,6],[41,2,43,2],[41,4,42,4],[45,4,45,6],[46,4,46,5],[24,4,24,5],[26,4,26,5],[28,4,28,5],[30,4,30,5],[32,4,32,5],[34,4,35,4],[13,4,13,5],[15,4,15,5],[18,4,18,6],[19,4,19,5],[21,4,21,5],[23,4,23,5],[2,6,2,7],[3,3,3,7],[6,4,6,5],[8,4,8,6],[9,4,9,5],[11,4,11,5]]}
[{"$f":"region_name","v":"Челябинская область"},{"$f":"IF(god=\"\",\"Не определено\",god)","v":2011},{"$f":"org&\"_INN:\"&inn&\"_KPP:\"&kpp","v":"ММПКХ_INN:7422000570_KPP:742201001"}]
[{"$f":"IF(org=\"\",\"Не определено\",org)","v":"ММПКХ"},{"$f":"IF(inn=\"\",\"Не определено\",inn)","v":"7422000570"},null,null,null,null,null,{"$f":"codeTemplate","v":"Код шаблона: JKH.OPEN.INFO.BALANCE.HVS"}]
[null,null,null,null,null,null,{"$f":"version","v":"Версия 4.1"}]
[{"$f":"IF(fil=\"\",\"Не определено\",fil)","v":"Не определено"},{"$f":"IF(kpp=\"\",\"Не определено\",kpp)","v":"742201001"},null,"Показатели подлежащие раскрытию в сфере холодного водоснабжения (4)"]
[]
[]
[null,null,null,null,"Субъект РФ",null,"Челябинская область"]
[]
[null,null,null,null,"Внимание! В зависимости от выбранного значения в поле \"Публикация\" изменяется содержание и количество листов!"]
[null,null,null,null,"Публикация",null,"На сайте регулирующего органа"]
[]
[null,null,null,null,"Происходило ли изменение тарифа в текущем году",null,"нет"]
[]
[null,null,null,null,"Отчетный период (факт)",null,2011]
[]
["L0","Признак филиала",null,null,"Является ли данное юридическое лицо подразделением (филиалом) другой организации",null,"нет"]
[]
[]
[66,null,null,null,"Дата последнего обновления реестра организаций: 29.03.2012 10:49:22"]
[null,null,null,null,"Наименование ??? организации",null,"ММПКХ"]
[]
[null,null,null,null,"Наименование ПОДРАЗДЕЛЕНИЯ"]
[]
[null,null,null,null,"ИНН ???",null,"7422000570"]
[null,null,null,null,"КПП ???",null,"742201001"]
[]
[null,null,null,null,"Вид деятельности",null,"Оказание услуг в сфере водоснабжения"]
[]
[null,null,null,null,"Превышает ли выручка от регулируемой деятельности 80% совокупной выручки за отчетный год",null,"нет"]
[]
[null,null,null,null,"НДС",null,"отчетность представлена без НДС"]
[]
[null,null,null,null,"Организация выполняет инвестиционную программу",null,"нет"]
[]
[null,null,null,null,"Система коммунальной инфраструктуры","Условный порядковый номер",2]
[null,null,null,null,null,"Описание","Город Озерск (ЗАТО)"]
[]
[]
[null,null,null,null,"Дата последнего обновления реестра МР/МО: 29.03.2012 11:09:59"]
[null,null,null,null,"Муниципальный район, на территории которого размещена система коммунальной инфраструктуры","Муниципальное образование, на территории которого размещена система коммунальной инфраструктуры"]
[null,null,null,null,"Наименование МР","Наименование МО","ОКТМО"]
[null,null,null,null,"Город Озерск (ЗАТО)","Город Озерск (ЗАТО)","75743000"]
[null,null,null,null,null,"Добавить МО"]
[null,null,null,null,"Добавить МР"]
[]
[null,null,null,null,"Адрес организации"]
[null,null,null,null,"Юридический адрес:",null,"456785, г.Озерск, Челябинская обл., ул.Матросова 44"]
[null,null,null,null,"Почтовый адрес:",null,"456785, г.Озерск, Челябинская обл., ул.Матросова 44"]
[]
[null,null,null,null,"Руководитель"]
[null,null,null,null,"Фамилия, имя, отчество:",null,"Новиков Константин Иванович"]
[null,null,null,null,"(код) номер телефона:",null,"8(35130)43405, приемная 8(35130)46774"]
[]
[null,null,null,null,"Главный бухгалтер"]
[null,null,null,null,"Фамилия, имя, отчество:",null,"Кудрявцева Ольга Вениаминовна"]
[null,null,null,null,"(код) номер телефона:",null,"8(35130)45390"]
[]
[null,null,null,null,"Должностное лицо, ответственное за составление формы"]
[null,null,null,null,"Фамилия, имя, отчество:",null,"Лаврентьева Ольга Андреевна"]
[null,null,null,null,"Должность:",null,"экономист ПЭО"]
[null,null,null,null,"(код) номер телефона:",null,"8(35130)46705"]
[null,null,null,null,"e-mail:",null,"economist.olga@mail.ru"]

{"sheet":"ХВС характеристики","index":14,"n_rows":34,"n_cols":7,"rows_kept":34,"cut":false,"hidden":false,"merged":[[6,3,6,7],[7,3,7,7],[8,3,8,7]]}
[]
[]
[]
[]
[]
[null,null,null,{"$f":"codeTemplate","v":"Код шаблона: JKH.OPEN.INFO.BALANCE.HVS"}]
[null,null,null,"Список листов"]
[null,null,null,"Информация об основных потребительских характеристиках регулируемых товаров и услуг регулируемых организаций и их соответствии государственным и иным утвержденным стандартам качества *"]
[null,null,null,{"$f":"IF(org=\"\",\"\",IF(fil=\"\",org,org & \" (\" & fil & \")\"))","v":"ММПКХ"}]
[]
[]
[null,null,null,null,"№ п/п","Наименование показателя","Значение"]
[null,null,null,null,"1","2","3"]
[null,null,null,null,"1","Количество аварий на системах холодного водоснабжения (единиц на км) **",0]
[null,null,null,null,"2","Количество случаев подачи холодной воды по графику (менее 24 часов в сутки)",0]
[null,null,null,null,"2.1","доля потребителей, затронутых ограничениями подачи холодной воды",0]
[null,null,null,null,"3","Общее количество проведенных проб по следующим показателям:",{"$f":"SUM(G18:G20,G23:G24)","v":17597}]
[null,null,null,null,"3.1","Мутность",2576]
[null,null,null,null,"3.2","Цветность",2576]
[null,null,null,null,"3.3","Хлор остаточный общий, в том числе ",9504]
[null,null,null,null,"3.3.1","  хлор остаточный связанный",8760]
[null,null,null,null,"3.3.2","  хлор остаточный свободный",744]
[null,null,null,null,"3.4","Общие колиформные бактерии",2941]
[null,null,null,null,"3.5","Термотолерантные колиформные бактерии",0]
[null,null,null,null,"4","Количество проведенных проб, выявивших несоответствие холодной воды санитарным нормам (предельно допустимой концентрации), по следующим показателям:",{"$f":"SUM(G26:G30)","v":0}]
[null,null,null,null,"4.1","мутность",0]
[null,null,null,null,"4.2","цветность",0]
[null,null,null,null,"4.3","хлор остаточный связанный и хлор остаточный свободный",0]
[null,null,null,null,"4.4","общие колиформные бактерии",0]
[null,null,null,null,"4.5","термотолерантные колиформные бактерии",0]
[null,null,null,null,"5","Комментарии","нет"]
[]
[null,null,null,null,"*","Раскрывается не позднее 30 дней со дня сдачи годового бухгалтерского баланса в налоговые органы."]
[null,null,null,null,"**","Учитывать любое нарушение системы."]

{"sheet":"ХВС показатели","index":15,"n_rows":89,"n_cols":8,"rows_kept":89,"cut":false,"hidden":false,"merged":[[7,3,7,8],[8,3,8,8],[88,4,88,7]]}
[]
[]
[]
[]
[]
[null,null,null,{"$f":"codeTemplate","v":"Код шаблона: JKH.OPEN.INFO.BALANCE.HVS"}]
[null,null,null,"Список листов"]
[null,null,null,"Информация об основных показателях финансово-хозяйственной деятельности регулируемых организаций, включая структуру основных производственных затрат\n(в части регулируемой деятельности) *"]
[null,null,null,{"$f":"IF(org=\"\",\"\",IF(fil=\"\",org,org & \" (\" & fil & \")\"))","v":"ММПКХ"}]
[]
[]
[null,null,null,null,"№ п/п","Наименование показателя","Единица измерения","Значение"]
[null,null,null,null,1,{"$f":"E13+1","v":2},{"$f":"F13+1","v":3},{"$f":"G13+1","v":4}]
[null,null,null,null,"1","Вид регулируемой деятельности","x",{"$f":"IF(activity = \"\",\"\",activity)","v":"Оказание услуг в сфере водоснабжения"}]
[null,null,null,null,"2","Выручка от регулируемой деятельности","тыс.руб.",111070.7]
[null,null,null,null,3,"Себестоимость производимых товаров (оказываемых услуг) по регулируемому виду деятельности, в том числе:","тыс.руб.",{"$f":"H17+H21+H24+SUM(H34:H38)+H41+H44+SUM(H51:H52)","v":101102.09950000001}]
[null,null,null,null,"3.1","Покупная вода, в том числе:","тыс.руб.",{"$f":"SUM(H18:H20)","v":1641.4098000000001}]
[null,null,null,null,"3.1.1","технического качества","тыс.руб.",0]
[null,null,null,null,"3.1.2","питьевого качества","тыс.руб.",{"$f":"1641409.8/1000","v":1641.4098000000001}]
[null,null,null,null,"3.1.3","покупка потерь","тыс.руб.",0]
[null,null,null,null,"3.2","Расходы на покупаемую электрическую энергию (мощность), потребляемую оборудованием, используемым в технологическом процессе:","тыс.руб.",{"$f":"24082065.49/1000","v":24082.065489999997}]
[null,null,null,null,"3.2.1","средневзвешенная стоимость 1 кВт*ч (с учетом мощности)","руб.",{"$f":"nerr(H21/H23)","v":{"$error":"#NAME?"}}]
[null,null,null,null,"3.2.2","объем приобретенной электрической энергии","тыс.кВт*ч",{"$f":"8426175/1000+26705/1000","v":8452.8799999999992}]
[null,null,null,null,"3.3","Расходы на реагенты:","тыс.руб.",{"$f":"1459126.55/1000+407867.83/1000","v":1866.9943800000001}]
[null,null,null,null,"3.3.1","Количество использованного реагента, в т.ч.:","тонн",{"$f":"SUM(H26:H33)","v":60.950450000000004}]
[null,null,null,null,"3.3.1.1","хлора (всех видов)","тонн",{"$f":"43.64","v":43.64}]
[null,null,null,null,"3.3.1.2","алюминия сульфата","тонн",0]
[null,null,null,null,"3.3.1.3","гипохлорита натрия","тонн",{"$f":"(275+330+200+400+800+1500+700+1000+1000)/1000","v":6.2050000000000001}]
[null,null,null,null,"3.3.1.4","гипохлорита кальция","тонн",0]
[null,null,null,null,"3.3.1.5","аммиака","тонн",{"$f":"(0.9+0.9)/1000","v":1.8E-3}]
[null,null,null,null,"3.3.1.6","активированного угля","тонн",{"$f":"24/1000","v":2.4E-2}]
[null,null,null,null,"3.3.1.7","коагулянтов и флокулянтов","тонн",0]
[null,null,null,null,"3.3.1.8","прочих","тонн",{"$f":"(575+500+300+200+575+925+1575+400+1000+5000+0.25+5+5+5.4+5+5+2+2)/1000","v":11.079649999999999}]
[null,null,null,null,"3.4","Расходы на оплату труда","тыс.руб.",{"$f":"(12715830.83+45517.14)/1000","v":12761.347970000001}]
[null,null,null,null,"3.5","Отчисления на социальные нужды основного производственного персонала","тыс.руб.",{"$f":"(25193.84+4288989.08)/1000","v":4314.1829200000002}]
[null,null,null,null,"3.6","Расходы на амортизацию основных производственных средств","тыс.руб.",{"$f":"11715235.04/1000","v":11715.23504}]
[null,null,null,null,"3.7","Расходы на аренду имущества, используемого в технологическом процессе","тыс.руб.",{"$f":"24000/1000","v":24}]
[null,null,null,null,"3.8","Общепроизводственные (цеховые) расходы","тыс.руб.",26390.75]
[null,null,null,null,"3.8.1","расходы на оплату труда","тыс.руб.",{"$f":"(4282320.85+15755.37)/1000","v":4298.0762199999999}]
[null,null,null,null,"3.8.2","отчисления на социальные нужды","тыс.руб.",{"$f":"(8532.98+1450452.79)/1000","v":1458.98577}]
[null,null,null,null,"3.9","Общехозяйственные (управленческие) расходы","тыс.руб.",{"$f":"11516532.88/1000","v":11516.532880000001}]
[null,null,null,null,"3.9.1","расходы на оплату труда","тыс.руб.",{"$f":"5609.4","v":5609.4}]
[null,null,null,null,"3.9.2","отчисления на социальные нужды","тыс.руб.",{"$f":"1879.74","v":1879.74}]
[null,null,null,null,"3.10","Ремонт и техническое обслуживание основных производственных средств, в том числе:","тыс.руб.",{"$f":"H45+H46+H47+H50","v":6196.5805699999992}]
[null,null,null,null,"3.10.1","капитальный ремонт основных средств","тыс.руб.",{"$f":"566128.39/1000","v":566.12838999999997}]
[null,null,null,null,"3.10.2","текущий ремонт основных средств","тыс.руб.",{"$f":"(637128.39+1126772.72+3866551.07)/1000","v":5630.4521799999993}]
[null,null,null,null,"3.10.3","заработная плата ремонтного персонала","тыс.руб.",0]
[null,null,null,null,"3.10.4","среднемесячная оплата труда рабочего 1 разряда (в случае отсутствия тарифной сетки - средняя оплата труда рабочих)","тыс.руб.",0]
[null,null,null,null,"3.10.5","численность ремонтного персонала на конец отчетного периода","чел.",0]
[null,null,null,null,"3.10.6","отчисления на соц. нужды от заработной платы ремонтного персонала","тыс.руб.",0]
[null,null,null,null,"3.11","Расходы на услуги производственного характера, выполняемые по договорам с организациями на проведение регламентных работ в рамках технологического процесса","тыс.руб.",{"$f":"593000.45/1000","v":593.00045}]
[null,null,null,null,null,"Добавить запись"]
[null,null,null,null,"4","Валовая прибыль от продажи товаров и услуг по регулируемому виду деятельности (холодное водоснабжение)","тыс.руб.",{"$f":"H15-H16","v":9968.6004999999859}]
[null,null,null,null,"5","Чистая прибыль по регулируемому виду деятельности, в том числе: ","тыс.руб.",{"$f":"H53-H53*0.2","v":7974.8803999999891}]
[null,null,null,null,"5.1","чистая прибыль на финансирование мероприятий, предусмотренных инвестиционной программой по развитию системы холодного водоснабжения","тыс.руб.",0]
[null,null,null,null,"6","Изменение стоимости основных фондов","тыс.руб.",{"$f":"H57+H58-H59","v":217812.58000000002}]
[null,null,null,null,"6.1","стоимость основных фондов на начало отчетного периода","тыс.руб.",{"$f":"220240.44","v":220240.44}]
[null,null,null,null,"6.2","стоимость введенных в эксплуатацию основных фондов","тыс.руб.",{"$f":"429.25","v":429.25}]
[null,null,null,null,"6.3","стоимость выведенных из эксплуатации основных фондов","тыс.руб.",2857.11]
[null,null,null,null,"7","Поднято воды, в том числе:","тыс.куб.м",{"$f":"SUM(H61:H62)","v":21957.5}]
[null,null,null,null,"7.1","из подземных водоисточников","тыс.куб.м",0]
[null,null,null,null,"7.2","из поверхностных водоисточников","тыс.куб.м",{"$f":"21762+195.5","v":21957.5}]
[null,null,null,null,"8","Получено воды со стороны, в том числе:","тыс.куб.м",{"$f":"SUM(H64:H65)","v":235.15899999999999}]
[null,null,null,null,"8.1","технического качества","тыс.куб.м",0]
[null,null,null,null,"8.2","питьевого качества","тыс.куб.м",{"$f":"235.159","v":235.15899999999999}]
[null,null,null,null,"9","Объем воды, пропущенной через очистные сооружения","тыс.куб.м",{"$f":"H62","v":21957.5}]
[null,null,null,null,"10","Объем отпущенной потребителям воды, в том числе:","тыс.куб.м",{"$f":"SUM(H68:H69)","v":19267.629999999997}]
[null,null,null,null,"10.1","по приборам учета","тыс.куб.м",11560.578]
[null,null,null,null,"10.2","по нормативам потребления","тыс.куб.м",7707.0519999999997]
[null,null,null,null,"11","Потери воды в сетях (от забора воды), в том числе:","%",13.2]
[null,null,null,null,"11.1","нормативные","%",0]
[null,null,null,null,"11.2","фактические (разница между забором и реализацией)","%",13.2]
[null,null,null,null,"12","Протяженность водопроводных сетей (в однотрубном исчислении)","км",252.6]
[null,null,null,null,"13","Количество скважин","ед.",2]
[null,null,null,null,"14","Количество подкачивающих насосных станций","ед.",24]
[null,null,null,null,"15","Среднесписочная численность основного производственного персонала (человек)","чел.",99]
[null,null,null,null,"16","Удельный расход электроэнергии на подачу воды в сеть, в том числе:","кВт·ч/куб.м",{"$f":"SUM(H78:H80)","v":0.40108850919736139}]
[null,null,null,null,"16.1","забор воды","кВт·ч/куб.м",{"$f":"2535.864/H60","v":0.11548965046111807}]
[null,null,null,null,"16.2","очистка","кВт·ч/куб.м",{"$f":"3381.152/H66","v":0.1539862006148241}]
[null,null,null,null,"16.2","транспортировка","кВт·ч/куб.м",{"$f":"2535.864/H67","v":0.1316126581214192}]
[null,null,null,null,"17","Расход воды на коммунально-бытовые нужды ОКК","тыс.куб.м",1800]
[null,null,null,null,"18","Расход воды на технологические нужды предприятия","тыс.куб.м",{"$f":"SUM(H83:H85)","v":1800}]
[null,null,null,null,"18.1","на очистные сооружения","тыс.куб.м",{"$f":"720","v":720}]
[null,null,null,null,"18.2","на промывку сетей","тыс.куб.м",900]
[null,null,null,null,"18.3","прочие","тыс.куб.м",180]
[null,null,null,null,"19","Показатель использования производственных объектов (по объему перекачки) по отношению к пиковому дню отчетного года","%",46]
[null,null,null,null,"20","Комментарии",null,"нет"]
[]
[null,null,null,null,"* Раскрывается не позднее 30 дней со дня сдачи годового бухгалтерского баланса в налоговые органы"]

{"sheet":"ХВС показатели (2)","index":16,"n_rows":45,"n_cols":9,"rows_kept":45,"cut":false,"hidden":false,"merged":[[33,5,33,6],[34,4,37,4],[34,5,37,5],[38,4,41,4],[38,5,41,5],[44,4,44,9],[18,4,21,4],[18,5,21,5],[23,5,23,6],[24,4,27,4],[24,5,27,5],[28,4,31,4],[28,5,31,5],[7,3,7,9],[8,3,8,9],[11,5,11,6],[12,5,12,6],[13,5,13,6],[14,4,17,4],[14,5,17,5]]}
[]
[]
[]
[]
[]
[null,null,null,{"$f":"codeTemplate","v":"Код шаблона: JKH.OPEN.INFO.BALANCE.HVS"}]
[null,null,null,"Список листов"]
[null,null,null,"Информация об объемах товаров и услуг, их стоимости и способах приобретения *"]
[null,null,null,{"$f":"IF(org=\"\",\"\",IF(fil=\"\",org,org & \" (\" & fil & \")\"))","v":"ММПКХ"}]
[]
[]
[null,null,null,null,"№ п/п","Наименование товара/услуги",null,"Единица измерения","Значение"]
[null,null,null,null,1,{"$f":"E13+1","v":2},null,{"$f":"F13+1","v":3},{"$f":"H13+1","v":4}]
[null,null,null,null,1,"Расходы на капитальный ремонт основных производственных средств",null,null,{"$f":"SUMIF(G15:G23,G15,I15:I23)","v":566.12838999999997}]
[null,null,null,null,"1.0",null,"Стоимость"]
[null,null,null,null,null,null,"Кол-во"]
[null,null,null,null,null,null,"Стоимость 1й единицы с учетом доставки (транспортировки)"]
[null,null,null,null,null,null,"Способ приобретения"]
[null,null,null,null,"1.1",null,"Стоимость","тыс.руб.",{"$f":"'[2]ХВС показатели'!H45","v":566.12838999999997}]
[null,null,null,null,null,null,"Кол-во","шт",1]
[null,null,null,null,null,null,"Стоимость 1й единицы с учетом доставки (транспортировки)","тыс.руб.",{"$f":"IF(I20=\"\",0,IF(I20=0,0,I19/I20))","v":566.12838999999997}]
[null,null,null,null,null,null,"Способ приобретения","x","прочее"]
[null,null,null,null,null,"Добавить запись"]
[null,null,null,null,2,"Расходы на текущий  ремонт основных производственных средств",null,null,{"$f":"SUMIF(G25:G33,G25,I25:I33)","v":5630.4521799999993}]
[null,null,null,null,"2.0",null,"Стоимость"]
[null,null,null,null,null,null,"Кол-во"]
[null,null,null,null,null,null,"Стоимость 1й единицы с учетом доставки (транспортировки)"]
[null,null,null,null,null,null,"Способ приобретения"]
[null,null,null,null,"2.1",null,"Стоимость","тыс.руб.",{"$f":"'[2]ХВС показатели'!H46","v":5630.4521799999993}]
[null,null,null,null,null,null,"Кол-во","шт",1]
[null,null,null,null,null,null,"Стоимость 1й единицы с учетом доставки (транспортировки)","тыс.руб.",{"$f":"IF(I30=\"\",0,IF(I30=0,0,I29/I30))","v":5630.4521799999993}]
[null,null,null,null,null,null,"Способ приобретения","x","прочее"]
[null,null,null,null,null,"Добавить запись"]
[null,null,null,null,3,"Расходы на услуги производственного характера, выполняемые по договорам с организациями на проведение регламентных работ в рамках технологического процесса",null,null,{"$f":"SUMIF(G35:G43,G35,I35:I43)","v":593.00045}]
[null,null,null,null,"3.0",null,"Стоимость"]
[null,null,null,null,null,null,"Кол-во"]
[null,null,null,null,null,null,"Стоимость 1й единицы с учетом доставки (транспортировки)"]
[null,null,null,null,null,null,"Способ приобретения"]
[null,null,null,null,"3.1",null,"Стоимость","тыс.руб.",{"$f":"'[2]ХВС показатели'!H51","v":593.00045}]
[null,null,null,null,null,null,"Кол-во","шт",1]
[null,null,null,null,null,null,"Стоимость 1й единицы с учетом доставки (транспортировки)","тыс.руб.",{"$f":"IF(I40=\"\",0,IF(I40=0,0,I39/I40))","v":593.00045}]
[null,null,null,null,null,null,"Способ приобретения","x","прямые договора без торгов"]
[null,null,null,null,null,"Добавить запись"]
[]
[null,null,null,null,"* Раскрывается не позднее 30 дней со дня сдачи годового бухгалтерского баланса в налоговые органы"]

{"sheet":"Ссылки на публикации (3)","index":17,"n_rows":23,"n_cols":8,"rows_kept":23,"cut":false,"hidden":false,"merged":[[5,3,5,8],[6,3,6,8],[9,4,9,7],[20,4,20,7],[21,4,21,7],[22,4,22,7]]}
[]
[]
[]
[null,null,null,{"$f":"codeTemplate","v":"Код шаблона: JKH.OPEN.INFO.BALANCE.HVS"}]
[null,null,null,"Список листов"]
[null,null,null,"Ссылки на публикации в других источниках"]
[null,null,null,{"$f":"IF(org=\"\",\"\",IF(fil=\"\",org,org & \" (\" & fil & \")\"))","v":"ММПКХ"}]
[]
[]
[null,null,null,null,"Указание на официальное печатное издание и (или) адрес сайта в сети Интернет, которые используются для размещения раскрываемой информации *"]
[]
[null,null,null,null,"№ п/п","Содержание пункта","Адрес сайта в сети Интернет","Печатное издание"]
[null,null,null,null,1,{"$f":"E13+1","v":2},3,4]
[null,null,null,null,1,"Информация об основных потребительских характеристиках регулируемых товаров и услуг регулируемых организаций и их соответствии государственным и иным утвержденным стандартам качества ","нет","нет"]
[null,null,null,null,2,"Информация об инвестиционных программах и отчетах об их реализации **"]
[null,null,null,null,3,"Информация об основных показателях финансово-хозяйственной деятельности регулируемых организаций, включая структуру основных производственных затрат (в части регулируемой деятельности)","www.ozerskadm.ru","нет"]
[null,null,null,null,4,"Информация о расходах на капитальный и текущий ремонт, услуги производственного характера","нет","нет"]
[null,null,null,null,"5","Сведения об источнике публикации годовой бухгалтерской отчетности, включая бухгалтерский баланс и приложения к нему ***","нет","нет"]
[null,null,null,"end",null,"Добавить запись"]
[]
[null,null,null,null,"* Источники публикации сообщаются в течение 5 рабочих дней со дня опубликования информации в официальных печатных изданиях (размещения на сайте в сети Интернет). Информация раскрывается не позднее 30 дней со дня сдачи годового бухгалтерского баланса в налоговые органы."]
[null,null,null,null,"** Информация подлежит публикованию в официальных печатных изданиях (со ссылкой на адрес сайта в сети Интернет). В случае, если информация публикуется на сайте регулирующего органа, достаточно указать официальное печатное издание. В случае, если информация публикуется на сайте организации, необходимо указать и печатное издание, и адрес сайта в сети Интернет."]
[null,null,null,null,"*** Раскрывается в случае, если выручка от регулируемой деятельности превышает 80% совокупной выручки за отчетный год."]

{"sheet":"AllSheetsInThisWorkbook","index":18,"n_rows":20,"n_cols":2,"rows_kept":20,"cut":false,"hidden":true,"merged":[]}
["Расчетные листы","Скрытые листы"]
["Инструкция","AllSheetsInThisWorkbook"]
["Выбор субъекта РФ","et_union"]
["Титульный","TEHSHEET"]
["Список листов","REESTR_ORG"]
["ТС характеристики","REESTR_FILTERED"]
["ТС инвестиции","REESTR_MO"]
["ТС показатели","modHyp"]
["ТС показатели (2)","modChange"]
["Ссылки на публикации","modfrmReestr"]
["Комментарии","modPROV"]
["Проверка","modCommandButton"]
[null,"modTitleSheetHeaders"]
[null,"modServiceModule"]
[null,"modClassifierValidate"]
[null,"modWindowClipboard"]
[null,"modInfo"]
[null,"modfrmDateChoose"]
[null,"modReestr"]
[null,"Паспорт"]

{"sheet":"et_union","index":19,"n_rows":31,"n_cols":9,"rows_kept":31,"cut":false,"hidden":true,"merged":[[3,5,3,6],[16,4,19,4],[16,5,19,5],[29,4,30,4],[8,4,11,4],[8,5,11,5]]}
[]
["add_INDEX_range"]
[]
[null,null,null,null,null,null,null,"тыс.руб."]
[]
[]
["add_INDEX_range_2"]
[]
[null,null,null,null,null,null,"Стоимость","тыс.руб."]
[null,null,null,null,null,null,"Объем"]
[null,null,null,null,null,null,"Стоимость 1й единицы объема с учетом доставки (транспортировки)","тыс.руб.",{"$f":"nerr(I9/I10)","v":{"$error":"#NAME?"}}]
[null,null,null,null,null,null,"Способ приобретения","x"]
[]
[]
["add_INDEX_2_range"]
[]
[null,null,null,null,null,null,"Стоимость","тыс.руб."]
[null,null,null,null,null,null,"Кол-во"]
[null,null,null,null,null,null,"Стоимость 1й единицы с учетом доставки (транспортировки)","тыс.руб.",{"$f":"IF(I18=\"\",0,IF(I18=0,0,I17/I18))","v":0}]
[null,null,null,null,null,null,"Способ приобретения","x"]
[]
["add_HYPERLINK_range"]
[]
[]
[]
[]
["add_MR_range"]
["add_MO_range"]
[]
[]
[null,null,null,null,null,"Добавить МО"]

{"sheet":"TEHSHEET","index":20,"n_rows":85,"n_cols":97,"rows_kept":85,"cut":false,"hidden":true,"merged":[[0,10,0,11]]}
["Логика","Кварталы","Года","Единица измерения","Месяц-текст","Месяц-число","День-число","Регионы","Вид деятельности","Источники финансирования","Виды топлива",null,"НДС /kind_of_NDS/","цель инвестиционной программы /objective_of_IPR/","цель инвестиционной программы /kind_of_purchase_method/",null,"XML_ORG_LIST_TAG_NAMES",null,null,null,null,null,null,null,null,null,null,null,null,null,null,null,null,null,null,null,null,null,null,null,null,null,null,null,null,null,null,null,null,null,null,null,null,null,null,null,null,null,null,null,null,null,null,null,null,null,null,null,null,null,null,null,null,null,null,null,null,null,null,null,null,null,null,null,null,null,null,null,null,null,null,null,null,null,null,null,"5.86"]
["да","I квартал",2006,"тыс.руб.","январь","01","01","Алтайский край","Оказание услуг в сфере водоотведения и очистки сточных вод","кредиты банков","газ природный по регулируемой цене","тыс. м3","отчетность представлена без НДС","автоматизация (с уменьшением штата)","торги/аукционы",null,"NSRF"]
["нет","I полугодие",2007,"млн.руб.","февраль","02","02","Амурская область","Оказание услуг по перекачке","кредиты иностранных банков","газ природный по нерегулируемой цене","тыс. м3","отчетность представлена с учетом освобождения от НДС","уменьшение удельных затрат (повышение КПД)","прямые договора без торгов",null,"MR_NAME"]
[null,"9 месяцев",2008,null,"март","03","03","Архангельская область","Оказание услуг в сфере водоснабжения, водоотведения и очистки сточных вод","заемные ср-ва др. организаций","газ сжиженный","кг","отчетность представлена с НДС","уменьшение издержек на производство","прочее",null,"OKTMO_MR_NAME"]
[null,"год",2009,null,"апрель","04","04","Астраханская область",null,"федеральный бюджет","газовый конденсат","тонны",null,"снижение аварийности",null,null,"MO_NAME"]
[null,null,2010,null,"май","05","05","Белгородская область",null,"бюджет субъекта РФ","гшз","тонны",null,"прочее",null,null,"OKTMO_NAME"]
[null,null,2011,null,"июнь","06","06","Брянская область",null,"бюджет муниципального образования","мазут","тонны",null,null,null,null,"ORG_NAME"]
[null,null,2012,null,"июль","07","07","Владимирская область",null,"ср-ва внебюджетных фондов","нефть","тонны",null,null,null,null,"INN_NAME"]
[null,null,2013,null,"август","08","08","Волгоградская область",null,"прибыль, направляемая на инвестиции","дизельное топливо","тонны",null,null,null,null,"KPP_NAME"]
[null,null,2014,null,"сентябрь","09","09","Вологодская область",null,"амортизация","уголь бурый","тонны",null,null,null,null,"VDET_NAME"]
[null,null,2015,null,"октябрь",10,10,"Воронежская область",null,"инвестиционная надбавка к тарифу","уголь каменный","тонны"]
[null,null,null,null,"ноябрь",11,11,"г.Байконур",null,"плата за подключение","торф","тонны",null,null,null,null,"XML_MR_MO_OKTMO_LIST_TAG_NAMES"]
[null,null,null,null,"декабрь",12,12,"г. Москва",null,"прочие средства","дрова","м3",null,null,null,null,"NSRF"]
[null,null,null,null,null,null,13,"г.Санкт-Петербург",null,null,"опил","м3",null,null,null,null,"MR_NAME"]
[null,null,null,null,null,null,14,"Еврейская автономная область",null,null,"отходы березовые","м3",null,null,null,null,"OKTMO_MR_NAME"]
[null,null,null,null,null,null,15,"Забайкальский край",null,null,"отходы осиновые","м3",null,null,null,null,"MO_NAME"]
[null,null,null,null,null,null,16,"Ивановская область",null,null,"печное топливо","тонны",null,null,null,null,"OKTMO_NAME"]
[null,null,null,null,null,null,17,"Иркутская область",null,null,"пилеты","тонны"]
[null,null,null,null,null,null,18,"Кабардино-Балкарская республика",null,null,"смола","тонны"]
[null,null,null,null,null,null,19,"Калининградская область",null,null,"щепа","м3"]
[null,null,null,null,null,null,20,"Калужская область",null,null,"горючий сланец","тонны"]
[null,null,null,null,null,null,21,"Камчатский край",null,null,"керосин","тонны"]
[null,null,null,null,null,null,22,"Карачаево-Черкесская республика",null,null,"кислородно-водородная смесь","тыс. м3"]
[null,null,null,null,null,null,23,"Кемеровская область",null,null,"электроэнергия (НН)","тыс.кВт ч"]
[null,null,null,null,null,null,24,"Кировская область",null,null,"электроэнергия (СН1)","тыс.кВт ч"]
[null,null,null,null,null,null,25,"Костромская область",null,null,"электроэнергия (СН2)","тыс.кВт ч"]
[null,null,null,null,null,null,26,"Краснодарский край",null,null,"электроэнергия (ВН)","тыс.кВт ч"]
[null,null,null,null,null,null,27,"Красноярский край",null,null,"мощность","тыс.кВт"]
[null,null,null,null,null,null,28,"Курганская область",null,null,"прочее"]
[null,null,null,null,null,null,29,"Курская область"]
[null,null,null,null,null,null,30,"Ленинградская область"]
[null,null,null,null,null,null,31,"Липецкая область"]
[null,null,null,null,null,null,null,"Магаданская область"]
[null,null,null,null,null,null,null,"Московская область"]
[null,null,null,null,null,null,null,"Мурманская область"]
[null,null,null,null,null,null,null,"Ненецкий автономный округ"]
[null,null,null,null,null,null,null,"Нижегородская область"]
[null,null,null,null,null,null,null,"Новгородская область"]
[null,null,null,null,null,null,null,"Новосибирская область"]
[null,null,null,null,null,null,null,"Омская область"]
[null,null,null,null,null,null,null,"Оренбургская область"]
[null,null,null,null,null,null,null,"Орловская область"]
[null,null,null,null,null,null,null,"Пензенская область"]
[null,null,null,null,null,null,null,"Пермский край"]
[null,null,null,null,null,null,null,"Приморский край"]
[null,null,null,null,null,null,null,"Псковская область"]
[null,null,null,null,null,null,null,"Республика Адыгея"]
[null,null,null,null,null,null,null,"Республика Алтай"]
[null,null,null,null,null,null,null,"Республика Башкортостан"]
[null,null,null,null,null,null,null,"Республика Бурятия"]
[null,null,null,null,null,null,null,"Республика Дагестан"]
[null,null,null,null,null,null,null,"Республика Ингушетия"]
[null,null,null,null,null,null,null,"Республика Калмыкия"]
[null,null,null,null,null,null,null,"Республика Карелия"]
[null,null,null,null,null,null,null,"Республика Коми"]
[null,null,null,null,null,null,null,"Республика Марий Эл"]
[null,null,null,null,null,null,null,"Республика Мордовия"]
[null,null,null,null,null,null,null,"Республика Саха (Якутия)"]
[null,null,null,null,null,null,null,"Республика Северная Осетия-Алания"]
[null,null,null,null,null,null,null,"Республика Татарстан"]
[null,null,null,null,null,null,null,"Республика Тыва"]
[null,null,null,null,null,null,null,"Республика Хакасия"]
[null,null,null,null,null,null,null,"Ростовская область"]
[null,null,null,null,null,null,null,"Рязанская область"]
[null,null,null,null,null,null,null,"Самарская область"]
[null,null,null,null,null,null,null,"Саратовская область"]
[null,null,null,null,null,null,null,"Сахалинская область"]
[null,null,null,null,null,null,null,"Свердловская область"]
[null,null,null,null,null,null,null,"Смоленская область"]
[null,null,null,null,null,null,null,"Ставропольский край"]
[null,null,null,null,null,null,null,"Тамбовская область"]
[null,null,null,null,null,null,null,"Тверская область"]
[null,null,null,null,null,null,null,"Томская область"]
[null,null,null,null,null,null,null,"Тульская область"]
[null,null,null,null,null,null,null,"Тюменская область"]
[null,null,null,null,null,null,null,"Удмуртская республика"]
[null,null,null,null,null,null,null,"Ульяновская область"]
[null,null,null,null,null,null,null,"Хабаровский край"]
[null,null,null,null,null,null,null,"Ханты-Мансийский автономный округ"]
[null,null,null,null,null,null,null,"Челябинская область"]
[null,null,null,null,null,null,null,"Чеченская республика"]
[null,null,null,null,null,null,null,"Чувашская республика"]
[null,null,null,null,null,null,null,"Чукотский автономный округ"]
[null,null,null,null,null,null,null,"Ямало-Ненецкий автономный округ"]
[null,null,null,null,null,null,null,"Ярославская область"]

{"sheet":"REESTR_ORG","index":21,"n_rows":540,"n_cols":8,"rows_kept":540,"cut":false,"hidden":true,"merged":[]}
["№","МР","МО","МО ОКТМО","ОРГАНИЗАЦИЯ","ИНН","КПП","ВИД ДЕЯТЕЛЬНОСТИ"]
[1,"Агаповский муниципальный район","Агаповское","75603407","МП \"ЖКХ \"Энергия\"","7425008930","742501001","производство (некомбинированная выработка)+передача+сбыт"]
[2,"Агаповский муниципальный район","Агаповское","75603407","ООО \"ЖКХ Агаповское\"","7425756580","742501001","производство (некомбинированная выработка)+передача+сбыт"]
[3,"Агаповский муниципальный район","Буранное","75603411","МП \"ЖКХ-Буранный\"","7425007598","742501001","производство (некомбинированная выработка)+передача+сбыт"]
[4,"Агаповский муниципальный район","Желтинское","75603422","МП ЖКХ \"Желтинское\"","7425007936","742501001","производство (некомбинированная выработка)+передача+сбыт"]
[5,"Агаповский муниципальный район","Магнитное","75603433","МП ЖКХ \"Магнитное\"","7425007943","742501001","производство (некомбинированная выработка)+передача+сбыт"]
[6,"Агаповский муниципальный район","Наровчатское","75603436","МП ЖКХ \"Наровчатское\"","7425008136","742501001","производство (некомбинированная выработка)+передача+сбыт"]
[7,"Агаповский муниципальный район","Первомайское","75603444","ГУНПО \"Профессиональное училище №123\"","7425002663","742501001","производство (некомбинированная выработка)+передача+сбыт"]
[8,"Агаповский муниципальный район","Первомайское","75603444","МУП \"ЖКХ-Первомайский\"","7425007975","742501001","производство (некомбинированная выработка)+передача+сбыт"]
[9,"Агаповский муниципальный район","Приморское","75603455","МУП \"ЖКХ-Приморский\"","7425004117","742501001","производство (некомбинированная выработка)+передача+сбыт"]
[10,"Агаповский муниципальный район","Светлогорское","75603466","ООО ЖКХ \"Светлогорский\"","7425757978","742501001","производство (некомбинированная выработка)+передача+сбыт"]
[11,"Агаповский муниципальный район","Черниговское","75603472","ООО \"Черниговское\"","7425758097","742501001","производство (некомбинированная выработка)+передача+сбыт"]
[12,"Агаповский муниципальный район","Янгельское","75603477","ООО \"Сервис\"","7425756597","742501001","производство (некомбинированная выработка)+передача+сбыт"]
[13,"Аргаяшский муниципальный район","Акбашевское","75606410","МУ \"Управление Акбашевского ЖКХ\"","7426007336","742601001","производство (некомбинированная выработка)+передача+сбыт"]
[14,"Аргаяшский муниципальный район","Аргаяшское","75606412","МУКП \"Тепловик\"","7426001493","742601001","производство (некомбинированная выработка)+передача+сбыт"]
[15,"Аргаяшский муниципальный район","Аргаяшское","75606412","МУП \"Теплоэнергетик\"","7426005716","742601001","производство (некомбинированная выработка)+передача+сбыт"]
[16,"Аргаяшский муниципальный район","Аргаяшское","75606412","Учреждение \"Управление ЖКХ\"","7426007103","742601001","производство (некомбинированная выработка)+передача+сбыт"]
[17,"Аргаяшский муниципальный район","Аязгуловское","75606420","МУ \"Управление Аязгуловского ЖКХ\"","7426007417","742601001","производство (некомбинированная выработка)+передача+сбыт"]
[18,"Аргаяшский муниципальный район","Байрамгуловское","75606433","МУ \"Управление Байрамгуловского ЖКХ\"","7426007287","742601001","производство (некомбинированная выработка)+передача+сбыт"]
[19,"Аргаяшский муниципальный район","Дербишевское","75606440","МУ \"Управление Дербишевского ЖКХ\"","7426007488","742601001","производство (некомбинированная выработка)+передача+сбыт"]
[20,"Аргаяшский муниципальный район","Ишалинское","75606445","МУ \"Управление Ишалинского ЖКХ\"","7426007248","742601001","производство (некомбинированная выработка)+передача+сбыт"]
[21,"Аргаяшский муниципальный район","Камышевское","75606450","МУ \"Управление Камышевского ЖКХ\"","7426007449","742601001","производство (некомбинированная выработка)+передача+сбыт"]
[22,"Аргаяшский муниципальный район","Кузнецкое","75606460","МУП \"Управление Кузнецкого ЖКХ\"","7426007424","742601001","производство (некомбинированная выработка)+передача+сбыт"]
[23,"Аргаяшский муниципальный район","Кузнецкое","75606460","ОАО МОЦ \"Курорт Увильды\"","7426005988","742601001","производство (некомбинированная выработка)+передача+сбыт"]
[24,"Аргаяшский муниципальный район","Кулуевское","75606470","МУП \"Кулуевское ЖКХ\"","7426006942","742601001","производство (некомбинированная выработка)+передача+сбыт"]
[25,"Аргаяшский муниципальный район","Норкинское","75606480","МУ \"Управление Норкинского ЖКХ\"","7426007456","742601001","производство (некомбинированная выработка)+передача+сбыт"]
[26,"Аргаяшский муниципальный район","Худайбердинское","75606490","МУ \"Управление Худайбердинского ЖКХ\"","7426007230","742601001","производство (некомбинированная выработка)+передача+сбыт"]
[27,"Ашинский муниципальный район","Город Аша","75609101","МУП \"АШИНСКИЕ ТЕПЛОВЫЕ СЕТИ\"","7401008779","740101001","Передача+Сбыт"]
[28,"Ашинский муниципальный район","Город Аша","75609101","ОАО \"Ашинский металлургический завод\"","7401000473","741450001","производство (некомбинированная выработка)"]
[29,"Ашинский муниципальный район","Город Аша","75609101","ОАО \"Ашинский химический завод\"","7401000970","740101001","производство (некомбинированная выработка)"]
[30,"Ашинский муниципальный район","Город Миньяр","75609103","ООО \"Миньярская коммунальная компания\"","7401012408","740101001","производство (некомбинированная выработка)+передача+сбыт"]
[31,"Ашинский муниципальный район","Город Сим","75609105","ОАО \"Агрегат\"","7401000191","741450001","производство (некомбинированная выработка)+передача+сбыт"]
[32,"Ашинский муниципальный район","Город Сим","75609105","ООО \"Горкомсети\"","7401012990","740101001","производство (некомбинированная выработка)+передача+сбыт"]
[33,"Ашинский муниципальный район","Укское","75609477","ООО \"Ремонт\"","7401008592","740101001","производство (некомбинированная выработка)+передача+сбыт"]
[34,"Ашинский муниципальный район","Укское","75609477","ООО \"Теплоэнергетика\"","7411016000","740101001","производство (некомбинированная выработка)"]
[35,"Варненский муниципальный район","Варненское","75614420","ООО \"СтройКомплекс\"","7443005963","744301001","производство (некомбинированная выработка)+передача+сбыт"]
[36,"Верхнеуральский муниципальный район","Бабарыкинское","75617411","МУП \"Благоустройство\"","7425759157","742501001","производство (некомбинированная выработка)+передача+сбыт"]
[37,"Верхнеуральский муниципальный район","Верхнеуральский муниципальный район","75617000","МУП \"Благоустройство\"","7425759157","742501001","производство (некомбинированная выработка)+передача+сбыт"]
[38,"Верхнеуральский муниципальный район","Город Верхнеуральск","75617101","МУП \"Благоустройство\"","7425759157","742501001","производство (некомбинированная выработка)+передача+сбыт"]
[39,"Верхнеуральский муниципальный район","Город Верхнеуральск","75617101","ООО \"Жилкомхоз\"","7425757199","742501001","производство (некомбинированная выработка)+передача+сбыт"]
[40,"Верхнеуральский муниципальный район","Карагайское","75617422","МУП \"Благоустройство\"","7425759157","742501001","производство (некомбинированная выработка)+передача+сбыт"]
[41,"Верхнеуральский муниципальный район","Кирсинское","75617433","МУП \"Благоустройство\"","7425759157","742501001","производство (некомбинированная выработка)+передача+сбыт"]
[42,"Верхнеуральский муниципальный район","Кирсинское","75617433","ООО \"Грин Хит-Тепло\"","7447192873","745001001","производство (некомбинированная выработка)+передача+сбыт"]
[43,"Верхнеуральский муниципальный район","Кирсинское","75617433","ООО \"Коммунальный сервис плюс\"","7425759206","742501001","производство (некомбинированная выработка)+передача+сбыт"]
[44,"Верхнеуральский муниципальный район","Краснинское","75617444","МУП \"Благоустройство\"","7425759157","742501001","производство (некомбинированная выработка)+передача+сбыт"]
[45,"Верхнеуральский муниципальный район","Петропавловское","75617455","МУП \"Благоустройство\"","7425759157","742501001","производство (некомбинированная выработка)+передача+сбыт"]
[46,"Верхнеуральский муниципальный район","Поселок Межозерный","75617153","МУП \"Благоустройство\"","7425759157","742501001","производство (некомбинированная выработка)+передача+сбыт"]
[47,"Верхнеуральский муниципальный район","Поселок Межозерный","75617153","ОАО \"Учалинский горно-обогатительный комбинат\"","0270007455","025250001","производство (некомбинированная выработка)+передача+сбыт"]
[48,"Верхнеуральский муниципальный район","Поселок Межозерный","75617153","ООО \"Тепловодсервис\"","7425746359","742501001","Передача"]
[49,"Верхнеуральский муниципальный район","Спасское","75617466","МУП \"Благоустройство\"","7425759157","742501001","производство (некомбинированная выработка)+передача+сбыт"]
[50,"Верхнеуральский муниципальный район","Спасское","75617466","ООО \"Спасск-ЖКО\"","7455005260","745501001","производство (некомбинированная выработка)+передача+сбыт"]
[51,"Верхнеуральский муниципальный район","Степное","75617477","МУП \"Благоустройство\"","7425759157","742501001","производство (некомбинированная выработка)+передача+сбыт"]
[52,"Верхнеуральский муниципальный район","Сурменевское","75617479","МУП \"Благоустройство\"","7425759157","742501001","производство (некомбинированная выработка)+передача+сбыт"]
[53,"Верхнеуральский муниципальный район","Сурменевское","75617479","ООО \"Станица\"","7425758114","742501001","производство (некомбинированная выработка)+передача+сбыт"]
[54,"Верхнеуральский муниципальный район","Форштадское","75617488","МУП \"Благоустройство\"","7425759157","742501001","производство (некомбинированная выработка)+передача+сбыт"]
[55,"Город Верхний Уфалей","Город Верхний Уфалей","75706000","Вагонное депо Верхний Уфалей - филиал ЗАО \"Уралгоршахткомплект\"","6671115787","740201001","производство (некомбинированная выработка)+передача+сбыт"]
[56,"Город Верхний Уфалей","Город Верхний Уфалей","75706000","МУП \"Благоустройство\"","7425759157","742501001","производство (некомбинированная выработка)+передача+сбыт"]
[57,"Город Верхний Уфалей","Город Верхний Уфалей","75706000","МУП \"Энергетик\"","7402007009","740201001","производство (некомбинированная выработка)+передача+сбыт"]
[58,"Город Верхний Уфалей","Город Верхний Уфалей","75706000","ОАО \"Завод Дормаш\"","7402000412","740201001","производство (некомбинированная выработка)+передача+сбыт"]
[59,"Город Верхний Уфалей","Город Верхний Уфалей","75706000","ОАО \"Уфалейникель\"","7402001769","740201001","производство (некомбинированная выработка)+передача+сбыт"]
[60,"Город Верхний Уфалей","Город Верхний Уфалей","75706000","ООО \"Бриз\"","7451273885","745101001","производство (некомбинированная выработка)+передача+сбыт"]
[61,"Город Верхний Уфалей","Город Верхний Уфалей","75706000","ООО \"Волна\"","7402000797","740201001","производство (некомбинированная выработка)+передача+сбыт"]
[62,"Город Верхний Уфалей","Город Верхний Уфалей","75706000","ООО \"Теплосети\"","7402008362","740201001","производство (некомбинированная выработка)+передача+сбыт"]
[63,"Город Верхний Уфалей","Город Верхний Уфалей","75706000","ООО \"УЗМИ\"","7402004819","740201001","Передача"]
[64,"Город Златоуст","Город Златоуст","75712000","МУП \"Коммунальные сети\"","7404056530","740401001","Передача+Сбыт"]
[65,"Город Златоуст","Город Златоуст","75712000","ОАО \"Златоустовский машиностроительный завод\"","7404052938","741450001","производство (некомбинированная выработка)"]
[66,"Город Златоуст","Город Златоуст","75712000","ООО \"ЗМЗ-Энерго\"","7404056636","740401001","производство (некомбинированная выработка)+передача+сбыт"]
[67,"Город Златоуст","Город Златоуст","75712000","ООО \"Златсеть\"","7404056121","740401001","Передача"]
[68,"Город Златоуст","Город Златоуст","75712000","ООО \"Специальное производственно-монтажное управление № 2М\"","7404038997","740401001","производство (некомбинированная выработка)+передача+сбыт"]
[69,"Город Златоуст","Город Златоуст","75712000","ООО \"Теплоэнергетик\"","7404054090","740401001","производство (некомбинированная выработка)+передача+сбыт"]
[70,"Город Златоуст","Город Златоуст","75712000","ООО \"Техметпром\"","7404051099","740401001","производство (некомбинированная выработка)+передача+сбыт"]
[71,"Город Златоуст","Город Златоуст","75712000","Путевая машинная станция № 173 Южно-Уральской дирекции по ремонту пути - структурного подразделения Центральной дирекции по ремонту пути - филиала ОАО \"РЖД\"","7708503727","740431030","производство (некомбинированная выработка)+передача+сбыт"]
[72,"Город Златоуст","Город Златоуст","75712000","Челябинский филиал ООО \"МЕЧЕЛ-ЭНЕРГО\"","7722245108","745043001","производство комбинированная выработка"]
[73,"Город Златоуст","Город Златоуст","75712000","Челябинский филиал ООО \"МЕЧЕЛ-ЭНЕРГО\"","7722245108","745043001","производство (некомбинированная выработка)+передача+сбыт"]
[74,"Город Златоуст","Город Златоуст","75712000","филиал ОАО \"Росспиртпром\" \"Златоустовский ликероводочный завод\" (переименован от филиал ФГУП \"Росспиртпром\" \"Златоустовский ликероводочный завод\")","7730605160","740443001","производство (некомбинированная выработка)"]
[75,"Город Карабаш","Город Карабаш","75715000","\"Карабашмедь\"","7400002523","740001001","производство (некомбинированная выработка)+передача+сбыт"]
[76,"Город Карабаш","Город Карабаш","75715000","\"УК \"ЖКХ\" Карабашского городского округа","7413012642","741301001","Передача"]
[77,"Город Карабаш","Город Карабаш","75715000","МАУ \"Карабашские коммунальные системы\"","7413015347","741301001","производство (некомбинированная выработка)+передача+сбыт"]
[78,"Город Карабаш","Город Карабаш","75715000","ООО \"Фортуна Плюс\"","7415064205","741501001","производство (некомбинированная выработка)+передача+сбыт"]
[79,"Город Копейск","Город Копейск","75728000","Копейское шахтоуправление - филиал ОАО по добыче угля \"Челябинская угольная компания\"","7451105792","741201001","производство (некомбинированная выработка)+передача+сбыт"]
[80,"Город Копейск","Город Копейск","75728000","МУП \"Производственное объединение водоснабжения и водоотведения\"","7421000440","742150001","производство (некомбинированная выработка)+передача+сбыт"]
[81,"Город Копейск","Город Копейск","75728000","МУП Копейского городского округа \"Городские бани\"","7411019064","741101001","производство (некомбинированная выработка)+передача+сбыт"]
[82,"Город Копейск","Город Копейск","75728000","ОАО \"Птицефабрика Челябинская\"","7430008205","745450001","производство (некомбинированная выработка)+передача+сбыт"]
[83,"Город Копейск","Город Копейск","75728000","ОАО Завод Пластмасс","7411009901","741101001","производство (некомбинированная выработка)"]
[84,"Город Копейск","Город Копейск","75728000","ООО \"ИРМИ ЖКХ\"","7411019829","741101001","Передача"]
[85,"Город Копейск","Город Копейск","75728000","ООО \"Квартал-Сервис\"","7411042803","741101001","производство (некомбинированная выработка)+передача+сбыт"]
[86,"Город Копейск","Город Копейск","75728000","ООО \"Копейский кирпичный завод\"","7411015849","741101001","производство (некомбинированная выработка)"]
[87,"Город Копейск","Город Копейск","75728000","ООО \"Коркинский экскаваторо-вагоноремонтный завод\"","7412012791","741201001","производство (некомбинированная выработка)+передача+сбыт"]
[88,"Город Копейск","Город Копейск","75728000","ООО \"Тепло и Сервис\"","7411017733","741101001","производство (некомбинированная выработка)+передача+сбыт"]
[89,"Город Копейск","Город Копейск","75728000","ФКУ ИК-11 ГУФСИН России по Челябинской области","7411015937","741101001","производство (некомбинированная выработка)"]
[90,"Город Кыштым","Город Кыштым","75734000","МУП \"Санаторий \"Дальняя Дача\"","7422012007","741301001","производство (некомбинированная выработка)+передача+сбыт"]
[91,"Город Кыштым","Город Кыштым","75734000","Муниципальное производственное управление теплоснабжения","7413000541","741301001","производство (некомбинированная выработка)+передача+сбыт"]
[92,"Город Кыштым","Город Кыштым","75734000","ОАО \"КСАНТА\"","7413012160","741301001","производство (некомбинированная выработка)"]
[93,"Город Кыштым","Город Кыштым","75734000","ОАО \"Кыштымский абразивный завод\"","7413007498","741301001","производство (некомбинированная выработка)"]
[94,"Город Кыштым","Город Кыштым","75734000","ОАО \"Кыштымское машиностроительное объединение\"","7413009745","741301001","производство (некомбинированная выработка)+передача+сбыт"]
[95,"Город Кыштым","Город Кыштым","75734000","ООО \"Импульс\"","6670116900","744701001","производство (некомбинированная выработка)+передача+сбыт"]
[96,"Город Кыштым","Город Кыштым","75734000","ООО \"Кыштымский огнеупорный завод\"","7413009880","741301001","производство (некомбинированная выработка)"]
[97,"Город Кыштым","Город Кыштым","75734000","ФКУЗ \"Санаторий \"Лесное озеро\" МВД России\" (переименован из ГУ \"Санаторий \"Лесное озеро\" МВД России)","7413003260","741301001","производство (некомбинированная выработка)"]
[98,"Город Магнитогорск","Город Магнитогорск","75738000","Вагонное рамонтное депо Магнитогорск - обособленное структурное подразделение Самарского филиала ОАО  \"Вагонная ремонтная компания - 1\"","7708737490","745645001","производство (некомбинированная выработка)+передача+сбыт"]
[99,"Город Магнитогорск","Город Магнитогорск","75738000","ЗАО \"Магнитогорский комбинат хлебопродуктов \"Ситно\"","7414001724","744501001","производство (некомбинированная выработка)+передача+сбыт"]
[100,"Город Магнитогорск","Город Магнитогорск","75738000","МП трест \"Теплофикация\"","7414000657","744501001","производство (некомбинированная выработка)+передача+сбыт"]
[101,"Город Магнитогорск","Город Магнитогорск","75738000","ОАО \"Магнитогорский металлургический комбинат\"","7414003633","997550001","производство (некомбинированная выработка)"]
[102,"Город Магнитогорск","Город Магнитогорск","75738000","ОАО \"Магнитогорский метизно-калибровочный завод \"ММК-Метиз\"","7414001428","741450001","производство (некомбинированная выработка)+передача+сбыт"]
[103,"Город Магнитогорск","Город Магнитогорск","75738000","ООО \"ЗЖБИ-500\"","7444039010","744401001","производство (некомбинированная выработка)+передача+сбыт"]
[104,"Город Магнитогорск","Город Магнитогорск","75738000","ООО \"МагХолод\"","7446047168","744401001","производство (некомбинированная выработка)+передача+сбыт"]
[105,"Город Магнитогорск","Город Магнитогорск","75738000","ООО \"Магнитогорский завод пиво-безалкогольных напитков\"","7445037819","744501001","производство (некомбинированная выработка)+передача+сбыт"]
[106,"Город Магнитогорск","Город Магнитогорск","75738000","ООО \"Производственная компания \"Макинтош\"","7444033025","744401001","производство (некомбинированная выработка)+передача+сбыт"]
[107,"Город Магнитогорск","Город Магнитогорск","75738000","ООО \"Фабрика кухонной мебели\"","7444050542","744401001","производство (некомбинированная выработка)+передача+сбыт"]
[108,"Город Магнитогорск","Город Магнитогорск","75738000","ООО \"Элеваторзернопродукт\"","7453062777","744601001","производство (некомбинированная выработка)+передача+сбыт"]
[109,"Город Магнитогорск","Город Магнитогорск","75738000","ФБУ ИК-18 ГУФСИН России по Челябинской области","7445016047","744501001","производство (некомбинированная выработка)+передача+сбыт"]
[110,"Город Магнитогорск","Город Магнитогорск","75738000","ФГУП \"Магнитогорское авиапредприятие\"","7414001957","744601001","производство (некомбинированная выработка)+передача+сбыт"]
[111,"Город Миасс","Город Миасс","75742000","Государственное предприятие \"Предприятие \"Урал\"","7415010249","741501001","производство (некомбинированная выработка)+передача+сбыт"]
[112,"Город Миасс","Город Миасс","75742000","ЗАО \"Миассмебель\"","7415002713","741501001","производство (некомбинированная выработка)+передача+сбыт"]
[113,"Город Миасс","Город Миасс","75742000","ОАО \"Миасский машиностроительный завод\"","7415061758","741501001","производство комбинированная выработка"]
[114,"Город Миасс","Город Миасс","75742000","ОАО \"Миассэлектроаппарат\"","7415028790","741501001","Передача"]
[115,"Город Миасс","Город Миасс","75742000","ОАО \"Первая нерудная компания\" - филиал Хребетский щебеночный завод","7708670326","741502001","производство (некомбинированная выработка)"]
[116,"Город Миасс","Город Миасс","75742000","ОАО \"Тургоякское рудоуправление\"","7415004421","741501001","производство (некомбинированная выработка)+передача+сбыт"]
[117,"Город Миасс","Город Миасс","75742000","ОАО \"ЭнСер\" переименована от (ОАО \"УралАЗ-Энерго\")","7415036215","741501001","производство (некомбинированная выработка)+передача+сбыт"]
[118,"Город Миасс","Город Миасс","75742000","ООО \"ЖЭК\"","7415044632","741501001","производство (некомбинированная выработка)+передача+сбыт"]
[119,"Город Миасс","Город Миасс","75742000","ООО \"ИБК-Энерго\"","7415046510","741501001","производство (некомбинированная выработка)+передача+сбыт"]
[120,"Город Миасс","Город Миасс","75742000","ООО \"ПЭК \"Теплоснабжение\"","7415040155","741501001","Передача"]
[121,"Город Миасс","Город Миасс","75742000","ООО \"ТК \"Октябрь\"","7415049045","741501001","производство (некомбинированная выработка)+передача+сбыт"]
[122,"Город Миасс","Город Миасс","75742000","ООО \"ТеплоРемонт\"","7448112790","744801001","производство (некомбинированная выработка)+сбыт"]
[123,"Город Миасс","Город Миасс","75742000","ООО \"ТеплоСтройСервис\"","7415061652","741501001","производство (некомбинированная выработка)+передача+сбыт"]
[124,"Город Миасс","Город Миасс","75742000","ООО \"УралТеплоСтрой\"","7415050153","741501001","производство (некомбинированная выработка)+передача+сбыт"]
[125,"Город Миасс","Город Миасс","75742000","ООО \"Южная Теплоэнергетическая компания\"","7415043847","741501001","производство (некомбинированная выработка)+передача+сбыт"]
[126,"Город Миасс","Город Миасс","75742000","ООО \"Южный ТеплоЭнергетический комплекс\"","7415046220","741501001","производство (некомбинированная выработка)+передача+сбыт"]
[127,"Город Миасс","Город Миасс","75742000","УК \"Орион\" поселок Ленинск","7415048605","741501001","Передача"]
[128,"Город Миасс","Город Миасс","75742000","Частное учреждение \"Детский оздоровительный лагерь \"Еланчик\" ОАО \"ЧТПЗ\"","7415033126","741501001","производство (некомбинированная выработка)+передача+сбыт"]
[129,"Город Миасс","Город Миасс","75742000","Челябинское нефтепроводное управление - филиал ОАО \"Уралсибнефтепровод\"","0278039018","744902001","производство (некомбинированная выработка)+передача+сбыт"]
[130,"Город Озерск (ЗАТО)","Город Озерск (ЗАТО)","75743000","ММПКХ","7422000570","742201001","производство (некомбинированная выработка)+передача+сбыт"]
[131,"Город Озерск (ЗАТО)","Город Озерск (ЗАТО)","75743000","ММУП ЖКХ п. Новогорный","7422015336","742201001","производство (некомбинированная выработка)+передача+сбыт"]
[132,"Город Озерск (ЗАТО)","Город Озерск (ЗАТО)","75743000","ОАО \"Фортум\" (Аргаяшская ТЭЦ)","7203162698","742202001","производство комбинированная выработка"]
[133,"Город Озерск (ЗАТО)","Город Озерск (ЗАТО)","75743000","ООО \"Управление энергоснабжения и связи\"","7422043968","742201001","Передача"]
[134,"Город Озерск (ЗАТО)","Город Озерск (ЗАТО)","75743000","ФГУП \"ПО \"Маяк\"","7422000795","742201001","производство (некомбинированная выработка)+передача+сбыт"]
[135,"Город Снежинск (ЗАТО)","Город Снежинск (ЗАТО)","75746000","ОАО \"Трансэнерго\"","7423023178","745450001","производство (некомбинированная выработка)"]
[136,"Город Снежинск (ЗАТО)","Город Снежинск (ЗАТО)","75746000","ООО \"Дом\"","7423021406","742301001","производство (некомбинированная выработка)+передача+сбыт"]
[137,"Город Трехгорный (ЗАТО)","Город Трехгорный (ЗАТО)","75707000","МУП \"Многоотраслевое производственное объединение энергосетей\"","7405000450","740501001","производство (некомбинированная выработка)+передача+сбыт"]
[138,"Город Трехгорный (ЗАТО)","Город Трехгорный (ЗАТО)","75707000","ФГУП  \"Приборостроительный завод\"","7405000428","742150001","производство (некомбинированная выработка)+передача+сбыт"]
[139,"Город Троицк","Город Троицк","75752000","ГУЗ \"Областная туберкулезная больница № 13\"","7418015703","741801001","производство (некомбинированная выработка)+передача+сбыт"]
[140,"Город Троицк","Город Троицк","75752000","ЗАО \"Троицкие энергетические системы\"","7418014763","741801001","Передача+Сбыт"]
[141,"Город Троицк","Город Троицк","75752000","Закрытое акционерное общество \"Троицкая энергетическая компания\"","7418017355","741801004","Передача+Сбыт"]
[142,"Город Троицк","Город Троицк","75752000","МУП \"Электротепловые сети\"","7418012452","741801001","производство (некомбинированная выработка)+передача+сбыт"]
[143,"Город Троицк","Город Троицк","75752000","ОАО \"Троицкий комбинат хлебопродуктов\"","7439000585","741801001","производство (некомбинированная выработка)+передача+сбыт"]
[144,"Город Троицк","Город Троицк","75752000","ООО \"Агротехсервис\"","7418018253","741801001","производство (некомбинированная выработка)+передача+сбыт"]
[145,"Город Троицк","Город Троицк","75752000","ООО Теплоэнерго","7418014072","741801001","Передача+Сбыт"]
[146,"Город Троицк","Город Троицк","75752000","Троицкая ГРЭС филиал ОАО \"ОГК-2\"","2607018122","741802001","производство комбинированная выработка"]
[147,"Город Троицк","Город Троицк","75752000","Федеральное государственное казенное учреждение  \"Пограничное управление ФСБ России по Челябинской области\"","7453145261","745301001","производство (некомбинированная выработка)+передача+сбыт"]
[148,"Город Усть-Катав","Город Усть-Катав","75755000","ООО \"Коммунальные системы\"","7401016226","740101001","производство (некомбинированная выработка)"]
[149,"Город Усть-Катав","Город Усть-Катав","75755000","ООО \"Теплоэнергетика\"","7401011316","740101001","производство (некомбинированная выработка)+передача+сбыт"]
[150,"Город Чебаркуль","Город Чебаркуль","75758000","ГОУ СПО (ССУЗ) \"Чебаркульский агролесохозяйственный колледж\"","7420006181","742001001","производство (некомбинированная выработка)+передача+сбыт"]
[151,"Город Чебаркуль","Город Чебаркуль","75758000","ГУП \"Санаторий Еловое\"","7420005117","742001001","производство (некомбинированная выработка)+передача+сбыт"]
[152,"Город Чебаркуль","Город Чебаркуль","75758000","ГУП Санаторий \"Сосновая горка\"","7420005163","742001001","производство (некомбинированная выработка)+передача+сбыт"]
[153,"Город Чебаркуль","Город Чебаркуль","75758000","МУП \"Теплоэнергоснабжение\"","7420003663","742001001","Передача+Сбыт"]
[154,"Город Чебаркуль","Город Чебаркуль","75758000","ООО \"АТИС\"","7420008301","742001001","производство (некомбинированная выработка)+передача+сбыт"]
[155,"Город Чебаркуль","Город Чебаркуль","75758000","ООО \"ЖЭУ-3\"","7420014778","742001001","производство (некомбинированная выработка)+передача+сбыт"]
[156,"Город Чебаркуль","Город Чебаркуль","75758000","ООО \"Санаторий \"Кисегач\"","7420007450","742001001","производство (некомбинированная выработка)+передача+сбыт"]
[157,"Город Чебаркуль","Город Чебаркуль","75758000","ООО \"ТеплоРесурс\"","7420013929","742001001","производство (некомбинированная выработка)+передача+сбыт"]
[158,"Город Чебаркуль","Город Чебаркуль","75758000","ООО \"Уральская фанера\"","7420007964","742001001","производство (некомбинированная выработка)+передача+сбыт"]
[159,"Город Чебаркуль","Город Чебаркуль","75758000","ООО \"Чебаркульская птица\"","7420008157","742001001","производство (некомбинированная выработка)+передача+сбыт"]
[160,"Город Чебаркуль","Город Чебаркуль","75758000","Челябинский филиал ООО \"МЕЧЕЛ-ЭНЕРГО\"","7722245108","745043001","производство комбинированная выработка"]
[161,"Город Чебаркуль","Город Чебаркуль","75758000","Челябинский филиал ООО \"МЕЧЕЛ-ЭНЕРГО\"","7722245108","745043001","производство (некомбинированная выработка)+передача+сбыт"]
[162,"Город Южноуральск","Город Южноуральск","75764000","ОАО \"ОГК-3\" - Южноуральская ГРЭС","0326023099","742402001","производство комбинированная выработка"]
[163,"Город Южноуральск","Город Южноуральск","75764000","ОАО \"Южноуральская теплосбытовая компания\"","7424024520","742401001","Передача+Сбыт"]
[164,"Город Южноуральск","Город Южноуральск","75764000","ООО \"ТеплоСервис\"","7424027295","742401001","производство (некомбинированная выработка)+передача+сбыт"]
[165,"Городские округа Челябинской области","Городские округа Челябинской области","75700000","Дирекция по ремонту и эксплуатации путевых машин ЮУЖД - филиала ОАО \"РЖД\"","7708503727","745145033","производство (некомбинированная выработка)+сбыт"]
[166,"Городские округа Челябинской области","Городские округа Челябинской области","75700000","МУП \"ЖКХ\" п.Жукатау","7417013527","741701001","производство (некомбинированная выработка)+передача+сбыт"]
[167,"Городские округа Челябинской области","Городские округа Челябинской области","75700000","МУП \"Производственное объединение водоснабжения и водоотведения\"","7421000440","742150001","производство (некомбинированная выработка)+передача+сбыт"]
[168,"Городские округа Челябинской области","Городские округа Челябинской области","75700000","ОАО \"ВРК-2\"","7708737517","745145001","производство (некомбинированная выработка)+передача+сбыт"]
[169,"Городские округа Челябинской области","Городские округа Челябинской области","75700000","ОАО \"Фортум\"  (Челябинская ТЭЦ-1)","7203162698","744943001","производство комбинированная выработка"]
[170,"Городские округа Челябинской области","Городские округа Челябинской области","75700000","ОАО \"Фортум\" (Челябинская ГРЭС)","7203162698","744702001","производство комбинированная выработка"]
[171,"Городские округа Челябинской области","Городские округа Челябинской области","75700000","ОАО \"Фортум\" (Челябинская ТЭЦ-2)","7203162698","745202002","производство комбинированная выработка"]
[172,"Городские округа Челябинской области","Городские округа Челябинской области","75700000","ОАО \"Фортум\" (Челябинская ТЭЦ-3)","7203162698","745202001","производство комбинированная выработка"]
[173,"Городские округа Челябинской области","Городские округа Челябинской области","75700000","ОАО \"Энергопром-Челябинский Электродный завод\"","7450005001","745001001","производство (некомбинированная выработка)+сбыт"]
[174,"Городские округа Челябинской области","Городские округа Челябинской области","75700000","ОАО \"Энергосистемы\"","7417011223","741701001","производство (некомбинированная выработка)+передача+сбыт"]
[175,"Городские округа Челябинской области","Городские округа Челябинской области","75700000","ОГУП \"Областная казна\"","7448002282","744801001","производство (некомбинированная выработка)+передача+сбыт"]
[176,"Городские округа Челябинской области","Городские округа Челябинской области","75700000","ООО \"Тепловая котельная \"Западная\"","7453203932","745301001","производство (некомбинированная выработка)+передача+сбыт"]
[177,"Городские округа Челябинской области","Городские округа Челябинской области","75700000","ООО \"Термогаз\"","7447194905","744701001","производство (некомбинированная выработка)+передача+сбыт"]
[178,"Городские округа Челябинской области","Городские округа Челябинской области","75700000","ООО \"УК \"Вертикаль\"","7452071810","745201001","Передача"]
[179,"Городские округа Челябинской области","Городские округа Челябинской области","75700000","ООО ГК \"Уральская энергия\"","7453228790","745301001","производство (некомбинированная выработка)+передача+сбыт"]
[180,"Городские округа Челябинской области","Городские округа Челябинской области","75700000","Общество с ограниченной ответственностью \"Управляющая компания \"Тополиная аллея\"","7447094851","744701001","производство (некомбинированная выработка)+передача+сбыт"]
[181,"Городские округа Челябинской области","Городские округа Челябинской области","75700000","Открытое акционерное общество \"Ремонтно-эксплуатационное управление\" филиал \"Екатеринбургский\", г.Екатеринбург","7714783092","667243001","производство (некомбинированная выработка)+передача+сбыт"]
[182,"Городские округа Челябинской области","Городские округа Челябинской области","75700000","ТСЖ \"Кумысное\"","7418017203","741801001","Передача+Сбыт"]
[183,"Городские округа Челябинской области","Городские округа Челябинской области","75700000","Теплоэнергосбыт ООО","7453174382","745301001","Передача+Сбыт"]
[184,"Городские округа Челябинской области","Городские округа Челябинской области","75700000","ФГБУ \"ФЦССХ\" Минздравсоцразвития России (г. Челябинск)","7453215984","745301001","производство (некомбинированная выработка)+передача+сбыт"]
[185,"Городские округа Челябинской области","Городские округа Челябинской области","75700000","Челябинский филиал ООО \"МЕЧЕЛ-ЭНЕРГО\"","7722245108","745043001","производство (некомбинированная выработка)+передача+сбыт"]
[186,"Городские округа Челябинской области","Городские округа Челябинской области","75700000","Челябинский филиал ООО \"МЕЧЕЛ-ЭНЕРГО\"","7722245108","745043001","производство комбинированная выработка"]
[187,"Городские округа Челябинской области","Городские округа Челябинской области","75700000","Южно-Уральская дирекция по тепловодоснабжению - структурное подразделение Центральной дирекции по тепловодоснабжению - филиала ОАО \"РЖД\"","7708503727","744945004","производство (некомбинированная выработка)+передача+сбыт"]
[188,"Городские округа Челябинской области","город Челябинск","75700000","\"Инженерные сети\"","7453062551","745301001","Передача"]
[189,"Городские округа Челябинской области","город Челябинск","75700000","\"Полет-Торг\"","7448065733","744801001","Передача"]
[190,"Городские округа Челябинской области","город Челябинск","75700000","\"Уралспецстрой\"","7452020615","745201001","Передача"]
[191,"Городские округа Челябинской области","город Челябинск","75700000","Вагонное ремонтное депо Челябинск Южно-Уральской дирекции по ремонту грузовых вагонов - структурного подразделения Центральной дирекции по ремонту грузовых вагонов - филиала ОАО \"РЖД\"","7708503727","745131023","производство (некомбинированная выработка)+передача+сбыт"]
[192,"Городские округа Челябинской области","город Челябинск","75700000","Дирекция по ремонту и эксплуатации путевых машин ЮУЖД - филиала ОАО \"РЖД\"","7708503727","745145033","производство (некомбинированная выработка)+сбыт"]
[193,"Городские округа Челябинской области","город Челябинск","75700000","ЖКС \"ЖЭК-2\"","7448069858","744801001","Передача"]
[194,"Городские округа Челябинской области","город Челябинск","75700000","ЗАО \"ЖБИ-2\"","7449010303","744901001","Передача"]
[195,"Городские округа Челябинской области","город Челябинск","75700000","ЗАО \"Предприятие службы быта \"Станция технического обслуживания автомобилей\"","7451018388","745101001","производство (некомбинированная выработка)+передача+сбыт"]
[196,"Городские округа Челябинской области","город Челябинск","75700000","Куйбышевская железная дорога - филиал РЖД","7708503727","770901001","производство (некомбинированная выработка)+передача+сбыт"]
[197,"Городские округа Челябинской области","город Челябинск","75700000","МУП \"Дорожное ремонтно-строительное управление\"","7453001245","745101001","производство (некомбинированная выработка)+передача+сбыт"]
[198,"Городские округа Челябинской области","город Челябинск","75700000","МУП \"ЖКХ\" п.Жукатау","7417013527","741701001","производство (некомбинированная выработка)+передача+сбыт"]
[199,"Городские округа Челябинской области","город Челябинск","75700000","МУП \"Производственное объединение водоснабжения и водоотведения\"","7421000440","742150001","производство (некомбинированная выработка)+передача+сбыт"]
[200,"Городские округа Челябинской области","город Челябинск","75700000","МУП \"Челябинские коммунальные тепловые сети\"","7448005075","744801001","Передача"]
[201,"Городские округа Челябинской области","город Челябинск","75700000","ОАО \"БетЭлТранс\"","7708669867","745102001","производство (некомбинированная выработка)+передача+сбыт"]
[202,"Городские округа Челябинской области","город Челябинск","75700000","ОАО \"ВРК-2\"","7708737517","745145001","производство (некомбинированная выработка)+передача+сбыт"]
[203,"Городские округа Челябинской области","город Челябинск","75700000","ОАО \"Комбинат хлебопродуктов им. Григоровича\"","7453006500","745301001","производство (некомбинированная выработка)+передача+сбыт"]
[204,"Городские округа Челябинской области","город Челябинск","75700000","ОАО \"Макфа\"","7438015885","743801001","производство (некомбинированная выработка)+передача+сбыт"]
[205,"Городские округа Челябинской области","город Челябинск","75700000","ОАО \"Научно-исследовательский институт металлургии\"","7450001110","745001001","производство (некомбинированная выработка)+передача+сбыт"]
[206,"Городские округа Челябинской области","город Челябинск","75700000","ОАО \"Росжелдорстрой\" - филиал Завод ЖБК и СД СМТ \"Стройиндустрия\"","7708587205","745131002","производство (некомбинированная выработка)+передача+сбыт"]
[207,"Городские округа Челябинской области","город Челябинск","75700000","ОАО \"Ростелеком\" Челябинский филиал","7707049388","745343002","производство (некомбинированная выработка)+передача+сбыт"]
[208,"Городские округа Челябинской области","город Челябинск","75700000","ОАО \"Сигнал\"","7449105883","744901001","производство (некомбинированная выработка)+передача+сбыт"]
[209,"Городские округа Челябинской области","город Челябинск","75700000","ОАО \"Тепличный\"","7452001179","745201001","производство (некомбинированная выработка)+передача+сбыт"]
[210,"Городские округа Челябинской области","город Челябинск","75700000","ОАО \"Трубодеталь\"","7451047011","745101001","производство (некомбинированная выработка)+передача+сбыт"]
[211,"Городские округа Челябинской области","город Челябинск","75700000","ОАО \"Уралавтоприцеп\"","7450003445","745450001","производство (некомбинированная выработка)+передача+сбыт"]
[212,"Городские округа Челябинской области","город Челябинск","75700000","ОАО \"Уральская теплосетевая компания\"  филиал Челябинские тепловые сети","7203203418","745302002","производство (некомбинированная выработка)+передача+сбыт"]
[213,"Городские округа Челябинской области","город Челябинск","75700000","ОАО \"Уральский электродный институт\"","7447001173","744701001","производство (некомбинированная выработка)+передача+сбыт"]
[214,"Городские округа Челябинской области","город Челябинск","75700000","ОАО \"Фортум\"","7203162698","997450001","производство комбинированная выработка"]
[215,"Городские округа Челябинской области","город Челябинск","75700000","ОАО \"Фортум\"  (Челябинская ТЭЦ-1)","7203162698","744943001","производство комбинированная выработка"]
[216,"Городские округа Челябинской области","город Челябинск","75700000","ОАО \"Фортум\" (Челябинская ГРЭС)","7203162698","744702001","производство комбинированная выработка"]
[217,"Городские округа Челябинской области","город Челябинск","75700000","ОАО \"Фортум\" (Челябинская ТЭЦ-2)","7203162698","745202002","производство комбинированная выработка"]
[218,"Городские округа Челябинской области","город Челябинск","75700000","ОАО \"Фортум\" (Челябинская ТЭЦ-3)","7203162698","745202001","производство комбинированная выработка"]
[219,"Городские округа Челябинской области","город Челябинск","75700000","ОАО \"ЧЗПСН-Профнастил\"","7447014976","744701001","производство (некомбинированная выработка)+передача+сбыт"]
[220,"Городские округа Челябинской области","город Челябинск","75700000","ОАО \"Челябинскгипромез-недвижимость\"","7451272592","745101001","производство (некомбинированная выработка)+передача+сбыт"]
[221,"Городские округа Челябинской области","город Челябинск","75700000","ОАО \"Челябинскгоргаз\"","7451046106","745101001","производство (некомбинированная выработка)+передача+сбыт"]
[222,"Городские округа Челябинской области","город Челябинск","75700000","ОАО \"Челябинскгражданстрой\"","7453017809","745301001","Передача"]
[223,"Городские округа Челябинской области","город Челябинск","75700000","ОАО \"Челябинское авиапредприятие\"","7450003519","745001001","производство (некомбинированная выработка)+передача+сбыт"]
[224,"Городские округа Челябинской области","город Челябинск","75700000","ОАО \"Челябкоммунэнерго\"","7451194577","744801001","производство (некомбинированная выработка)+передача+сбыт"]
[225,"Городские округа Челябинской области","город Челябинск","75700000","ОАО \"Челябспецтранс\"","7421000337","744801001","Передача"]
[226,"Городские округа Челябинской области","город Челябинск","75700000","ОАО \"Электромашина\"","7449016055","744901001","производство (некомбинированная выработка)+передача+сбыт"]
[227,"Городские округа Челябинской области","город Челябинск","75700000","ОАО \"Энергопром-Челябинский Электродный завод\"","7450005001","745001001","производство (некомбинированная выработка)+сбыт"]
[228,"Городские округа Челябинской области","город Челябинск","75700000","ОАО \"Энергосистемы\"","7417011223","741701001","производство (некомбинированная выработка)+передача+сбыт"]
[229,"Городские округа Челябинской области","город Челябинск","75700000","ОАО \"Южуралкондитер\"","7451012266","745101001","производство (некомбинированная выработка)+передача+сбыт"]
[230,"Городские округа Челябинской области","город Челябинск","75700000","ОГУП \"Областная казна\"","7448002282","744801001","производство (некомбинированная выработка)+передача+сбыт"]
[231,"Городские округа Челябинской области","город Челябинск","75700000","ООО \"ВПК ЧелПром\"","7451079736","745101001","производство (некомбинированная выработка)+передача+сбыт"]
[232,"Городские округа Челябинской области","город Челябинск","75700000","ООО \"Галион\"","7447074654","744701001","производство (некомбинированная выработка)+передача+сбыт"]
[233,"Городские округа Челябинской области","город Челябинск","75700000","ООО \"Геоинвест\"","7453099671","745301001","производство (некомбинированная выработка)+передача+сбыт"]
[234,"Городские округа Челябинской области","город Челябинск","75700000","ООО \"Жилстройсервис-плюс К\"","7447118767","744701001","Передача"]
[235,"Городские округа Челябинской области","город Челябинск","75700000","ООО \"Малая генерация\"","7453192705","745301001","производство (некомбинированная выработка)+передача+сбыт"]
[236,"Городские округа Челябинской области","город Челябинск","75700000","ООО \"Новосинеглазовский завод строительных материалов\"","7453091834","745101001","производство (некомбинированная выработка)+передача+сбыт"]
[237,"Городские округа Челябинской области","город Челябинск","75700000","ООО \"ПЖРЭО Курчатовского района\"","7448061175","744801001","Передача"]
[238,"Городские округа Челябинской области","город Челябинск","75700000","ООО \"ПлазаДевелопментСервис\"","7453140986","745301001","производство (некомбинированная выработка)+передача+сбыт"]
[239,"Городские округа Челябинской области","город Челябинск","75700000","ООО \"СИТИ-ПАРК Энерго\"","7452091609","745201001","производство (некомбинированная выработка)+передача+сбыт"]
[240,"Городские округа Челябинской области","город Челябинск","75700000","ООО \"Святогор\"","7447134600","744701001","производство (некомбинированная выработка)+передача+сбыт"]
[241,"Городские округа Челябинской области","город Челябинск","75700000","ООО \"Тепло\"","7452045754","745201001","Передача"]
[242,"Городские округа Челябинской области","город Челябинск","75700000","ООО \"Тепловая котельная \"Западная\"","7453203932","745301001","производство (некомбинированная выработка)+передача+сбыт"]
[243,"Городские округа Челябинской области","город Челябинск","75700000","ООО \"Тепловые электрические сети и системы\"","7450053485","745001001","Передача"]
[244,"Городские округа Челябинской области","город Челябинск","75700000","ООО \"Теплосбыт\"","7448059271","744801001","производство (некомбинированная выработка)+передача+сбыт"]
[245,"Городские округа Челябинской области","город Челябинск","75700000","ООО \"Теплоснабжающая организация\"","7447153747","744701001","производство (некомбинированная выработка)+передача+сбыт"]
[246,"Городские округа Челябинской области","город Челябинск","75700000","ООО \"Терминал-Ч\"","7451249096","744801001","производство (некомбинированная выработка)+передача+сбыт"]
[247,"Городские округа Челябинской области","город Челябинск","75700000","ООО \"Термогаз\"","7447194905","744701001","производство (некомбинированная выработка)+передача+сбыт"]
[248,"Городские округа Челябинской области","город Челябинск","75700000","ООО \"УК \"Вертикаль\"","7452071810","745201001","Передача"]
[249,"Городские округа Челябинской области","город Челябинск","75700000","ООО \"Управляющая компания \"РЭККОМ\"","7453136933","745301001","производство (некомбинированная выработка)+передача+сбыт"]
[250,"Городские округа Челябинской области","город Челябинск","75700000","ООО \"Уральская фабрика \"Комус-Упаковка\"","7447067992","744801001","производство (некомбинированная выработка)+передача+сбыт"]
[251,"Городские округа Челябинской области","город Челябинск","75700000","ООО \"ЧТЗ-УРАЛТРАК\"","7452027843","997850001","производство (некомбинированная выработка)+передача+сбыт"]
[252,"Городские округа Челябинской области","город Челябинск","75700000","ООО \"Челябинский асфальтный завод\"","7451224983","745101001","производство (некомбинированная выработка)+передача+сбыт"]
[253,"Городские округа Челябинской области","город Челябинск","75700000","ООО \"ЭВиК\"","7452045722","745201001","Передача"]
[254,"Городские округа Челябинской области","город Челябинск","75700000","ООО \"Энергоснабжающая сетевая компания\"","7453161626","745301001","Передача+Сбыт"]
[255,"Городские округа Челябинской области","город Челябинск","75700000","ООО ГК \"Уральская энергия\"","7453228790","745301001","производство (некомбинированная выработка)+передача+сбыт"]
[256,"Городские округа Челябинской области","город Челябинск","75700000","ООО Компания \"ПРАЙС\"","7451046917","745201001","Передача+Сбыт"]
[257,"Городские округа Челябинской области","город Челябинск","75700000","ООО Компания \"ПРАЙС\"","7451046917","745201001","производство комбинированная выработка"]
[258,"Городские округа Челябинской области","город Челябинск","75700000","ООО РЭУ \"Новострой\"","7453134541","745301001","Передача"]
[259,"Городские округа Челябинской области","город Челябинск","75700000","ООО УК \"47-й микрорайон\"","7448078450","744801001","производство (некомбинированная выработка)+передача+сбыт"]
[260,"Городские округа Челябинской области","город Челябинск","75700000","Общество с ограниченной ответственностью \"Управляющая компания \"Тополиная аллея\"","7447094851","744701001","производство (некомбинированная выработка)+передача+сбыт"]
[261,"Городские округа Челябинской области","город Челябинск","75700000","Открытое акционерное общество \"Ремонтно-эксплуатационное управление\" филиал \"Екатеринбургский\", г.Екатеринбург","7714783092","667243001","производство (некомбинированная выработка)+передача+сбыт"]
[262,"Городские округа Челябинской области","город Челябинск","75700000","Открытое акционерное общество Челябинский электрометаллургический комбинат","7447010227","742150001","Передача+Сбыт"]
[263,"Городские округа Челябинской области","город Челябинск","75700000","ПК \"Жилстройсервис-плюс\"","7451102840","745101001","Передача"]
[264,"Городские округа Челябинской области","город Челябинск","75700000","СК \"Стройком\"","7448024401","744801001","Передача"]
[265,"Городские округа Челябинской области","город Челябинск","75700000","ТСЖ  \"Стройком\"","7447040380","744701001","Передача"]
[266,"Городские округа Челябинской области","город Челябинск","75700000","ТСЖ \"Кумысное\"","7418017203","741801001","Передача+Сбыт"]
[267,"Городские округа Челябинской области","город Челябинск","75700000","ТСЖ \"Меридиан\"","7449051540","744901001","Передача"]
[268,"Городские округа Челябинской области","город Челябинск","75700000","ТСЖ \"НТМ-Сервис\"","7451080770","745101001","Передача"]
[269,"Городские округа Челябинской области","город Челябинск","75700000","Теплоэнергосбыт ООО","7453174382","745301001","Передача+Сбыт"]
[270,"Городские округа Челябинской области","город Челябинск","75700000","УК \"Жилищник-С\"","7448070123","744801001","Передача"]
[271,"Городские округа Челябинской области","город Челябинск","75700000","УК \"Заречье\"","7448071582","744801001","Передача"]
[272,"Городские округа Челябинской области","город Челябинск","75700000","УК \"Ремжилзаказчик\"","7451225578","745101001","Передача"]
[273,"Городские округа Челябинской области","город Челябинск","75700000","УК \"Созвездие\"","7451205596","745101001","Передача"]
[274,"Городские округа Челябинской области","город Челябинск","75700000","ФГБОУ ВПО \"Южно-Уральский государственный университет\"(НИУ)","7453019764","745301001","производство (некомбинированная выработка)+передача+сбыт"]
[275,"Городские округа Челябинской области","город Челябинск","75700000","ФГБУ \"ФЦССХ\" Минздравсоцразвития России (г. Челябинск)","7453215984","745301001","производство (некомбинированная выработка)+передача+сбыт"]
[276,"Городские округа Челябинской области","город Челябинск","75700000","ФГКЭУ \"Челябинская КЭЧ района\"","7453195329","745301001","производство (некомбинированная выработка)+передача+сбыт"]
[277,"Городские округа Челябинской области","город Челябинск","75700000","Челябинская дистанция гражданиских сооружений, водоснабжения и водоотведения ЮУЖД - филиала ОАО \"РЖД\"","7708503727","745132006","производство (некомбинированная выработка)+передача+сбыт"]
[278,"Городские округа Челябинской области","город Челябинск","75700000","Челябинский филиал ООО \"МЕЧЕЛ-ЭНЕРГО\"","7722245108","745043001","производство (некомбинированная выработка)+передача+сбыт"]
[279,"Городские округа Челябинской области","город Челябинск","75700000","Челябинский филиал ООО \"МЕЧЕЛ-ЭНЕРГО\"","7722245108","745043001","производство комбинированная выработка"]
[280,"Городские округа Челябинской области","город Челябинск","75700000","Южно-Уральская дирекция по тепловодоснабжению - структурное подразделение Центральной дирекции по тепловодоснабжению - филиала ОАО \"РЖД\"","7708503727","744945004","производство (некомбинированная выработка)+передача+сбыт"]
[281,"Еманжелинский муниципальный район","Город Еманжелинск","75619101","МП \"Горводоканал\"","7412010931","741201001","производство (некомбинированная выработка)+передача+сбыт"]
[282,"Еманжелинский муниципальный район","Город Еманжелинск","75619101","МУП \"Производственное объединение водоснабжения и водоотведения\"","7421000440","742150001","производство (некомбинированная выработка)+передача+сбыт"]
[283,"Еманжелинский муниципальный район","Город Еманжелинск","75619101","ООО \"Тепловая компания\"","7412013570","741201001","производство (некомбинированная выработка)+передача+сбыт"]
[284,"Еманжелинский муниципальный район","Поселок Зауральский","75619152","МП \"Горводоканал\"","7412010931","741201001","производство (некомбинированная выработка)+передача+сбыт"]
[285,"Еманжелинский муниципальный район","Поселок Зауральский","75619152","ООО \"ЖилКомСервис\"","7412009750","741201001","Передача"]
[286,"Еманжелинский муниципальный район","Поселок Зауральский","75619152","ООО \"ИСК\"","7453193794","745010001","производство (некомбинированная выработка)+передача+сбыт"]
[287,"Еманжелинский муниципальный район","Поселок Красногорский","75619154","ООО \"Коммунальная компания\"","7412011692","741201001","производство (некомбинированная выработка)+передача+сбыт"]
[288,"Еманжелинский муниципальный район","Поселок Красногорский","75619154","ООО \"Коммунальные сети\"","7412012382","741201001","производство (некомбинированная выработка)+передача+сбыт"]
[289,"Еманжелинский муниципальный район","Поселок Красногорский","75619154","ООО \"Коммунальные системы\"","7412015175","741201001","производство (некомбинированная выработка)+передача+сбыт"]
[290,"Еманжелинский муниципальный район","Поселок Красногорский","75619154","ООО \"Корвет\"","7412015182","741201001","производство (некомбинированная выработка)+передача+сбыт"]
[291,"Еткульский муниципальный район","Белоносовское","75620410","ОАО \"Птицефабрика Челябинская\"","7430008205","745450001","производство (некомбинированная выработка)+передача+сбыт"]
[292,"Еткульский муниципальный район","Белоносовское","75620410","ООО \"Еткульсервис ЖКХ\"","7430012642","743001001","производство (некомбинированная выработка)+передача+сбыт"]
[293,"Еткульский муниципальный район","Белоусовское","75620412","ОАО \"Птицефабрика Челябинская\"","7430008205","745450001","производство (некомбинированная выработка)+передача+сбыт"]
[294,"Еткульский муниципальный район","Белоусовское","75620412","ООО \"Еткульсервис ЖКХ\"","7430012642","743001001","производство (некомбинированная выработка)+передача+сбыт"]
[295,"Еткульский муниципальный район","Еманжелинское","75620420","ЗАО \"Еманжелинское ДРСУ\"","7430000781","743001001","производство (некомбинированная выработка)+передача+сбыт"]
[296,"Еткульский муниципальный район","Еманжелинское","75620420","МП \"Горводоканал\"","7412010931","741201001","производство (некомбинированная выработка)+передача+сбыт"]
[297,"Еткульский муниципальный район","Еманжелинское","75620420","ОАО \"Птицефабрика Челябинская\"","7430008205","745450001","производство (некомбинированная выработка)+передача+сбыт"]
[298,"Еткульский муниципальный район","Еманжелинское","75620420","ООО \"Сервис-ЧЕПФА\"","7430014103","743001001","Передача"]
[299,"Еткульский муниципальный район","Еманжелинское","75620420","ООО \"Управляющая Компания\"","7412014365","741201001","производство (некомбинированная выработка)+передача+сбыт"]
[300,"Еткульский муниципальный район","Еткульский муниципальный район","75620000","ОАО \"Птицефабрика Челябинская\"","7430008205","745450001","производство (некомбинированная выработка)+передача+сбыт"]
[301,"Еткульский муниципальный район","Еткульское","75620430","МП \"Горводоканал\"","7412010931","741201001","производство (некомбинированная выработка)+передача+сбыт"]
[302,"Еткульский муниципальный район","Еткульское","75620430","ОАО \"Птицефабрика Челябинская\"","7430008205","745450001","производство (некомбинированная выработка)+передача+сбыт"]
[303,"Еткульский муниципальный район","Каратабанское","75620440","ОАО \"Птицефабрика Челябинская\"","7430008205","745450001","производство (некомбинированная выработка)+передача+сбыт"]
[304,"Еткульский муниципальный район","Коелгинское","75620450","ЗАО \"Коелгамрамор\"","7430000076","743001001","производство (некомбинированная выработка)"]
[305,"Еткульский муниципальный район","Коелгинское","75620450","ОАО \"Птицефабрика Челябинская\"","7430008205","745450001","производство (некомбинированная выработка)+передача+сбыт"]
[306,"Еткульский муниципальный район","Коелгинское","75620450","ООО \"Коелга - Комфорт\"","7430013188","743001001","производство (некомбинированная выработка)+передача+сбыт"]
[307,"Еткульский муниципальный район","Лебедевское","75620460","ОАО \"Птицефабрика Челябинская\"","7430008205","745450001","производство (некомбинированная выработка)+передача+сбыт"]
[308,"Еткульский муниципальный район","Лебедевское","75620460","ООО \"Еткульсервис ЖКХ\"","7430012642","743001001","производство (некомбинированная выработка)+передача+сбыт"]
[309,"Еткульский муниципальный район","Новобатуринское","75620465","ОАО \"Птицефабрика Челябинская\"","7430008205","745450001","производство (некомбинированная выработка)+передача+сбыт"]
[310,"Еткульский муниципальный район","Новобатуринское","75620465","ООО \"Равис-птицефабрика Сосновская\"","7438016550","743801001","производство (некомбинированная выработка)"]
[311,"Еткульский муниципальный район","Новобатуринское","75620465","ООО \"Теплоэнергосистемы\"","7430013678","743001001","Передача"]
[312,"Еткульский муниципальный район","Печенкинское","75620470","ОАО \"Птицефабрика Челябинская\"","7430008205","745450001","производство (некомбинированная выработка)+передача+сбыт"]
[313,"Еткульский муниципальный район","Селезянское","75620490","ОАО \"Птицефабрика Челябинская\"","7430008205","745450001","производство (некомбинированная выработка)+передача+сбыт"]
[314,"Еткульский муниципальный район","Селезянское","75620490","ООО \"Еткульсервис ЖКХ\"","7430012642","743001001","производство (некомбинированная выработка)+передача+сбыт"]
[315,"Карталинский муниципальный район","Варшавское","75623410","ООО \"ЖКХ \"Партнер\"","7407009810","740701001","производство (некомбинированная выработка)+передача+сбыт"]
[316,"Карталинский муниципальный район","Город Карталы","75623101","ООО \"Агрогазстройкомплекс\"","7407007010","740701001","производство (некомбинированная выработка)+передача+сбыт"]
[317,"Карталинский муниципальный район","Город Карталы","75623101","ООО \"Карталинский элеватор\"","7407007651","740701001","производство (некомбинированная выработка)+передача+сбыт"]
[318,"Карталинский муниципальный район","Город Карталы","75623101","ФГУ комбинат \"Скала\" Росрезерва","7407000462","740701001","производство (некомбинированная выработка)+передача+сбыт"]
[319,"Карталинский муниципальный район","Еленинское","75623420","МУП  \"ЖКХ\" Еленинского сельского поселения","7407007972","740701001","производство (некомбинированная выработка)+передача+сбыт"]
[320,"Карталинский муниципальный район","Еленинское","75623420","МУП \"ЖКХ\" Новокаолиновского сельского поселения","7407007884","740701001","Передача"]
[321,"Карталинский муниципальный район","Еленинское","75623420","ОАО \"Новокаолиновый ГОК\"","7407000127","740701001","производство (некомбинированная выработка)+передача+сбыт"]
[322,"Карталинский муниципальный район","Мичуринское","75623425","МУП \"ЖКХ\" Мичуринского сельского поселения","7407004940","740701001","производство (некомбинированная выработка)+передача+сбыт"]
[323,"Карталинский муниципальный район","Снежненское","75623440","МУП \"ЖКХ\" Снежненского сельского поселения","7407007933","740701001","производство (некомбинированная выработка)+передача+сбыт"]
[324,"Каслинский муниципальный район","Береговое","75626410","ООО \"Простор\"","7402009060","740201001","производство (некомбинированная выработка)+передача+сбыт"]
[325,"Каслинский муниципальный район","Булзинское","75626415","МУП \"Булзинский ЭУЖКХ\"","7402009630","740201001","производство (некомбинированная выработка)+передача+сбыт"]
[326,"Каслинский муниципальный район","Город Касли","75626101","МУП \"Каслинский хлебозавод\"","7409004529","740901001","производство (некомбинированная выработка)+передача+сбыт"]
[327,"Каслинский муниципальный район","Город Касли","75626101","ОАО \"Каслинское районное управление инженерной инфраструктуры и коммунального хозяйства\"","7402007440","740201001","производство (некомбинированная выработка)+передача+сбыт"]
[328,"Каслинский муниципальный район","Город Касли","75626101","ООО \"Простор\"","7402009060","740201001","производство (некомбинированная выработка)+передача+сбыт"]
[329,"Каслинский муниципальный район","Город Касли","75626101","ФБУ ИК - 21 ГУФСИН России по Челябинской области","7409001535","740901001","производство (некомбинированная выработка)+передача+сбыт"]
[330,"Каслинский муниципальный район","Григорьевское сельское поселение","75626425","ООО \"Полевская пивоварня\"","7402009567","740201001","производство (некомбинированная выработка)+передача+сбыт"]
[331,"Каслинский муниципальный район","Поселок Вишневогорск","75626153","ОАО \"Вишневогорский горно-обогатительный комбинат\"","7409000147","740901003","производство (некомбинированная выработка)+передача+сбыт"]
[332,"Каслинский муниципальный район","Тюбукское","75626440","ООО \"Жилкомсервис\"","7402009359","740201001","производство (некомбинированная выработка)+передача+сбыт"]
[333,"Каслинский муниципальный район","Тюбукское","75626440","ООО \"Молочный вкус\"","7409001528","740901001","производство (некомбинированная выработка)+передача+сбыт"]
[334,"Каслинский муниципальный район","Шабуровское","75626445","МУП Жилищно-коммунальнго хозяйства \"Шабурово\"","7402012538","740201001","производство (некомбинированная выработка)+передача+сбыт"]
[335,"Катав-Ивановский муниципальный район","Город Катав-Ивановск","75629101","ЗАО \"Катавский цемент\"","7410005573","741001001","производство (некомбинированная выработка)+передача+сбыт"]
[336,"Катав-Ивановский муниципальный район","Город Катав-Ивановск","75629101","МУП \"ТеплоЭнерго\"","7401011034","740101001","производство (некомбинированная выработка)+передача+сбыт"]
[337,"Катав-Ивановский муниципальный район","Город Юрюзань","75629116","ЗАО \"Катавский цемент\"","7410005573","741001001","производство (некомбинированная выработка)+передача+сбыт"]
[338,"Катав-Ивановский муниципальный район","Город Юрюзань","75629116","ООО \"Энергосервис\"","7410006344","741001001","производство (некомбинированная выработка)+передача+сбыт"]
[339,"Катав-Ивановский муниципальный район","Катав-Ивановский муниципальный район","75629000","ЗАО \"Катавский цемент\"","7410005573","741001001","производство (некомбинированная выработка)+передача+сбыт"]
[340,"Катав-Ивановский муниципальный район","Лесное","75629430","ЗАО \"Катавский цемент\"","7410005573","741001001","производство (некомбинированная выработка)+передача+сбыт"]
[341,"Катав-Ивановский муниципальный район","Лесное","75629430","ООО \"Энергосервис\"","7410006344","741001001","производство (некомбинированная выработка)+передача+сбыт"]
[342,"Кизильский муниципальный район","Гранитное","75632000","ОАО \"Челябоблкоммунэнерго\"","7447019075","744701001","производство (некомбинированная выработка)+передача+сбыт"]
[343,"Кизильский муниципальный район","Измайловское","75632440","ОАО \"Челябоблкоммунэнерго\"","7447019075","744701001","производство (некомбинированная выработка)+передача+сбыт"]
[344,"Кизильский муниципальный район","Карабулакское","75632443","ОАО \"Челябоблкоммунэнерго\"","7447019075","744701001","производство (некомбинированная выработка)+передача+сбыт"]
[345,"Кизильский муниципальный район","Кацбахское","75632446","ОАО \"Челябоблкоммунэнерго\"","7447019075","744701001","производство (некомбинированная выработка)+передача+сбыт"]
[346,"Кизильский муниципальный район","Кизильский муниципальный район","75632000","ОАО \"Челябоблкоммунэнерго\"","7447019075","744701001","производство (некомбинированная выработка)+передача+сбыт"]
[347,"Кизильский муниципальный район","Кизильское","75632450","ОАО \"Челябоблкоммунэнерго\"","7447019075","744701001","производство (некомбинированная выработка)+передача+сбыт"]
[348,"Кизильский муниципальный район","Обручевское","75632460","ОАО \"Челябоблкоммунэнерго\"","7447019075","744701001","производство (некомбинированная выработка)+передача+сбыт"]
[349,"Кизильский муниципальный район","Полоцкое","75632470","ОАО \"Челябоблкоммунэнерго\"","7447019075","744701001","производство (некомбинированная выработка)+передача+сбыт"]
[350,"Кизильский муниципальный район","Сыртинское","75632490","ОАО \"Челябоблкоммунэнерго\"","7447019075","744701001","производство (некомбинированная выработка)+передача+сбыт"]
[351,"Кизильский муниципальный район","Уральское","75632493","ОАО \"Челябоблкоммунэнерго\"","7447019075","744701001","производство (некомбинированная выработка)+передача+сбыт"]
[352,"Коркинский муниципальный район","Город Коркино","75633101","МУП \"Производственное объединение водоснабжения и водоотведения\"","7421000440","742150001","производство (некомбинированная выработка)+передача+сбыт"]
[353,"Коркинский муниципальный район","Город Коркино","75633101","МУП \"Тепловые системы\"","7412011220","741201001","производство (некомбинированная выработка)+передача+сбыт"]
[354,"Коркинский муниципальный район","Город Коркино","75633101","ООО \"УК \"Вертикаль\"","7452071810","745201001","Передача"]
[355,"Коркинский муниципальный район","Город Коркино","75633101","ООО \"Фабрика Южуралкартон\"","7452058834","741201001","производство (некомбинированная выработка)+передача+сбыт"]
[356,"Коркинский муниципальный район","Коркинский муниципальный район","75633000","ООО \"УК \"Вертикаль\"","7452071810","745201001","Передача"]
[357,"Коркинский муниципальный район","Поселок Первомайский","75633154","МУП \"УЖКХ\"","7412002698","741201001","Передача"]
[358,"Коркинский муниципальный район","Поселок Первомайский","75633154","ОАО \"Асбестоцемент\"","7412000806","741201001","производство (некомбинированная выработка)+сбыт"]
[359,"Коркинский муниципальный район","Поселок Первомайский","75633154","ООО \"УК \"Вертикаль\"","7452071810","745201001","Передача"]
[360,"Коркинский муниципальный район","Розинское","75633156","МУП \"Розинские тепловые сети\"","7412011759","741201001","производство (некомбинированная выработка)+передача+сбыт"]
[361,"Коркинский муниципальный район","Розинское","75633156","ООО \"УК \"Вертикаль\"","7452071810","745201001","Передача"]
[362,"Красноармейский муниципальный район","Алабугское","75634405","МУП \"ЖКХ Алабугское\"","7430008903","743001001","производство (некомбинированная выработка)+передача+сбыт"]
[363,"Красноармейский муниципальный район","Березовское","75634410","МУП \"ЖКХ Октябрьское\"","7430008893","743001001","производство (некомбинированная выработка)+сбыт"]
[364,"Красноармейский муниципальный район","Бродокалмакское","75634415","МУП \"ЖКХ Бродокалмакское\"","7430008950","743001001","производство (некомбинированная выработка)+сбыт"]
[365,"Красноармейский муниципальный район","Дубровское","75634417","ОАО \"Племенной конный завод \"Дубровский\"","7432013779","743201001","производство (некомбинированная выработка)+передача+сбыт"]
[366,"Красноармейский муниципальный район","Канашевское","75634420","МУП \"УКХ Канашево\"","7430009008","743001001","производство (некомбинированная выработка)+сбыт"]
[367,"Красноармейский муниципальный район","Канашевское","75634420","ООО \"Теплосервис-Урал\"","7448107831","744801001","производство (некомбинированная выработка)+передача+сбыт"]
[368,"Красноармейский муниципальный район","Козыревское","75634425","МУП \"ЖКХ Козыревское\"","7430008974","743001001","производство (некомбинированная выработка)+передача+сбыт"]
[369,"Красноармейский муниципальный район","Лазурненское","75634430","МУП \"ЖКХ Лазурное\"","7430008935","743001001","производство (некомбинированная выработка)+сбыт"]
[370,"Красноармейский муниципальный район","Луговское","75634435","МУП ЖКХ \"Луговское\"","7430008967","743001001","производство (некомбинированная выработка)+передача+сбыт"]
[371,"Красноармейский муниципальный район","Миасское","75634440","ООО \"Красноармейская энергосервисная компания\"","7430013090","743001001","производство (некомбинированная выработка)+передача+сбыт"]
[372,"Красноармейский муниципальный район","Русско-Теченское","75634450","МУП ЖКХ \"Русско-Теченское\"","7430008910","743001001","производство (некомбинированная выработка)+сбыт"]
[373,"Красноармейский муниципальный район","Сугоякское","75634455","МУП \"ЖКХ Сугоякское\"","7430008928","743001001","производство (некомбинированная выработка)+сбыт"]
[374,"Красноармейский муниципальный район","Теренкульское","75634457","МУП \"ЖКХ Теренкульское\"","7430008942","743001001","производство (некомбинированная выработка)+сбыт"]
[375,"Красноармейский муниципальный район","Шумовское","75634460","МУП ЖКХ \"Шумовское\"","7430010772","743001001","производство (некомбинированная выработка)+сбыт"]
[376,"Кунашакский муниципальный район","Буринское","75636420","ООО \"Теплотрест\"","7438027256","743801001","производство (некомбинированная выработка)+передача+сбыт"]
[377,"Кунашакский муниципальный район","Кунашакское","75636430","МУП \"Кунашак Сервис\"","7438018710","743801001","производство (некомбинированная выработка)+передача+сбыт"]
[378,"Кунашакский муниципальный район","Кунашакское","75636430","ООО \"Строймастер\"","7438020162","743801001","производство (некомбинированная выработка)+передача+сбыт"]
[379,"Кунашакский муниципальный район","Кунашакское","75636430","ООО \"Теплотрест\"","7438027256","743801001","производство (некомбинированная выработка)+передача+сбыт"]
[380,"Кунашакский муниципальный район","Куяшское","75636440","ООО ГК \"Уральская энергия\"","7453228790","745301001","производство (некомбинированная выработка)+передача+сбыт"]
[381,"Кунашакский муниципальный район","Муслюмовское","75636450","ООО \"Стрела\"","7438022321","743801001","производство (некомбинированная выработка)+передача+сбыт"]
[382,"Кусинский муниципальный район","Город Куса","75638101","ООО \"Тепловые сети\"","7417015891","741701001","производство (некомбинированная выработка)+передача+сбыт"]
[383,"Кусинский муниципальный район","Злоказавское","75638411","ООО \"Тепловые сети\"","7417015891","741701001","производство (некомбинированная выработка)+передача+сбыт"]
[384,"Кусинский муниципальный район","Медведевское","75638422","ООО \"Тепловые сети\"","7417015891","741701001","производство (некомбинированная выработка)+передача+сбыт"]
[385,"Кусинский муниципальный район","Петропавловское","75638433","ООО \"Тепловые сети\"","7417015891","741701001","производство (некомбинированная выработка)+передача+сбыт"]
[386,"Нагайбакский муниципальный район","Арсинское","75642410","МУП \"Арсинское ЖКХ\"","7435008424","743501001","производство (некомбинированная выработка)+передача+сбыт"]
[387,"Нагайбакский муниципальный район","Кассельское","75642430","МУП \"Кассельское ЖКХ\"","7435008400","743501001","производство (некомбинированная выработка)+передача+сбыт"]
[388,"Нагайбакский муниципальный район","Куликовское","75642440","ООО \"Тепло\"","7443008435","744301001","производство (некомбинированная выработка)+передача+сбыт"]
[389,"Нагайбакский муниципальный район","Парижское","75642470","МУП \"Парижское ЖКХ\"","7435008382","743501001","производство (некомбинированная выработка)+передача+сбыт"]
[390,"Нагайбакский муниципальный район","Поселок Южный","75642154","ООО \"Коммунальный сервис\"","7443007583","744301001","производство (некомбинированная выработка)+передача+сбыт"]
[391,"Нязепетровский муниципальный район","Город Нязепетровск","75644101","ООО \"Теплосервис\"","7451211751","745101001","производство (некомбинированная выработка)+передача+сбыт"]
[392,"Нязепетровский муниципальный район","Город Нязепетровск","75644101","Общество с ограниченной ответственностью \"Уралкотел\", г.Екатеринбург","6658369655","665801001","производство (некомбинированная выработка)+передача+сбыт"]
[393,"Нязепетровский муниципальный район","Город Нязепетровск","75644101","Чебаркульское ОГУП ПРСД","7442005431","744201001","производство (некомбинированная выработка)+передача+сбыт"]
[394,"Нязепетровский муниципальный район","Гривенское","75644411","Общество с ограниченной ответственностью \"Уралкотел\", г.Екатеринбург","6658369655","665801001","производство (некомбинированная выработка)+передача+сбыт"]
[395,"Нязепетровский муниципальный район","Нязепетровский муниципальный район","75644000","Общество с ограниченной ответственностью \"Уралкотел\", г.Екатеринбург","6658369655","665801001","производство (некомбинированная выработка)+передача+сбыт"]
[396,"Нязепетровский муниципальный район","Ункурдинское","75644433","Общество с ограниченной ответственностью \"Уралкотел\", г.Екатеринбург","6658369655","665801001","производство (некомбинированная выработка)+передача+сбыт"]
[397,"Нязепетровский муниципальный район","Шемахинское","75644444","Общество с ограниченной ответственностью \"Уралкотел\", г.Екатеринбург","6658369655","665801001","производство (некомбинированная выработка)+передача+сбыт"]
[398,"Октябрьский муниципальный район","Каракульское","75647410","МУП \"Каракульский Жилкомсервис\"","7430013220","743001001","производство (некомбинированная выработка)+передача+сбыт"]
[399,"Октябрьский муниципальный район","Каракульское","75647410","Разделена от (\"Копейский машиностроительный завод\")","7411005872","741101001",""]
[400,"Октябрьский муниципальный район","Кочердыкское","75647415","МУП \"Октябрьский жилкомцентр\"","7430012963","743001001","производство (некомбинированная выработка)+передача+сбыт"]
[401,"Октябрьский муниципальный район","Кочердыкское","75647415","Разделена от (\"Копейский машиностроительный завод\")","7411005872","741101001",""]
[402,"Октябрьский муниципальный район","Маякское","75647430","Разделена от (\"Копейский машиностроительный завод\")","7411005872","741101001",""]
[403,"Октябрьский муниципальный район","Октябрьский муниципальный район","75647000","Разделена от (\"Копейский машиностроительный завод\")","7411005872","741101001",""]
[404,"Октябрьский муниципальный район","Октябрьское","75647445","МУП \"Октябрьский жилкомцентр\"","7430012963","743001001","производство (некомбинированная выработка)+передача+сбыт"]
[405,"Октябрьский муниципальный район","Октябрьское","75647445","Разделена от (\"Копейский машиностроительный завод\")","7411005872","741101001",""]
[406,"Октябрьский муниципальный район","Подовинное","75647450","Разделена от (\"Копейский машиностроительный завод\")","7411005872","741101001",""]
[407,"Октябрьский муниципальный район","Чудиновское","75647465","Разделена от (\"Копейский машиностроительный завод\")","7411005872","741101001",""]
[408,"Пластовский муниципальный район","Город Пласт","75648101","ОАО \"Южуралзолото Группа Компаний\"","7424024375","742401001","производство (некомбинированная выработка)+передача+сбыт"]
[409,"Пластовский муниципальный район","Город Пласт","75648101","ООО \"Районная управляющая компания\"","7424024826","742401001","производство (некомбинированная выработка)+передача+сбыт"]
[410,"Пластовский муниципальный район","Город Пласт","75648101","ООО \"Теплосервис\"","7424024424","742401001","Передача"]
[411,"Поселок Локомотивный (ЗАТО)","Поселок Локомотивный (ЗАТО)","75759000","МУП \"ЖКХ\"","7408000673","740701001","производство (некомбинированная выработка)+передача+сбыт"]
[412,"Саткинский муниципальный район","Айлинское","75649411","МУП \"ЖКХ\" с. Айлино","7417011424","741701001","производство (некомбинированная выработка)+передача+сбыт"]
[413,"Саткинский муниципальный район","Айлинское","75649411","ООО \"Реммонтаж Сервис\"","7417016937","741701001","Передача"]
[414,"Саткинский муниципальный район","Город Бакал","75649103","ООО \"Реммонтаж Сервис\"","7417016937","741701001","Передача"]
[415,"Саткинский муниципальный район","Город Сатка","75649101","ЗАО \"Саткинский чугуноплавильный завод\"","7417011047","741450001","производство (некомбинированная выработка)+передача+сбыт"]
[416,"Саткинский муниципальный район","Город Сатка","75649101","МАУ \"Управление по городскому хозяйству\"","7417019504","741701001","Передача"]
[417,"Саткинский муниципальный район","Город Сатка","75649101","ООО \"МАГ- Энерго\"","7715360149","741701001","производство (некомбинированная выработка)+передача+сбыт"]
[418,"Саткинский муниципальный район","Город Сатка","75649101","ООО \"Реммонтаж Сервис\"","7417016937","741701001","Передача"]
[419,"Саткинский муниципальный район","Город Сатка","75649101","Товарищество собственников жилья \"Западный\"","7417018645","741701001","производство (некомбинированная выработка)+передача+сбыт"]
[420,"Саткинский муниципальный район","Поселок Бердяуш","75649153","МУП \"ЖКХ\" п.Жукатау","7417013527","741701001","производство (некомбинированная выработка)+передача+сбыт"]
[421,"Саткинский муниципальный район","Поселок Бердяуш","75649153","ОАО \"ВРК -3\"","7708737500","770873750","производство (некомбинированная выработка)+передача+сбыт"]
[422,"Саткинский муниципальный район","Поселок Бердяуш","75649153","ООО \"Коммунальщик\"","7417016849","741701001","производство (некомбинированная выработка)+передача+сбыт"]
[423,"Саткинский муниципальный район","Поселок Бердяуш","75649153","ООО \"ПромЖилсервис\"","7417019293","741702001","производство (некомбинированная выработка)+передача+сбыт"]
[424,"Саткинский муниципальный район","Поселок Бердяуш","75649153","ООО \"Реммонтаж Сервис\"","7417016937","741701001","Передача"]
[425,"Саткинский муниципальный район","Поселок Межевой","75649158","Д/И \"Синегорье\"","7417005188","741701001","производство (некомбинированная выработка)"]
[426,"Саткинский муниципальный район","Поселок Межевой","75649158","ООО \"Коммунальное обеспечение населения и сервис\"","7417010808","741701001","производство (некомбинированная выработка)+передача+сбыт"]
[427,"Саткинский муниципальный район","Поселок Межевой","75649158","ООО \"Реммонтаж Сервис\"","7417016937","741701001","Передача"]
[428,"Саткинский муниципальный район","Поселок Сулея","75649162","ООО \"ЖКХ\" п. Сулея","7417018620","741701001","производство (некомбинированная выработка)+передача+сбыт"]
[429,"Саткинский муниципальный район","Поселок Сулея","75649162","ООО \"Реммонтаж Сервис\"","7417016937","741701001","Передача"]
[430,"Саткинский муниципальный район","Романовское сельское поселение","75649433","Государственное стационарное учреждение социального обслуживания системы социальной защиты населения \"Саткинский психоневрологический интернат\"","7417002405","741701001","производство (некомбинированная выработка)+передача+сбыт"]
[431,"Саткинский муниципальный район","Романовское сельское поселение","75649433","ООО \"Реммонтаж Сервис\"","7417016937","741701001","Передача"]
[432,"Саткинский муниципальный район","Саткинский муниципальный район","75649000","ООО \"Реммонтаж Сервис\"","7417016937","741701001","Передача"]
[433,"Сосновский муниципальный район","Алишевское","75652405","ООО \"Жилищно-эксплуатационная компания\" п. Трубный","7438021286","743801001","производство (некомбинированная выработка)+передача+сбыт"]
[434,"Сосновский муниципальный район","Архангельское","75652406","ООО \"ЖилКомСервис\"","7438021617","743801001","производство (некомбинированная выработка)+передача+сбыт"]
[435,"Сосновский муниципальный район","Вознесенское","75652408","ООО \"Вознесенское ЖКХ\"","7448107817","743801001","производство (некомбинированная выработка)+передача+сбыт"]
[436,"Сосновский муниципальный район","Долгодеревенское","75652411","Красногорское ЛПУ МГ - филиал ООО \"Газпром трансгаз Екатеринбург\"","6608007434","741201001","производство (некомбинированная выработка)+передача+сбыт"]
[437,"Сосновский муниципальный район","Долгодеревенское","75652411","МУП \"Производственное объединение водоснабжения и водоотведения\"","7421000440","742150001","производство (некомбинированная выработка)+передача+сбыт"]
[438,"Сосновский муниципальный район","Долгодеревенское","75652411","ООО \"Дом-Сервис\"","7438027129","743801001","производство (некомбинированная выработка)+передача+сбыт"]
[439,"Сосновский муниципальный район","Есаульское","75652415","ОАО \"Есаульское ремонтно-техническое предприятие\"","7438001674","743801001","производство (некомбинированная выработка)+передача+сбыт"]
[440,"Сосновский муниципальный район","Краснопольское","75652420","ООО УК \"Красное поле\"","7438023413","743801001","производство (некомбинированная выработка)+передача+сбыт"]
[441,"Сосновский муниципальный район","Кременкульское","75652425","МУП \"Кременкульские коммунальные системы\" п. Кременкуль, п. Садовый","7438022709","743801001","производство (некомбинированная выработка)+передача+сбыт"]
[442,"Сосновский муниципальный район","Мирненское","75652430","ООО \"Жил-Сервис\"","7438022723","743801001","производство (некомбинированная выработка)+передача+сбыт"]
[443,"Сосновский муниципальный район","Поселок Полетаево","75652154","Дорожная дистанция защитных лесонасаждений ЮУЖД - филиала ОАО \"РЖД\"","7708503727","743801001","производство (некомбинированная выработка)+передача+сбыт"]
[444,"Сосновский муниципальный район","Поселок Полетаево","75652154","ООО \"ТеплоЭнергоМастер\"","7438020109","743801001","производство (некомбинированная выработка)+передача+сбыт"]
[445,"Сосновский муниципальный район","Рощинское","75652435","ЗАО \"Инженерные сети\"","7438023149","743801001","Передача"]
[446,"Сосновский муниципальный район","Рощинское","75652435","ООО \"Равис-птицефабрика Сосновская\"","7438016550","743801001","производство (некомбинированная выработка)"]
[447,"Сосновский муниципальный район","Рощинское","75652435","ООО \"УралТехцентр\"","7447158181","744701001","производство (некомбинированная выработка)+передача+сбыт"]
[448,"Сосновский муниципальный район","Саккуловское","75652440","\"ООО \"\"Теплоэнергосервис\"\"\nд. Смольное\"","7448106394","744801001","производство (некомбинированная выработка)+передача+сбыт"]
[449,"Сосновский муниципальный район","Саккуловское","75652440","ООО \"Теченское ЖКХ\"","7438022681","743801001","производство (некомбинированная выработка)+передача+сбыт"]
[450,"Сосновский муниципальный район","Саргазинское","75652445","ОАО \"Челябинское\" по племенной работе","7438018244","743801001","производство (некомбинированная выработка)+передача+сбыт"]
[451,"Сосновский муниципальный район","Саргазинское","75652445","ООО \"Дом-Сервис\"","7438027129","743801001","производство (некомбинированная выработка)+передача+сбыт"]
[452,"Сосновский муниципальный район","Саргазинское","75652445","ООО \"ЖилКомСервис\"","7438021617","743801001","производство (некомбинированная выработка)+передача+сбыт"]
[453,"Сосновский муниципальный район","Солнечное","75652450","ООО ПЖСК \"Эк. Дом\"","7438029704","743801001","производство (некомбинированная выработка)+передача+сбыт"]
[454,"Сосновский муниципальный район","Теченское","75652452","ООО \"Теченское ЖКХ\"","7438022681","743801001","производство (некомбинированная выработка)+передача+сбыт"]
[455,"Сосновский муниципальный район","Томинское","75652455","ООО \"Здоровый дух\"","7438017297","743801001","производство (некомбинированная выработка)+передача+сбыт"]
[456,"Троицкий муниципальный район","Белозерское","75654405","ООО \"Белозерское ЖКХ № 2\"","7418019000","741801001","производство (некомбинированная выработка)+передача+сбыт"]
[457,"Троицкий муниципальный район","Бобровское","75654410","ООО \"Коммунальщик-Бобровка\"","7418018493","741801001","производство (некомбинированная выработка)+передача+сбыт"]
[458,"Троицкий муниципальный район","Бобровское","75654410","Федеральное государственное казенное учреждение  \"Пограничное управление ФСБ России по Челябинской области\"","7453145261","745301001","производство (некомбинированная выработка)+передача+сбыт"]
[459,"Троицкий муниципальный район","Дробышевское","75654415","ООО \"Строительство, монтаж, наладка, ремонт\"","7418020220","741801001","производство (некомбинированная выработка)+передача+сбыт"]
[460,"Троицкий муниципальный район","Карсинское","75654422","ООО \"Карсинское ЖКХ\"","7418019120","741801001","производство (некомбинированная выработка)+передача+сбыт"]
[461,"Троицкий муниципальный район","Ключевское","75654425","ООО \"Новые коммунальные системы - Троицк\"","7418013142","741801001","производство (некомбинированная выработка)+передача+сбыт"]
[462,"Троицкий муниципальный район","Ключевское","75654425","Федеральное государственное казенное учреждение  \"Пограничное управление ФСБ России по Челябинской области\"","7453145261","745301001","производство (некомбинированная выработка)+передача+сбыт"]
[463,"Троицкий муниципальный район","Клястицкое","75654430","ТСЖ \"Кумысное\"","7418017203","741801001","Передача+Сбыт"]
[464,"Троицкий муниципальный район","Клястицкое","75654430","ФГКУ Комбинат \"Уральский\" Росрезерва","7439004653","743901001","производство (некомбинированная выработка)"]
[465,"Троицкий муниципальный район","Клястицкое","75654430","Федеральное государственное казенное учреждение  \"Пограничное управление ФСБ России по Челябинской области\"","7453145261","745301001","производство (некомбинированная выработка)+передача+сбыт"]
[466,"Троицкий муниципальный район","Кособродское","75654435","ООО \"Целинное ЖКХ\"","7418018422","741801001","производство (некомбинированная выработка)+передача+сбыт"]
[467,"Троицкий муниципальный район","Нижнесанарское","75654440","ООО \"Роса\"","7418017080","741801001","производство (некомбинированная выработка)+передача+сбыт"]
[468,"Троицкий муниципальный район","Нижнесанарское","75654440","ООО \"СПМК-17\"","7422043157","742201001","производство (некомбинированная выработка)+сбыт"]
[469,"Троицкий муниципальный район","Нижнесанарское","75654440","ППиСП \"Нижне-Санарское","7439009242","743901001","производство (некомбинированная выработка)+передача+сбыт"]
[470,"Троицкий муниципальный район","Нижнесанарское","75654440","Федеральное государственное казенное учреждение  \"Пограничное управление ФСБ России по Челябинской области\"","7453145261","745301001","производство (некомбинированная выработка)+передача+сбыт"]
[471,"Троицкий муниципальный район","Песчанское","75654445","ООО \"Песчановское ЖКХ\"","7418020397","741801001","производство (некомбинированная выработка)+передача+сбыт"]
[472,"Троицкий муниципальный район","Родниковское","75654450","ООО \"Родниковское ЖКХ\"","7418018430","741801001","производство (некомбинированная выработка)+передача+сбыт"]
[473,"Троицкий муниципальный район","Троицко-Совхозное","75654460","МУП Скалистское ЖКХ \"Троицко-совхозное сельское поселение\"","7418019930","741801001","производство (некомбинированная выработка)+передача+сбыт"]
[474,"Троицкий муниципальный район","Яснополянское","75654465","МУП \"ЖКХ п. Ясные Поляны\"","7418016383","741801001","производство (некомбинированная выработка)+передача+сбыт"]
[475,"Увельский муниципальный район","Каменское","75655411","МУП \"Коммунальные услуги\"","7424024135","742401001","Передача"]
[476,"Увельский муниципальный район","Каменское","75655411","ООО \"Каменское ЖКХ\"","7424028436","742401001","производство (некомбинированная выработка)+передача+сбыт"]
[477,"Увельский муниципальный район","Кичигинское","75655422","МУП \"Кичигинское ЖКХ\"","7424025883","742401001","производство (некомбинированная выработка)+передача+сбыт"]
[478,"Увельский муниципальный район","Кичигинское","75655422","МУП \"Коммунальные услуги\"","7424024135","742401001","Передача"]
[479,"Увельский муниципальный район","Кичигинское","75655422","ООО \"Кичигинский горно-обогатительный комбинат \"Кварц\"","7424028010","742401001","производство (некомбинированная выработка)+передача+сбыт"]
[480,"Увельский муниципальный район","Красносельское","75655433","Красногорское ЛПУ МГ - филиал ООО \"Газпром трансгаз Екатеринбург\"","6608007434","741201001","производство (некомбинированная выработка)+передача+сбыт"]
[481,"Увельский муниципальный район","Красносельское","75655433","МУП \"Коммунальные услуги\"","7424024135","742401001","Передача"]
[482,"Увельский муниципальный район","Красносельское","75655433","ООО \"Красносельское ЖКХ\"","7424028370","742401001","производство (некомбинированная выработка)+передача+сбыт"]
[483,"Увельский муниципальный район","Мордвиновское","75655438","МУП \"Коммунальные услуги\"","7424024135","742401001","Передача"]
[484,"Увельский муниципальный район","Мордвиновское","75655438","ООО \"Мордвиновское ЖКХ\"","7424028450","742401001","производство (некомбинированная выработка)+передача+сбыт"]
[485,"Увельский муниципальный район","Петровское","75655444","МУП \"Коммунальные услуги\"","7424024135","742401001","Передача"]
[486,"Увельский муниципальный район","Петровское","75655444","ООО \"Петровское ЖКХ\"","7424028404","742401001","производство (некомбинированная выработка)+передача+сбыт"]
[487,"Увельский муниципальный район","Половинское","75655455","МУП \"Коммунальные услуги\"","7424024135","742401001","Передача"]
[488,"Увельский муниципальный район","Половинское","75655455","ООО \"Половинское ЖКХ\"","7424028443","742401001","производство (некомбинированная выработка)+передача+сбыт"]
[489,"Увельский муниципальный район","Рождественское","75655466","МУП \"Коммунальные услуги\"","7424024135","742401001","Передача"]
[490,"Увельский муниципальный район","Рождественское","75655466","ООО \"Рождественское ЖКХ\"","7424028468","742401001","производство (некомбинированная выработка)+передача+сбыт"]
[491,"Увельский муниципальный район","Увельский муниципальный район","75655000","МУП \"Коммунальные услуги\"","7424024135","742401001","Передача"]
[492,"Увельский муниципальный район","Увельское","75655472","ЗАО КХП \"Злак\"","7440000090","744001001","производство (некомбинированная выработка)+передача+сбыт"]
[493,"Увельский муниципальный район","Увельское","75655472","ЗАО работников \"Народное предприятие \"Челябинское рудоуправление\"","7440000163","744001001","производство (некомбинированная выработка)+передача+сбыт"]
[494,"Увельский муниципальный район","Увельское","75655472","МУП \"Коммунальные услуги\"","7424024135","742401001","Передача"]
[495,"Увельский муниципальный район","Увельское","75655472","ООО \"Пром-тепло\"","7424028429","742401001","производство (некомбинированная выработка)+передача+сбыт"]
[496,"Увельский муниципальный район","Увельское","75655472","ООО \"Теплоснаб\"","7424028387","742401001","производство (некомбинированная выработка)+передача+сбыт"]
[497,"Увельский муниципальный район","Хомутининское","75655477","МУП \"Коммунальные услуги\"","7424024135","742401001","Передача"]
[498,"Увельский муниципальный район","Хомутининское","75655477","ОАО \"Санаторий Урал\"","7440001262","744001001","производство (некомбинированная выработка)+передача+сбыт"]
[499,"Увельский муниципальный район","Хомутининское","75655477","ООО \"Факел\"","7424028394","742401001","производство (некомбинированная выработка)+передача+сбыт"]
[500,"Увельский муниципальный район","Хуторское","75655488","МУП \"Коммунальные услуги\"","7424024135","742401001","Передача"]
[501,"Увельский муниципальный район","Хуторское","75655488","ООО \"Хуторское ЖКХ\"","7424028482","742401001","производство (некомбинированная выработка)+передача+сбыт"]
[502,"Уйский муниципальный район","Аминевское","75656411","ООО \"ЭкоТехнологии\"","7453060346","744901001","производство (некомбинированная выработка)+передача+сбыт"]
[503,"Уйский муниципальный район","Беловское","75656422","ООО \"Ремонтник\"","7420012555","742001001","производство (некомбинированная выработка)+передача+сбыт"]
[504,"Уйский муниципальный район","Беловское","75656422","ООО \"ЭкоТехнологии\"","7453060346","744901001","производство (некомбинированная выработка)+передача+сбыт"]
[505,"Уйский муниципальный район","Вандышевское","75656433","ООО \"Ремонтник\"","7420012555","742001001","производство (некомбинированная выработка)+передача+сбыт"]
[506,"Уйский муниципальный район","Кидышевское","75656444","МУП \"Кидышевская котельная и тепловые сети\"","7420010780","742001001","производство (некомбинированная выработка)+передача+сбыт"]
[507,"Уйский муниципальный район","Ларинское","75656455","ООО \"ТеплоГазСтрой\"","7411045804","744701001","производство (некомбинированная выработка)+передача+сбыт"]
[508,"Уйский муниципальный район","Ларинское","75656455","ООО \"ЭкоТехнологии\"","7453060346","744901001","производство (некомбинированная выработка)+передача+сбыт"]
[509,"Уйский муниципальный район","Масловское","75656460","ООО \"Перспектива\"","7420015443","742001001","производство (некомбинированная выработка)+передача+сбыт"]
[510,"Уйский муниципальный район","Масловское","75656460","ООО \"Ремонтник\"","7420012555","742001001","производство (некомбинированная выработка)+передача+сбыт"]
[511,"Уйский муниципальный район","Нижнеуцелемовское","75656466","ООО \"Ремонтник\"","7420012555","742001001","производство (некомбинированная выработка)+передача+сбыт"]
[512,"Уйский муниципальный район","Петропавловское","75656408","ООО \"Авангард-Агро\"","7420008870","742001001","производство (некомбинированная выработка)+передача+сбыт"]
[513,"Уйский муниципальный район","Уйское","75656488","ООО \"Ремонтник\"","7420012555","742001001","производство (некомбинированная выработка)+передача+сбыт"]
[514,"Чебаркульский муниципальный район","Бишкильское","75657411","ООО \"Жилкомус-Бишкиль\"","7420009136","742001001","производство (некомбинированная выработка)+передача+сбыт"]
[515,"Чебаркульский муниципальный район","Варламовское","75657415","Общество с ограниченной ответственностью \"Варламовское\"","7420014048","742001001","производство (некомбинированная выработка)+передача+сбыт"]
[516,"Чебаркульский муниципальный район","Кундравинское","75657425","ООО \"Кундравинское\"","7420014721","742001001","производство (некомбинированная выработка)+передача+сбыт"]
[517,"Чебаркульский муниципальный район","Непряхинское","75657440","ООО \"Жилищный сервис\"","7420002363","742001001","производство (некомбинированная выработка)+передача+сбыт"]
[518,"Чебаркульский муниципальный район","Сарафановское","75657450","ООО \"КвадроИнвест\"","7420010808","742001001","производство (некомбинированная выработка)"]
[519,"Чебаркульский муниципальный район","Сарафановское","75657450","ООО \"Сарафановское ЖКХ\"","7420014739","742001001","производство (некомбинированная выработка)+передача+сбыт"]
[520,"Чебаркульский муниципальный район","Тимирязевское","75657455","ООО \"Теплоком\"","7420009143","742001001","производство (некомбинированная выработка)+передача+сбыт"]
[521,"Чебаркульский муниципальный район","Травниковское","75657460","ООО \"Жилкомус-Травники\"","7420013799","742001001","производство (некомбинированная выработка)+передача+сбыт"]
[522,"Чебаркульский муниципальный район","Травниковское","75657460","Челябинское нефтепроводное управление - филиал ОАО \"Уралсибнефтепровод\"","0278039018","744902001","производство (некомбинированная выработка)+передача+сбыт"]
[523,"Чебаркульский муниципальный район","Филимоновское","75657470","ООО \"Филимоновское\"","7420008407","742001001","производство (некомбинированная выработка)+передача+сбыт"]
[524,"Чесменский муниципальный район","Березиновское","75659410","ООО \"Атлант\"","7443007840","744301001","производство (некомбинированная выработка)+передача+сбыт"]
[525,"Чесменский муниципальный район","Тарасовское","75659445","СХПК \"колхоз имени Шевченко\"","7443000362","744301001","производство (некомбинированная выработка)+передача+сбыт"]
[526,"Чесменский муниципальный район","Тарутинское","75659450","ООО \"ПТФ \"Компания Элва\"","7443006815","744301001","производство (некомбинированная выработка)+передача+сбыт"]
[527,"Чесменский муниципальный район","Тарутинское","75659450","Федеральное государственное казенное учреждение  \"Пограничное управление ФСБ России по Челябинской области\"","7453145261","745301001","производство (некомбинированная выработка)+передача+сбыт"]
[528,"Чесменский муниципальный район","Цвиллингское","75659470","ООО \"ПТФ \"Компания Элва\"","7443006815","744301001","производство (некомбинированная выработка)+передача+сбыт"]
[529,"Чесменский муниципальный район","Чесменское","75659490","ООО \"ПТФ \"Компания Элва\"","7443006815","744301001","производство (некомбинированная выработка)+передача+сбыт"]
[530,"город Челябинск","город Челябинск","75701000","МУП \"Производственное объединение водоснабжения и водоотведения\"","7421000440","742150001","производство (некомбинированная выработка)+передача+сбыт"]
[531,"город Челябинск","город Челябинск","75701000","ОАО \"Энергосистемы\"","7417011223","741701001","производство (некомбинированная выработка)+передача+сбыт"]
[532,"город Челябинск","город Челябинск","75701000","Обособленное подразделение ООО \"МЕЧЕЛ-ЭНЕРГО\" в г. Чебаркуль","7722245108","742032001","производство (некомбинированная выработка)+передача+сбыт"]
[533,"город Челябинск","город Челябинск","75701000","ТСЖ \"Кумысное\"","7418017203","741801001","Передача+Сбыт"]
[534,"город Челябинск","город Челябинск","75701000","Теплоэнергосбыт ООО","7453174382","745301001","Передача+Сбыт"]
[535,"город Челябинск","город Челябинск","75701000","Южно-Уральская дирекция по тепловодоснабжению - структурное подразделение Центральной дирекции по тепловодоснабжению - филиала ОАО \"РЖД\"","7708503727","744945004","производство (некомбинированная выработка)+передача+сбыт"]
[536,"","","","ОАО \"ГТ-ТЭЦ Энерго\"","7703311228","777030100",""]
[537,"","","","ОАО \"ГТ-ТЭЦ Энерго\"","7703311228","770301001","производство комбинированная выработка"]
[538,"","","","ОАО \"РЭУ\"","7714783092","774501001","производство (некомбинированная выработка)+передача"]
[539,"","","","ООО \"МЕЧЕЛ-ЭНЕРГО\"","7722245108","771401001",""]

{"sheet":"REESTR_FILTERED","index":22,"n_rows":2,"n_cols":8,"rows_kept":2,"cut":false,"hidden":true,"merged":[]}
["№","МР","МО","МО ОКТМО","ОРГАНИЗАЦИЯ","ИНН","КПП","ВИД ДЕЯТЕЛЬНОСТИ"]
[1,"Город Озерск (ЗАТО)","Город Озерск (ЗАТО)","75743000","ММПКХ","7422000570","742201001","производство (некомбинированная выработка)+передача+сбыт"]

{"sheet":"REESTR_MO","index":23,"n_rows":287,"n_cols":5,"rows_kept":287,"cut":false,"hidden":true,"merged":[]}
["МР","МО","МО_ОКТМО","МР","ИМЯ ДИАПАЗОНА"]
["Агаповский муниципальный район","Агаповский муниципальный район","75603000","Агаповский муниципальный район","MO_LIST_2"]
["Агаповский муниципальный район","Агаповское","75603407","Аргаяшский муниципальный район","MO_LIST_3"]
["Агаповский муниципальный район","Буранное","75603411","Ашинский муниципальный район","MO_LIST_4"]
["Агаповский муниципальный район","Желтинское","75603422","Брединский муниципальный район","MO_LIST_5"]
["Агаповский муниципальный район","Магнитное","75603433","Варненский муниципальный район","MO_LIST_6"]
["Агаповский муниципальный район","Наровчатское","75603436","Верхнеуральский муниципальный район","MO_LIST_7"]
["Агаповский муниципальный район","Первомайское","75603444","Город Верхний Уфалей","MO_LIST_8"]
["Агаповский муниципальный район","Приморское","75603455","Город Златоуст","MO_LIST_9"]
["Агаповский муниципальный район","Светлогорское","75603466","Город Карабаш","MO_LIST_10"]
["Агаповский муниципальный район","Черниговское","75603472","Город Копейск","MO_LIST_11"]
["Агаповский муниципальный район","Янгельское","75603477","Город Кыштым","MO_LIST_12"]
["Аргаяшский муниципальный район","Акбашевское","75606410","Город Магнитогорск","MO_LIST_13"]
["Аргаяшский муниципальный район","Аргаяшский муниципальный район","75606000","Город Миасс","MO_LIST_14"]
["Аргаяшский муниципальный район","Аргаяшское","75606412","Город Озерск (ЗАТО)","MO_LIST_15"]
["Аргаяшский муниципальный район","Аязгуловское","75606420","Город Снежинск (ЗАТО)","MO_LIST_16"]
["Аргаяшский муниципальный район","Байрамгуловское","75606433","Город Трехгорный (ЗАТО)","MO_LIST_17"]
["Аргаяшский муниципальный район","Дербишевское","75606440","Город Троицк","MO_LIST_18"]
["Аргаяшский муниципальный район","Ишалинское","75606445","Город Усть-Катав","MO_LIST_19"]
["Аргаяшский муниципальный район","Камышевское","75606450","Город Чебаркуль","MO_LIST_20"]
["Аргаяшский муниципальный район","Кузнецкое","75606460","Город Южноуральск","MO_LIST_21"]
["Аргаяшский муниципальный район","Кулуевское","75606470","Городские округа Челябинской области","MO_LIST_22"]
["Аргаяшский муниципальный район","Норкинское","75606480","Еманжелинский муниципальный район","MO_LIST_23"]
["Аргаяшский муниципальный район","Худайбердинское","75606490","Еткульский муниципальный район","MO_LIST_24"]
["Аргаяшский муниципальный район","Яраткуловское","75606498","Карталинский муниципальный район","MO_LIST_25"]
["Ашинский муниципальный район","Ашинский муниципальный район","75609000","Каслинский муниципальный район","MO_LIST_26"]
["Ашинский муниципальный район","Город Аша","75609101","Катав-Ивановский муниципальный район","MO_LIST_27"]
["Ашинский муниципальный район","Город Миньяр","75609103","Кизильский муниципальный район","MO_LIST_28"]
["Ашинский муниципальный район","Город Сим","75609105","Коркинский муниципальный район","MO_LIST_29"]
["Ашинский муниципальный район","Поселок Кропачево","75609153","Красноармейский муниципальный район","MO_LIST_30"]
["Ашинский муниципальный район","Укское","75609477","Кунашакский муниципальный район","MO_LIST_31"]
["Брединский муниципальный район","Амурское","75612406","Кусинский муниципальный район","MO_LIST_32"]
["Брединский муниципальный район","Андреевское","75612410","Нагайбакский муниципальный район","MO_LIST_33"]
["Брединский муниципальный район","Атамановское","75612412","Нязепетровский муниципальный район","MO_LIST_34"]
["Брединский муниципальный район","Белокаменское","75612420","Октябрьский муниципальный район","MO_LIST_35"]
["Брединский муниципальный район","Боровское","75612430","Пластовский муниципальный район","MO_LIST_36"]
["Брединский муниципальный район","Брединский муниципальный район","75612000","Поселок Локомотивный (ЗАТО)","MO_LIST_37"]
["Брединский муниципальный район","Брединское","75612432","Саткинский муниципальный район","MO_LIST_38"]
["Брединский муниципальный район","Калининское","75612440","Сосновский муниципальный район","MO_LIST_39"]
["Брединский муниципальный район","Княженское","75612450","Троицкий муниципальный район","MO_LIST_40"]
["Брединский муниципальный район","Комсомольское","75612460","Увельский муниципальный район","MO_LIST_41"]
["Брединский муниципальный район","Наследницкое","75612470","Уйский муниципальный район","MO_LIST_42"]
["Брединский муниципальный район","Павловское","75612480","Чебаркульский муниципальный район","MO_LIST_43"]
["Брединский муниципальный район","Рымнинское","75612490","Чесменский муниципальный район","MO_LIST_44"]
["Варненский муниципальный район","Алексеевское","75614405","город Челябинск","MO_LIST_45"]
["Варненский муниципальный район","Аятское","75614410"]
["Варненский муниципальный район","Бородиновское","75614415"]
["Варненский муниципальный район","Варненский муниципальный район","75614000"]
["Варненский муниципальный район","Варненское","75614420"]
["Варненский муниципальный район","Казновское","75614422"]
["Варненский муниципальный район","Катенинское","75614423"]
["Варненский муниципальный район","Краснооктябрьское","75614425"]
["Варненский муниципальный район","Кулевчинское","75614430"]
["Варненский муниципальный район","Николаевское","75614440"]
["Варненский муниципальный район","Новоуральское","75614445"]
["Варненский муниципальный район","Покровское","75614450"]
["Варненский муниципальный район","Толстинское","75614455"]
["Верхнеуральский муниципальный район","Бабарыкинское","75617411"]
["Верхнеуральский муниципальный район","Верхнеуральский муниципальный район","75617000"]
["Верхнеуральский муниципальный район","Город Верхнеуральск","75617101"]
["Верхнеуральский муниципальный район","Карагайское","75617422"]
["Верхнеуральский муниципальный район","Кирсинское","75617433"]
["Верхнеуральский муниципальный район","Краснинское","75617444"]
["Верхнеуральский муниципальный район","Петропавловское","75617455"]
["Верхнеуральский муниципальный район","Поселок Межозерный","75617153"]
["Верхнеуральский муниципальный район","Спасское","75617466"]
["Верхнеуральский муниципальный район","Степное","75617477"]
["Верхнеуральский муниципальный район","Сурменевское","75617479"]
["Верхнеуральский муниципальный район","Форштадское","75617488"]
["Город Верхний Уфалей","Город Верхний Уфалей","75706000"]
["Город Златоуст","Город Златоуст","75712000"]
["Город Карабаш","Город Карабаш","75715000"]
["Город Копейск","Город Копейск","75728000"]
["Город Кыштым","Город Кыштым","75734000"]
["Город Магнитогорск","Город Магнитогорск","75738000"]
["Город Миасс","Город Миасс","75742000"]
["Город Озерск (ЗАТО)","Город Озерск (ЗАТО)","75743000"]
["Город Снежинск (ЗАТО)","Город Снежинск (ЗАТО)","75746000"]
["Город Трехгорный (ЗАТО)","Город Трехгорный (ЗАТО)","75707000"]
["Город Троицк","Город Троицк","75752000"]
["Город Усть-Катав","Город Усть-Катав","75755000"]
["Город Чебаркуль","Город Чебаркуль","75758000"]
["Город Южноуральск","Город Южноуральск","75764000"]
["Городские округа Челябинской области","Городские округа Челябинской области","75700000"]
["Городские округа Челябинской области","город Челябинск","75700000"]
["Еманжелинский муниципальный район","Город Еманжелинск","75619101"]
["Еманжелинский муниципальный район","Еманжелинский муниципальный район","75619000"]
["Еманжелинский муниципальный район","Поселок Зауральский","75619152"]
["Еманжелинский муниципальный район","Поселок Красногорский","75619154"]
["Еткульский муниципальный район","Белоносовское","75620410"]
["Еткульский муниципальный район","Белоусовское","75620412"]
["Еткульский муниципальный район","Еманжелинское","75620420"]
["Еткульский муниципальный район","Еткульский муниципальный район","75620000"]
["Еткульский муниципальный район","Еткульское","75620430"]
["Еткульский муниципальный район","Каратабанское","75620440"]
["Еткульский муниципальный район","Коелгинское","75620450"]
["Еткульский муниципальный район","Лебедевское","75620460"]
["Еткульский муниципальный район","Новобатуринское","75620465"]
["Еткульский муниципальный район","Печенкинское","75620470"]
["Еткульский муниципальный район","Селезянское","75620490"]
["Карталинский муниципальный район","Анненское","75623405"]
["Карталинский муниципальный район","Варшавское","75623410"]
["Карталинский муниципальный район","Великопетровское","75623415"]
["Карталинский муниципальный район","Город Карталы","75623101"]
["Карталинский муниципальный район","Еленинское","75623420"]
["Карталинский муниципальный район","Карталинский муниципальный район","75623000"]
["Карталинский муниципальный район","Мичуринское","75623425"]
["Карталинский муниципальный район","Неплюевское","75623428"]
["Карталинский муниципальный район","Новокаолиновое","75623430"]
["Карталинский муниципальный район","Полтавское","75623435"]
["Карталинский муниципальный район","Снежненское","75623440"]
["Карталинский муниципальный район","Сухореченское","75623445"]
["Карталинский муниципальный район","Южно-Степное","75623450"]
["Каслинский муниципальный район","Багарякское","75626405"]
["Каслинский муниципальный район","Береговое","75626410"]
["Каслинский муниципальный район","Булзинское","75626415"]
["Каслинский муниципальный район","Воздвиженское сельское поселение","75626420"]
["Каслинский муниципальный район","Город Касли","75626101"]
["Каслинский муниципальный район","Григорьевское сельское поселение","75626425"]
["Каслинский муниципальный район","Каслинский муниципальный район","75626000"]
["Каслинский муниципальный район","Маукское","75626430"]
["Каслинский муниципальный район","Поселок Вишневогорск","75626153"]
["Каслинский муниципальный район","Тюбукское","75626440"]
["Каслинский муниципальный район","Шабуровское","75626445"]
["Катав-Ивановский муниципальный район","Город Катав-Ивановск","75629101"]
["Катав-Ивановский муниципальный район","Город Юрюзань","75629116"]
["Катав-Ивановский муниципальный район","Катав-Ивановский муниципальный район","75629000"]
["Катав-Ивановский муниципальный район","Лесное","75629430"]
["Кизильский муниципальный район","Гранитное","75632000"]
["Кизильский муниципальный район","Измайловское","75632440"]
["Кизильский муниципальный район","Карабулакское","75632443"]
["Кизильский муниципальный район","Кацбахское","75632446"]
["Кизильский муниципальный район","Кизильский муниципальный район","75632000"]
["Кизильский муниципальный район","Кизильское","75632450"]
["Кизильский муниципальный район","Обручевское","75632460"]
["Кизильский муниципальный район","Полоцкое","75632470"]
["Кизильский муниципальный район","Сыртинское","75632490"]
["Кизильский муниципальный район","Уральское","75632493"]
["Коркинский муниципальный район","Город Коркино","75633101"]
["Коркинский муниципальный район","Коркинский муниципальный район","75633000"]
["Коркинский муниципальный район","Поселок Первомайский","75633154"]
["Коркинский муниципальный район","Розинское","75633156"]
["Красноармейский муниципальный район","Алабугское","75634405"]
["Красноармейский муниципальный район","Баландинское","75634408"]
["Красноармейский муниципальный район","Березовское","75634410"]
["Красноармейский муниципальный район","Бродокалмакское","75634415"]
["Красноармейский муниципальный район","Дубровское","75634417"]
["Красноармейский муниципальный район","Канашевское","75634420"]
["Красноармейский муниципальный район","Козыревское","75634425"]
["Красноармейский муниципальный район","Красноармейский муниципальный район","75634000"]
["Красноармейский муниципальный район","Лазурненское","75634430"]
["Красноармейский муниципальный район","Луговское","75634435"]
["Красноармейский муниципальный район","Миасское","75634440"]
["Красноармейский муниципальный район","Озерное","75634445"]
["Красноармейский муниципальный район","Русско-Теченское","75634450"]
["Красноармейский муниципальный район","Сугоякское","75634455"]
["Красноармейский муниципальный район","Теренкульское","75634457"]
["Красноармейский муниципальный район","Шумовское","75634460"]
["Кунашакский муниципальный район","Буринское","75636420"]
["Кунашакский муниципальный район","Кунашакский муниципальный район","75636000"]
["Кунашакский муниципальный район","Кунашакское","75636430"]
["Кунашакский муниципальный район","Куяшское","75636440"]
["Кунашакский муниципальный район","Муслюмовское","75636450"]
["Кунашакский муниципальный район","Саринское","75636460"]
["Кунашакский муниципальный район","Урукульское","75636470"]
["Кунашакский муниципальный район","Усть-Багарякское","75636480"]
["Кунашакский муниципальный район","Халитовское","75636490"]
["Кусинский муниципальный район","Город Куса","75638101"]
["Кусинский муниципальный район","Злоказавское","75638411"]
["Кусинский муниципальный район","Кусинский муниципальный район","75638000"]
["Кусинский муниципальный район","Медведевское","75638422"]
["Кусинский муниципальный район","Петропавловское","75638433"]
["Кусинский муниципальный район","Поселок Магнитка","75638153"]
["Нагайбакский муниципальный район","Арсинское","75642410"]
["Нагайбакский муниципальный район","Балканское","75642420"]
["Нагайбакский муниципальный район","Кассельское","75642430"]
["Нагайбакский муниципальный район","Куликовское","75642440"]
["Нагайбакский муниципальный район","Нагайбакский муниципальный район","75642000"]
["Нагайбакский муниципальный район","Нагайбакское","75642450"]
["Нагайбакский муниципальный район","Остроленское","75642460"]
["Нагайбакский муниципальный район","Парижское","75642470"]
["Нагайбакский муниципальный район","Переселенческое","75642480"]
["Нагайбакский муниципальный район","Поселок Южный","75642154"]
["Нагайбакский муниципальный район","Фершампенуазское","75642490"]
["Нязепетровский муниципальный район","Город Нязепетровск","75644101"]
["Нязепетровский муниципальный район","Гривенское","75644411"]
["Нязепетровский муниципальный район","Нязепетровский муниципальный район","75644000"]
["Нязепетровский муниципальный район","Ункурдинское","75644433"]
["Нязепетровский муниципальный район","Шемахинское","75644444"]
["Октябрьский муниципальный район","Каракульское","75647410"]
["Октябрьский муниципальный район","Кочердыкское","75647415"]
["Октябрьский муниципальный район","Маякское","75647430"]
["Октябрьский муниципальный район","Октябрьский муниципальный район","75647000"]
["Октябрьский муниципальный район","Октябрьское","75647445"]
["Октябрьский муниципальный район","Подовинное","75647450"]
["Октябрьский муниципальный район","Чудиновское","75647465"]
["Пластовский муниципальный район","Борисовское","75648403"]
["Пластовский муниципальный район","Город Пласт","75648101"]
["Пластовский муниципальный район","Демаринское","75648406"]
["Пластовский муниципальный район","Кочкарское","75648409"]
["Пластовский муниципальный район","Пластовский муниципальный район","75648000"]
["Пластовский муниципальный район","Степнинское","75648420"]
["Поселок Локомотивный (ЗАТО)","Поселок Локомотивный (ЗАТО)","75759000"]
["Саткинский муниципальный район","Айлинское","75649411"]
["Саткинский муниципальный район","Город Бакал","75649103"]
["Саткинский муниципальный район","Город Сатка","75649101"]
["Саткинский муниципальный район","Поселок Бердяуш","75649153"]
["Саткинский муниципальный район","Поселок Межевой","75649158"]
["Саткинский муниципальный район","Поселок Сулея","75649162"]
["Саткинский муниципальный район","Романовское сельское поселение","75649433"]
["Саткинский муниципальный район","Саткинский муниципальный район","75649000"]
["Сосновский муниципальный район","Алишевское","75652405"]
["Сосновский муниципальный район","Архангельское","75652406"]
["Сосновский муниципальный район","Вознесенское","75652408"]
["Сосновский муниципальный район","Долгодеревенское","75652411"]
["Сосновский муниципальный район","Есаульское","75652415"]
["Сосновский муниципальный район","Краснопольское","75652420"]
["Сосновский муниципальный район","Кременкульское","75652425"]
["Сосновский муниципальный район","Мирненское","75652430"]
["Сосновский муниципальный район","Поселок Полетаево","75652154"]
["Сосновский муниципальный район","Рощинское","75652435"]
["Сосновский муниципальный район","Саккуловское","75652440"]
["Сосновский муниципальный район","Саргазинское","75652445"]
["Сосновский муниципальный район","Солнечное","75652450"]
["Сосновский муниципальный район","Сосновский муниципальный район","75652000"]
["Сосновский муниципальный район","Теченское","75652452"]
["Сосновский муниципальный район","Томинское","75652455"]
["Троицкий муниципальный район","Белозерское","75654405"]
["Троицкий муниципальный район","Бобровское","75654410"]
["Троицкий муниципальный район","Дробышевское","75654415"]
["Троицкий муниципальный район","Карсинское","75654422"]
["Троицкий муниципальный район","Ключевское","75654425"]
["Троицкий муниципальный район","Клястицкое","75654430"]
["Троицкий муниципальный район","Кособродское","75654435"]
["Троицкий муниципальный район","Нижнесанарское","75654440"]
["Троицкий муниципальный район","Новомирское","75654443"]
["Троицкий муниципальный район","Песчанское","75654445"]
["Троицкий муниципальный район","Родниковское","75654450"]
["Троицкий муниципальный район","Троицкий муниципальный район","75654000"]
["Троицкий муниципальный район","Троицко-Совхозное","75654460"]
["Троицкий муниципальный район","Чернореченское","75654462"]
["Троицкий муниципальный район","Шантаринское","75654463"]
["Троицкий муниципальный район","Яснополянское","75654465"]
["Увельский муниципальный район","Каменское","75655411"]
["Увельский муниципальный район","Кичигинское","75655422"]
["Увельский муниципальный район","Красносельское","75655433"]
["Увельский муниципальный район","Мордвиновское","75655438"]
["Увельский муниципальный район","Петровское","75655444"]
["Увельский муниципальный район","Половинское","75655455"]
["Увельский муниципальный район","Рождественское","75655466"]
["Увельский муниципальный район","Увельский муниципальный район","75655000"]
["Увельский муниципальный район","Увельское","75655472"]
["Увельский муниципальный район","Хомутининское","75655477"]
["Увельский муниципальный район","Хуторское","75655488"]
["Уйский муниципальный район","Аминевское","75656411"]
["Уйский муниципальный район","Беловское","75656422"]
["Уйский муниципальный район","Вандышевское","75656433"]
["Уйский муниципальный район","Кидышевское","75656444"]
["Уйский муниципальный район","Кумлякское","75656446"]
["Уйский муниципальный район","Ларинское","75656455"]
["Уйский муниципальный район","Масловское","75656460"]
["Уйский муниципальный район","Нижнеуцелемовское","75656466"]
["Уйский муниципальный район","Петропавловское","75656408"]
["Уйский муниципальный район","Соколовское","75656477"]
["Уйский муниципальный район","Уйский муниципальный район","75656000"]
["Уйский муниципальный район","Уйское","75656488"]
["Чебаркульский муниципальный район","Бишкильское","75657411"]
["Чебаркульский муниципальный район","Варламовское","75657415"]
["Чебаркульский муниципальный район","Кундравинское","75657425"]
["Чебаркульский муниципальный район","Непряхинское","75657440"]
["Чебаркульский муниципальный район","Сарафановское","75657450"]
["Чебаркульский муниципальный район","Тимирязевское","75657455"]
["Чебаркульский муниципальный район","Травниковское","75657460"]
["Чебаркульский муниципальный район","Филимоновское","75657470"]
["Чебаркульский муниципальный район","Чебаркульский муниципальный район","75657000"]
["Чебаркульский муниципальный район","Шахматовское","75657490"]
["Чесменский муниципальный район","Березиновское","75659410"]
["Чесменский муниципальный район","Калиновское","75659430"]
["Чесменский муниципальный район","Новоукраинское","75659440"]
["Чесменский муниципальный район","Светловское","75659420"]
["Чесменский муниципальный район","Тарасовское","75659445"]
["Чесменский муниципальный район","Тарутинское","75659450"]
["Чесменский муниципальный район","Углицкое","75659460"]
["Чесменский муниципальный район","Цвиллингское","75659470"]
["Чесменский муниципальный район","Чесменский муниципальный район","75659000"]
["Чесменский муниципальный район","Чесменское","75659490"]
["город Челябинск","город Челябинск","75701000"]

{"sheet":"modHyp","index":24,"n_rows":0,"n_cols":0,"rows_kept":0,"cut":false,"hidden":true,"merged":[]}

{"sheet":"modChange","index":25,"n_rows":0,"n_cols":0,"rows_kept":0,"cut":false,"hidden":true,"merged":[]}

{"sheet":"modfrmReestr","index":26,"n_rows":0,"n_cols":0,"rows_kept":0,"cut":false,"hidden":true,"merged":[]}

{"sheet":"modPROV","index":27,"n_rows":0,"n_cols":0,"rows_kept":0,"cut":false,"hidden":true,"merged":[]}

{"sheet":"modCommandButton","index":28,"n_rows":0,"n_cols":0,"rows_kept":0,"cut":false,"hidden":true,"merged":[]}

{"sheet":"modTitleSheetHeaders","index":29,"n_rows":0,"n_cols":0,"rows_kept":0,"cut":false,"hidden":true,"merged":[]}

{"sheet":"modServiceModule","index":30,"n_rows":0,"n_cols":0,"rows_kept":0,"cut":false,"hidden":true,"merged":[]}

{"sheet":"modClassifierValidate","index":31,"n_rows":0,"n_cols":0,"rows_kept":0,"cut":false,"hidden":true,"merged":[]}

{"sheet":"modWindowClipboard","index":32,"n_rows":0,"n_cols":0,"rows_kept":0,"cut":false,"hidden":true,"merged":[]}

{"sheet":"modInfo","index":33,"n_rows":0,"n_cols":0,"rows_kept":0,"cut":false,"hidden":true,"merged":[]}

{"sheet":"modfrmDateChoose","index":34,"n_rows":0,"n_cols":0,"rows_kept":0,"cut":false,"hidden":true,"merged":[]}

{"sheet":"modReestr","index":35,"n_rows":0,"n_cols":0,"rows_kept":0,"cut":false,"hidden":true,"merged":[]}

{"sheet":"Паспорт","index":36,"n_rows":71,"n_cols":57,"rows_kept":71,"cut":false,"hidden":true,"merged":[[52,8,52,10],[53,8,53,10],[44,8,44,10],[45,8,45,10],[50,8,50,10],[51,8,51,10],[48,8,48,10],[49,8,49,10],[46,8,46,10],[47,8,47,10],[3,3,3,10],[12,5,12,10],[13,5,13,10],[6,5,6,10],[7,5,7,10],[5,3,5,10],[8,5,8,10],[9,5,9,10],[10,5,10,10],[11,5,11,10],[14,6,14,9],[21,5,21,10],[17,3,17,10],[15,5,15,10],[18,5,18,10],[19,5,19,10],[20,5,20,10],[30,5,30,10],[31,7,31,10],[32,7,32,10],[22,5,22,10],[23,5,23,10],[29,3,29,10],[25,3,25,10],[26,5,26,10],[27,3,27,10],[33,3,33,10],[54,3,54,10],[62,5,62,10],[57,5,57,10],[58,5,58,10],[56,3,56,10],[36,8,36,10],[37,8,37,10],[59,5,59,10],[35,3,35,10],[42,8,42,10],[43,8,43,10],[41,8,41,10],[38,8,38,10],[39,8,39,10],[40,8,40,10],[64,3,64,10],[61,3,61,10],[63,5,63,10],[70,5,70,10],[69,5,69,10],[68,5,68,10],[67,5,67,10],[66,3,66,10]]}
[null,null,null,null,null,null,null,null,null,null,null,null,null,null,null,null,null,null,null,null,null,null,null,null,null,null,null,null,null,null,null,null,null,null,null,null,null,null,null,null,null,null,null,null,null,null,null,"Код диапазона:","Название диапазона:","Сфера регулирования:","Подсфера:","Тип информации в шаблоне:","Состояние шаблона:","Периодичность:","\"Геотип\" шаблона:","Тип шаблона:","Заказчик:"]
[null,null,null,null,null,null,null,null,null,null,null,null,null,null,null,null,null,null,null,null,null,null,null,null,null,null,null,null,null,null,null,null,null,null,null,null,null,null,null,null,null,null,null,null,null,null,null,"ps_sr","Сфера регулирования:","Не определено","Не определено","Не определено","Не определено","Не определено","Не определено","Не определено","Не определено"]
[null,null,null,null,null,null,null,null,null,null,null,null,null,null,null,null,null,null,null,null,null,null,null,null,null,null,null,null,null,null,null,null,null,null,null,null,null,null,null,null,null,null,null,null,null,null,null,"ps_ti","Тип информации в шаблоне:","NETS","водоотведение - очистка","Статистический","Проект","Единовременный","Региональный шаблон","Атомарный","РЭК"]
[null,null,null,"Паспорт к шаблону",null,null,null,null,null,null,null,null,null,null,null,null,null,null,null,null,null,null,null,null,null,null,null,null,null,null,null,null,null,null,null,null,null,null,null,null,null,null,null,null,null,null,null,"ps_ssh","Состояние шаблона:","Аэропорты","водоотведение - передача","Расчетный","Утвержден","Ежемесячный","Муниципальный шаблон","Сводный","ФСТ"]
[null,null,null,null,null,null,null,null,null,null,null,null,null,null,null,null,null,null,null,null,null,null,null,null,null,null,null,null,null,null,null,null,null,null,null,null,null,null,null,null,null,null,null,null,null,null,null,"ps_p","Периодичность:","Газ","водоотведение - прием","Обосновывающие материалы",null,"Ежеквартальный","Шаблон от организации",null,"Экспертная организация"]
[null,null,null,"1. Общие сведения",null,null,null,null,null,null,null,null,null,null,null,null,null,null,null,null,null,null,null,null,null,null,null,null,null,null,null,null,null,null,null,null,null,null,null,null,null,null,null,null,null,null,null,"ps_geo","\"Геотип\" шаблона:","Железные дороги","водоснабжение - очистка",null,null,"Ежегодный"]
[null,null,null,"1.1","Код",null,null,null,null,null,null,null,null,null,null,null,null,null,null,null,null,null,null,null,null,null,null,null,null,null,null,null,null,null,null,null,null,null,null,null,null,null,null,null,null,null,null,"ps_tsh","Тип шаблона:","ЖКХ","водоснабжение - передача"]
[null,null,null,"1.2","Краткое наименование",null,null,null,null,null,null,null,null,null,null,null,null,null,null,null,null,null,null,null,null,null,null,null,null,null,null,null,null,null,null,null,null,null,null,null,null,null,null,null,null,null,null,"ps_psr","Подсфера:","Медицина","водоснабжение - подъем"]
[null,null,null,"1.3","Полное наименование",null,null,null,null,null,null,null,null,null,null,null,null,null,null,null,null,null,null,null,null,null,null,null,null,null,null,null,null,null,null,null,null,null,null,null,null,null,null,null,null,null,null,"ps_z","Заказчик:","Порты","выработка ТС  "]
[null,null,null,"1.4","Сфера регулирования ",null,null,null,null,null,null,null,null,null,null,null,null,null,null,null,null,null,null,null,null,null,null,null,null,null,null,null,null,null,null,null,null,null,null,null,null,null,null,null,null,null,null,null,null,"Связь","выработка ТС в режиме комбинированной выработки"]
[null,null,null,"1.5","Подсфера",null,null,null,null,null,null,null,null,null,null,null,null,null,null,null,null,null,null,null,null,null,null,null,null,null,null,null,null,null,null,null,null,null,null,null,null,null,null,null,null,null,null,null,null,"Транспорт","выработка электрической энергии"]
[null,null,null,"1.6","Состояние шаблона (Утвержден/Проект)",null,null,null,null,null,null,null,null,null,null,null,null,null,null,null,null,null,null,null,null,null,null,null,null,null,null,null,null,null,null,null,null,null,null,null,null,null,null,null,null,null,null,null,null,"Электроэнергетика","выработка+передача+сбыт ТС"]
[null,null,null,"1.7","Заказчик",null,null,null,null,null,null,null,null,null,null,null,null,null,null,null,null,null,null,null,null,null,null,null,null,null,null,null,null,null,null,null,null,null,null,null,null,null,null,null,null,null,null,null,null,null,"передача ТС"]
[null,null,null,"1.8","Отчитывается",null,null,null,null,null,null,null,null,null,null,null,null,null,null,null,null,null,null,null,null,null,null,null,null,null,null,null,null,null,null,null,null,null,null,null,null,null,null,null,null,null,null,null,null,null,"передача ЭЭ"]
[null,null,null,"1.9","Тип шаблона",null,"Если шаблон сводный, необходимо указать код атомарного шаблона для него:",null,null,null,null,null,null,null,null,null,null,null,null,null,null,null,null,null,null,null,null,null,null,null,null,null,null,null,null,null,null,null,null,null,null,null,null,null,null,null,null,null,null,null,"сбыт ТС"]
[null,null,null,"1.10","Текущая версия",null,null,null,null,null,null,null,null,null,null,null,null,null,null,null,null,null,null,null,null,null,null,null,null,null,null,null,null,null,null,null,null,null,null,null,null,null,null,null,null,null,null,null,null,null,"сбыт ЭЭ"]
[null,null,null,null,null,null,null,null,null,null,null,null,null,null,null,null,null,null,null,null,null,null,null,null,null,null,null,null,null,null,null,null,null,null,null,null,null,null,null,null,null,null,null,null,null,null,null,null,null,null,"ТБО"]
[null,null,null,"2. Организационные"]
[null,null,null,"2.1","Тип информации в шаблоне "]
[null,null,null,"2.2","Ответственный регулятор (от заказчика)"]
[null,null,null,"2.3","Ответственный специалист (от СМА)"]
[null,null,null,"2.4","Ответственный программист (от СМА)"]
[null,null,null,"2.5","Ответственные за сбор данных (от СМА)"]
[null,null,null,"2.6","Ответственные за сбор данных (от заказчика)"]
[]
[null,null,null,"3. Законодательство (методики, приказы, постановления ...)"]
[null,null,"first","3.1","Документ1"]
[null,null,"end","Добавить документ"]
[]
[null,null,null,"4. Периодичность"]
[null,null,null,"4.1","Периодичность"]
[null,null,null,null,"Мониторинги(прошедшие и плановые)","Дата начала","Дата окончания","Согласно (приказ, постановление, письмо)"]
[null,null,"first","4.2.1","Мониторинг1"]
[null,null,"end","Добавить мониторинг"]
[]
[null,null,null,"5. Состав шаблона"]
[null,null,null,null,"Лист","Последняя дата изменений эскиза","Состояние листа","Наименование витрины для листа","Комментарии"]
[null,null,"first","5.1.1"]
[null,null,"Удалить","5.1.2"]
[null,null,"Удалить","5.1.3"]
[null,null,"Удалить","5.1.4"]
[null,null,"Удалить","5.1.5"]
[null,null,"Удалить","5.1.6"]
[null,null,"Удалить","5.1.7"]
[null,null,"Удалить","5.1.8"]
[null,null,"Удалить","5.1.9"]
[null,null,"Удалить","5.1.10"]
[null,null,"Удалить","5.1.11"]
[null,null,"Удалить","5.1.12"]
[null,null,"Удалить","5.1.13"]
[null,null,"Удалить","5.1.14"]
[null,null,"Удалить","5.1.15"]
[null,null,"Удалить","5.1.16"]
[null,null,"Удалить","5.1.17"]
[null,null,"end","Добавить лист"]
[]
[null,null,null,"6. Сроки и даты"]
[null,null,null,"6.1.1","Даты получения последних эскизов, от экспертов"]
[null,null,null,"6.1.2","Даты отправки шаблона на проверку"]
[null,null,null,"6.1.3","Предполагаемый срок сдачи шаблона в эксплуатацию"]
[]
[null,null,null,"7. Версии"]
[null,null,null,null,"Версия","Отличия от предыдущей"]
[null,null,"first","7.1"]
[null,null,"end","Добавить версию"]
[]
[null,null,null,"8. Дополнительно"]
[null,null,null,"8.1","Аналогичные(\"похожие\") шаблоны"]
[null,null,null,"8.2","Особенности шаблона"]
[null,null,null,"8.3","Модуль на основе данного шаблона"]
[null,null,null,"8.4","Процедуры загрузки данных в витрины"]